Inv Transaction,Supplier Name,Headserv Name,Stratdir Name,Account Desription,Redact Name,Paid Date, Sum of Inv Amount ,Proclass,Merchant cat
470806,INDUSTRIAL WATER TRAINING SERVICES LTD,Operations and Neighbourhoods,Operations and Neighbourhoods,Training Course Costs,,05/07/2019, 700.00 ,260000,Human Resources
470809,INDUSTRIAL WATER TRAINING SERVICES LTD,Operations and Neighbourhoods,Operations and Neighbourhoods,Training Course Costs,,05/07/2019," 1,560.00 ",260000,Human Resources
470810,INDUSTRIAL WATER TRAINING SERVICES LTD,Operations and Neighbourhoods,Operations and Neighbourhoods,Training Course Costs,,05/07/2019," 1,275.00 ",260000,Human Resources
470811,INDUSTRIAL WATER TRAINING SERVICES LTD,Operations and Neighbourhoods,Operations and Neighbourhoods,Training Course Costs,,05/07/2019, 910.00 ,260000,Human Resources
29000082,BOOTS UK LTD,Population Health,Population Health,Local Enhanced Services,,19/07/2019," 2,537.99 ",150000,Consultancy
29000082,WELL PHARMACY,Population Health,Population Health,Local Enhanced Services,,19/07/2019," 1,500.86 ",310000,Healthcare
29000082,CLARENDON MEDICAL PRACTICE,Population Health,Population Health,Local Enhanced Services,,19/07/2019, 545.00 ,150000,Consultancy
29000082,Millgate Healthcare Partnership,Population Health,Population Health,Local Enhanced Services,,19/07/2019," 3,285.80 ",150000,Consultancy
470814,AGGREGATE INDUSTRIES UK LIMITED,Operations and Neighbourhoods,Operations and Neighbourhoods,General Materials,,01/07/2019," 8,689.91 ",230000,Highway Equipment & Materials
470814,ALTITUDE SERVICES,Operations and Neighbourhoods,Operations and Neighbourhoods,Sub-contractor Services,,01/07/2019," 2,652.65 ",370000,Utilities
470814,EAGLE CIVIL ENGINEERING LTD,Operations and Neighbourhoods,Operations and Neighbourhoods,Sub-contractor Services,,01/07/2019," 11,220.77 ",230000,Highway Equipment & Materials
470814,FAIRWAY LANDSCAPES LTD,Operations and Neighbourhoods,Operations and Neighbourhoods,General Materials,,01/07/2019," 4,606.37 ",399999,"Works - Construction, Repair & Maintenance"
470814,FAIRWAY LANDSCAPES LTD,Operations and Neighbourhoods,Operations and Neighbourhoods,Sub-contractor Services,,01/07/2019," 8,788.50 ",399999,"Works - Construction, Repair & Maintenance"
470814,Redacted,Operations and Neighbourhoods,Operations and Neighbourhoods,Sub-contractor Services,,01/07/2019," 4,185.88 ",150000,Consultancy
470814,KEYLINE BUILDERS MERCHANTS LTD,Operations and Neighbourhoods,Operations and Neighbourhoods,General Materials,,01/07/2019," 2,741.06 ",100000,Building Construction Materials
470814,RIGBY TAYLOR LTD,Civil Engineers,Director of Place,Debits Goods Received,,01/07/2019, 992.00 ,240000,Horticultural
470814,TARMAC CENTRAL LIMITED,Civil Engineers,Director of Place,Debits Goods Received,,01/07/2019, 551.22 ,230000,Highway Equipment & Materials
470814,TARMAC CENTRAL LIMITED,Operations and Neighbourhoods,Operations and Neighbourhoods,General Materials,,01/07/2019," 5,910.16 ",230000,Highway Equipment & Materials
470814,GRAFTON MERCHANTING GB LTD,Operations and Neighbourhoods,Operations and Neighbourhoods,General Materials,,01/07/2019," 1,199.06 ",100000,Building Construction Materials
470814,BRAMHALL SURFACING LTD,Operations and Neighbourhoods,Operations and Neighbourhoods,General Materials,,01/07/2019," 29,698.00 ",390000,"Works - Construction, Repair & Maintenance"
470814,BRAMHALL SURFACING LTD,Operations and Neighbourhoods,Operations and Neighbourhoods,Sub-contractor Services,,01/07/2019," 22,835.14 ",390000,"Works - Construction, Repair & Maintenance"
470814,JONES LIGHTING LTD,Operations and Neighbourhoods,Operations and Neighbourhoods,Sub-contractor Services,,01/07/2019," 2,371.36 ",230000,Highway Equipment & Materials
470814,75 SERVICE LTD,Operations and Neighbourhoods,Operations and Neighbourhoods,Sub-contractor Services,,01/07/2019," 1,000.00 ",310000,Healthcare
470814,LARSEN BUILDING PRODUCTS,Operations and Neighbourhoods,Operations and Neighbourhoods,General Materials,,01/07/2019," 9,440.40 ",-999999,Unclassifiable
470814,COLAS LTD,Civil Engineers,Director of Place,Debits Goods Received,,01/07/2019, 700.80 ,230000,Highway Equipment & Materials
470814,COLAS LTD,Operations and Neighbourhoods,Operations and Neighbourhoods,General Materials,,01/07/2019," 2,400.00 ",230000,Highway Equipment & Materials
470814,TRAFFIC DIRECT LTD,(blank),(blank),General Materials,,01/07/2019," 15,056.00 ",350000,Street & Traffic Management
470814,TRAFFIC DIRECT LTD,Operations and Neighbourhoods,Operations and Neighbourhoods,Sub-contractor Services,,01/07/2019," 6,200.00 ",350000,Street & Traffic Management
470814,ROSGAL CIVIL ENGINEERING LTD,Operations and Neighbourhoods,Operations and Neighbourhoods,General Materials,,01/07/2019," 17,600.00 ",230000,Highway Equipment & Materials
470814,W MAHER & SONS LTD,Operations and Neighbourhoods,Operations and Neighbourhoods,Sub-contractor Services,,01/07/2019, 900.00 ,360000,Public Transport
470814,LAKESIDE FILMS LTD,Operations and Neighbourhoods,Operations and Neighbourhoods,General Materials,,01/07/2019," 14,073.99 ",230000,Highway Equipment & Materials
470814,HILTI (GB) LTD,Operations and Neighbourhoods,Operations and Neighbourhoods,General Materials,,01/07/2019, 724.00 ,390000,"Works - Construction, Repair & Maintenance"
5346843,NORTHERN MARKING LIMITED,(blank),(blank),Road Marking Works,,01/07/2019," 7,893.40 ",150000,Consultancy
5346838,NORTHERN MARKING LIMITED,Operations and Neighbourhoods,Operations and Neighbourhoods,Engineers Works,,01/07/2019," 3,929.50 ",150000,Consultancy
5346841,NORTHERN MARKING LIMITED,Operations and Neighbourhoods,Operations and Neighbourhoods,Engineers Works,,01/07/2019," 7,274.96 ",150000,Consultancy
5346774,Hillgate Health Group Limited,Childrens Services,Children's Services,Living With Formal Support,,01/07/2019," 1,179.36 ",-999999,Unclassifiable
5345912,Bloom Procurement Services Limited,(blank),(blank),Professional Consultancy Services,,01/07/2019," 30,000.00 ",150000,Consultancy
5345761,L&R ROADLINES LTD,Engineers Client,Director of Place,Road Marking Works,,01/07/2019, 768.06 ,230000,Highway Equipment & Materials
5345761,L&R ROADLINES LTD,(blank),(blank),Road Marking Works,,01/07/2019," 9,119.46 ",230000,Highway Equipment & Materials
5343882,L&R ROADLINES LTD,(blank),(blank),Road Marking Works,,01/07/2019," 10,717.95 ",230000,Highway Equipment & Materials
5346307,PG FABRICATIONS,Multiple Heads of Service,Multiple Strategic Directorates,CIS Labour Debits,,01/07/2019, 548.00 ,390000,"Works - Construction, Repair & Maintenance"
5346307,PG FABRICATIONS,Place,Growth,Refurbishment Construction Costs,,01/07/2019," 2,740.00 ",390000,"Works - Construction, Repair & Maintenance"
5345705,GREENSCAPE,Adult Social Care,Adults,Professional Services,,01/07/2019," 1,221.70 ",390000,"Works - Construction, Repair & Maintenance"
5344168,ANIMAL WARDENS LTD,Operations and Neighbourhoods,Operations and Neighbourhoods,Professional Consultancy Services,,01/07/2019, 922.00 ,180000,Environmental Services
5345487,AR ENTERTAINMENTS,Operations and Neighbourhoods,Operations and Neighbourhoods,Professional Entertainment Services,,01/07/2019," 1,045.00 ",290000,Arts & Leisure Services
5343681,PROLUDIC LTD,Operations and Neighbourhoods,Operations and Neighbourhoods,General Equipment Purchase,,01/07/2019, 659.93 ,330000,Sports & Playground Equipment & Maintenance
5346782,PENNINE CARE IN PATIENT SERVS PRIORY,Education,Children's Services,#N/A,,01/07/2019," 2,712.50 ",321000,Social Community Care Supplies & Services - Adult
5346786,PENNINE CARE IN PATIENT SERVS PRIORY,Education,Children's Services,#N/A,,01/07/2019, 875.00 ,321000,Social Community Care Supplies & Services - Adult
5346785,PENNINE CARE IN PATIENT SERVS PRIORY,Education,Children's Services,#N/A,,01/07/2019," 1,837.50 ",321000,Social Community Care Supplies & Services - Adult
5346784,PENNINE CARE IN PATIENT SERVS PRIORY,Education,Children's Services,#N/A,,01/07/2019," 2,712.50 ",321000,Social Community Care Supplies & Services - Adult
5346788,PENNINE CARE IN PATIENT SERVS PRIORY,Education,Children's Services,#N/A,,01/07/2019, 612.50 ,321000,Social Community Care Supplies & Services - Adult
5346745,HOMES FOR LIFE LTD,Adult Social Care,Adults,Non-Authority Accommodation Rental,,01/07/2019, 808.19 ,-999999,Unclassifiable
5346001,GETRONICS SERVICES UK LIMITED,Digital Tameside,Finance & IT,Telephone Landline Costs,,01/07/2019," 9,493.37 ",270000,Information Communication Technology
5346691,DHL Parcel UK Ltd (UK Mail),Education,Children's Services,Professional Services,,01/07/2019," 1,068.59 ",300000,Mail Services
5345337,GREATER MANCHESTER COMBINED AUTHORITY,(blank),(blank),Engineers -External,,01/07/2019," 18,115.97 ",-999999,Unclassifiable
5338597,CRIMESTOPPERS TRUST,Operations and Neighbourhoods,Operations and Neighbourhoods,General Materials,,01/07/2019," 1,600.00 ",-999999,Unclassifiable
5342082,PEARSON EDUCATION LTD,Place,Growth,Examination Fees,,01/07/2019," 1,210.70 ",170000,Education
5346694,OFF THE RECORD,Population Health,Population Health,Contributions,,01/07/2019," 22,875.00 ",321000,Social Community Care Supplies & Services - Adult
5346462,DIRECT BUSINESS EQUIPMENT LTD,Operations and Neighbourhoods,Operations and Neighbourhoods,General Materials,,01/07/2019," 1,725.00 ",200000,Financial Services
5342974,BUSH INN,Corporate Costs,Corporate Costs,Ward Schemes,,01/07/2019, 550.00 ,290000,Arts & Leisure Services
5346727,HAMILTON PROPERTIES,Adult Social Care,Adults,Non-Authority Accommodation Rental,,01/07/2019," 1,558.17 ",250000,Housing Management
5344069,B&E CONSULTANTS LTD,Population Health,Population Health,"Marketing, Publicity and Recruitment",,02/07/2019," 1,412.50 ",150000,Consultancy
5344371,SEASHELL TRUST,Childrens Services,Children's Services,Day Care Fees,,02/07/2019," 1,684.80 ",321000,Social Community Care Supplies & Services - Adult
5346506,REDDIPAK LIMITED,Operations and Neighbourhoods,Operations and Neighbourhoods,General Materials,,02/07/2019," 1,064.00 ",-999999,Unclassifiable
5346819,Redacted,Education,Children's Services,#N/A,,02/07/2019, 572.00 ,170000,Education
5346826,Redacted,Education,Children's Services,#N/A,,02/07/2019, 572.00 ,170000,Education
5345930,ST GEORGES CHURCH PCC ASSOCIATION,Governance,Governance,Non-Authority Accommodation Rental,,02/07/2019, 500.00 ,908001,Public Bodies
5346957,SLEIGH SON & BOOTH,Childrens Services,Children's Services,Legal Fees,,02/07/2019, 500.00 ,908001,Public Bodies
5345908,TONGUE TIED (MANCHESTER) LTD,Childrens Services,Children's Services,Professional Services,,02/07/2019, 979.00 ,150000,Consultancy
5346977,Redacted,Asset & Investment Partnership Management,Growth,PFI Benchmarking,,02/07/2019," 3,745.91 ",390000,"Works - Construction, Repair & Maintenance"
5346977,Redacted,Asset & Investment Partnership Management,Growth,Unitary Charge Payments,,02/07/2019," 278,933.95 ",390000,"Works - Construction, Repair & Maintenance"
5346934,Redacted,Asset & Investment Partnership Management,Growth,Free School Meal Costs,,02/07/2019," 18,778.50 ",390000,"Works - Construction, Repair & Maintenance"
5346981,CARELINE HOMECARE LTD,Adult Social Care,Adults,Homecare Fees,,02/07/2019, 800.14 ,321000,Social Community Care Supplies & Services - Adult
5346985,Redacted,Childrens Services,Children's Services,Legal Fees,,02/07/2019, 550.00 ,280000,Legal Services
5346984,Redacted,Childrens Services,Children's Services,Legal Fees,,02/07/2019," 1,500.00 ",280000,Legal Services
5345979,TRAFFORD MBC,Education,Children's Services,Professional Services,,02/07/2019," 1,864.68 ",321100,Social Community Care Supplies & Services - Children
5346792,Redacted,Education,Children's Services,Transport Of Pupils,Business Payment,02/07/2019," 2,125.00 ",360000,Public Transport
5346528,TAMESIDE SPORTS TRUST,Adult Social Care,Adults,Day Centre Fees,,02/07/2019," 1,966.40 ",290000,Arts & Leisure Services
5347005,CAPITA BUSINESS SERVICES LIMITED,Exchequer,Governance,Professional Consultancy Services,,02/07/2019," 5,000.00 ",270000,Information Communication Technology
5347086,JACKSON & TAYLOR LTD,Housing,Director of Place,Improvement Grants - Final Mandatory,,02/07/2019," 2,780.00 ",390000,"Works - Construction, Repair & Maintenance"
5346132,J HOPKINS CONTRACTORS  LTD,(blank),(blank),Highway Construction,,02/07/2019," 160,691.24 ",390000,"Works - Construction, Repair & Maintenance"
5346865,Redacted,Adult Social Care,Adults,Day Care Fees,Redacted Supplier,02/07/2019, 500.14 ,321000,Social Community Care Supplies & Services - Adult
5347011,JPCS LIMITED,(blank),(blank),Landscaping Works,,02/07/2019," 3,790.11 ",231100,Highway Equipment & Materials
5347079,K P DODD CONSTRUCTION LTD,Housing,Director of Place,Improvement Grants - Final Mandatory,,02/07/2019," 15,102.00 ",390000,"Works - Construction, Repair & Maintenance"
5344207,Her Majesty's Prison and Probation Service (National Offenders Management Service),Childrens Services,Children's Services,Other Accomodation Related Costs,,03/07/2019," 2,160.00 ",400000,Non 3rd Party spend  
5344206,Her Majesty's Prison and Probation Service (National Offenders Management Service),Childrens Services,Children's Services,Other Accomodation Related Costs,,03/07/2019," 5,592.00 ",400000,Non 3rd Party spend  
5343635,Redacted,Childrens Services,Children's Services,Legal Fees,,03/07/2019, 825.00 ,400000,Non 3rd Party spend  
5347152,PPL PRS Ltd,Place,Growth,Licences,,03/07/2019," 3,728.74 ",400000,Non 3rd Party spend  
5347099,PPL PRS Ltd,Place,Growth,Licences,,03/07/2019, 741.15 ,400000,Non 3rd Party spend  
5347153,PPL PRS Ltd,Place,Growth,Licences,,03/07/2019," 5,467.67 ",400000,Non 3rd Party spend  
5347155,PPL PRS Ltd,Place,Growth,Licences,,03/07/2019," 1,229.28 ",400000,Non 3rd Party spend  
5347158,PPL PRS Ltd,Place,Growth,Licences,,03/07/19," 1,222.22 ",400000,Non 3rd Party spend  
5344229,FSN Facilities Management Ltd,Operations and Neighbourhoods,Operations and Neighbourhoods,General Materials,,03/07/2019," 8,866.00 ",190000,Facilities & Management Services
5344230,FSN Facilities Management Ltd,Operations and Neighbourhoods,Operations and Neighbourhoods,General Materials,,03/07/2019," 25,575.00 ",190000,Facilities & Management Services
5346779,Laska Care and Education Limited,Childrens Services,Children's Services,Living With Formal Support,,03/07/2019," 12,473.00 ",321100,Social Community Care Supplies & Services - Children
5347232,Redacted,Education,Children's Services,Other Local Authorities Fees,,03/07/2019," 1,910.00 ",170000,Education
5344130,Redacted,Education,Children's Services,Professional Services,,03/07/2019, 650.00 ,170000,Education
5344159,APS Group,Operations and Neighbourhoods,Operations and Neighbourhoods,Professional Medical Services,,03/07/2019, 967.68 ,-999999,Unclassifiable
5344133,YOUNG PEOPLE FIRST LIMITED,Childrens Services,Children's Services,Living With Formal Support,,03/07/2019," 6,818.00 ",321100,Social Community Care Supplies & Services - Children
5339277,SEDGEMOOR DISTRICT COUNCIL,Hosted Services,Hosted Services,Professional Consultancy Services,,03/07/2019," 7,624.83 ",-999999,Unclassifiable
5339960,L&R ROADLINES LTD,(blank),(blank),Road Marking Works,,03/07/2019," 1,650.29 ",230000,Highway Equipment & Materials
5344126,Redacted,Governance,Governance,Professional Consultancy Services,Business Payment,03/07/2019, 682.10 ,150000,Consultancy
5347139,MOSSLEY PRIVATE HIRE,Education,Children's Services,Transport Of Pupils,,03/07/2019," 2,250.00 ",360000,Public Transport
5347135,MOSSLEY PRIVATE HIRE,Education,Children's Services,Transport Of Pupils,,03/07/2019," 1,875.00 ",360000,Public Transport
5347142,MOSSLEY PRIVATE HIRE,Education,Children's Services,Transport Of Ola Pupils,,03/07/2019," 2,250.00 ",360000,Public Transport
5347140,MOSSLEY PRIVATE HIRE,Education,Children's Services,Transport Of Pupils,,03/07/2019," 2,500.00 ",360000,Public Transport
5347138,MOSSLEY PRIVATE HIRE,Education,Children's Services,Transport Of Pupils,,03/07/2019," 1,875.00 ",360000,Public Transport
5347141,MOSSLEY PRIVATE HIRE,Education,Children's Services,Transport Of Pupils,,03/07/2019," 2,500.00 ",360000,Public Transport
5346712,TAMESIDE AND GLOSSOP INTEGRATED CARE NHS FOUNDATION TRUST,Place,Growth,Contributions,,03/07/2019," 1,696.70 ",310000,Healthcare
5346741,TAMESIDE AND GLOSSOP INTEGRATED CARE NHS FOUNDATION TRUST,Place,Growth,Contributions,,03/07/2019, 714.40 ,310000,Healthcare
5346713,TAMESIDE AND GLOSSOP INTEGRATED CARE NHS FOUNDATION TRUST,Place,Growth,Contributions,,03/07/2019," 1,160.90 ",310000,Healthcare
5346714,TAMESIDE AND GLOSSOP INTEGRATED CARE NHS FOUNDATION TRUST,Place,Growth,Contributions,,03/07/2019," 1,625.26 ",310000,Healthcare
5347197,TURNING POINT SERVICES LIMITED,Adult Social Care,Adults,Homecare Fees,,03/07/2019," 13,569.42 ",321000,Social Community Care Supplies & Services - Adult
5344374,ACORN HOUSE (FOSTERING SERVICES) LTD,Childrens Services,Children's Services,Foster Carer Agency Fees,,03/07/2019," 3,981.02 ",321100,Social Community Care Supplies & Services - Children
5344217,Redacted,Childrens Services,Children's Services,Childrens Homes Outside Local Authority Fees,Redacted Supplier,03/07/2019," 1,771.34 ",321000,Social Community Care Supplies & Services - Adult
5344214,Redacted,Childrens Services,Children's Services,Childrens Homes Outside Local Authority Fees,Redacted Supplier,03/07/2019," 14,142.90 ",321000,Social Community Care Supplies & Services - Adult
5344210,Redacted,Childrens Services,Children's Services,Childrens Homes Outside Local Authority Fees,Redacted Supplier,03/07/2019," 1,714.20 ",321000,Social Community Care Supplies & Services - Adult
5346930,INTACT PROJECTS LIMITED,Childrens Services,Children's Services,Living With Formal Support,,03/07/2019," 1,590.00 ",321000,Social Community Care Supplies & Services - Adult
5346927,SHARED LIVES PLUS,Adult Social Care,Adults,Miscellaneous Expenses,,03/07/2019," 10,000.00 ",200000,Financial Services
5337957,BY THE BRIDGE NORTH WEST LTD,Childrens Services,Children's Services,Foster Carer Agency Fees,,03/07/2019," 7,611.75 ",908001,Public Bodies
5344138,MAMMOTH SIGNS LTD,Operations and Neighbourhoods,Operations and Neighbourhoods,"Marketing, Publicity and Recruitment",,03/07/2019," 1,030.00 ",390000,"Works - Construction, Repair & Maintenance"
5347208,CURZON ASHTON FOOTBALL CLUB,Population Health,Population Health,Room Hire,,03/07/2019, 832.25 ,290000,Arts & Leisure Services
5344548,CITY LIFT SERVICES (NW) LTD,Adult Social Care,Adults,General Equipment Repair & Maintenance,,03/07/2019," 7,940.00 ",390000,"Works - Construction, Repair & Maintenance"
5346289,Redacted,Multiple Heads of Service,Multiple Strategic Directorates,Claims Settled,,03/07/19," 2,214.00 ",-999999,Unclassifiable
5347217,ABLE CARE AND SUPPORT SERVICES LTD,Adult Social Care,Adults,Homecare Fees,,03/07/2019, 559.84 ,321000,Social Community Care Supplies & Services - Adult
5344104,Redacted,Childrens Services,Children's Services,Childrens Homes Outside Local Authority Fees,Redacted Supplier,03/07/2019," 12,621.00 ",321100,Social Community Care Supplies & Services - Children
5344103,Redacted,Childrens Services,Children's Services,Childrens Homes Outside Local Authority Fees,Redacted Supplier,03/07/2019," 12,621.00 ",321100,Social Community Care Supplies & Services - Children
5344135,PLATINUM STAIRLIFTS LIMITED,Housing,Director of Place,Improvement Grants - Final Mandatory,,03/07/2019," 3,875.00 ",321000,Social Community Care Supplies & Services - Adult
5344136,TUDOR (UK) LTD T/A TUDOR ENVIRONMENTAL,Operations and Neighbourhoods,Operations and Neighbourhoods,General Materials,,03/07/19, 737.00 ,240000,Horticultural
5343850,SIMPSONHAUGH AND PARTNERS LLP,Place,Growth,Professional Consultancy Services,,03/07/19," 4,000.00 ",150000,Consultancy
5345428,CARELINE HOMECARE LTD,Adult Social Care,Adults,Homecare Fees,,03/07/2019, 861.84 ,321000,Social Community Care Supplies & Services - Adult
5345351,CARELINE HOMECARE LTD,Adult Social Care,Adults,Homecare Fees,,03/07/2019," 16,222.38 ",321000,Social Community Care Supplies & Services - Adult
5345350,CARELINE HOMECARE LTD,Adult Social Care,Adults,Homecare Fees,,03/07/2019," 13,639.45 ",321000,Social Community Care Supplies & Services - Adult
5344240,The Networking People (TNP) Ltd,Multiple Heads of Service,Multiple Strategic Directorates,Fees,,03/07/2019, 900.00 ,270000,Information Communication Technology
5347184,ZURICH ASSURANCE LTD (WORKMAN LLP),Place,Growth,Non-Authority Accommodation Rental,,03/07/2019," 9,387.50 ",200000,Financial Services
5347184,ZURICH ASSURANCE LTD (WORKMAN LLP),Place,Growth,Other Accomodation Related Costs,,03/07/2019," 1,036.76 ",200000,Financial Services
5345941,SOCIAL MEDIA MAKES SENSE LTD,Place,Growth,Contributions,,03/07/2019," 2,809.65 ",-999999,Unclassifiable
5344216,INSPIRE COMMUNITY SERVICES LIMITED,Childrens Services,Children's Services,Living With Formal Support,,03/07/2019," 1,325.60 ",170000,Education
5344204,INSPIRE COMMUNITY SERVICES LIMITED,Childrens Services,Children's Services,Living With Formal Support,,03/07/2019, 502.08 ,170000,Education
5344205,INSPIRE COMMUNITY SERVICES LIMITED,Childrens Services,Children's Services,Living With Formal Support,,03/07/2019, 804.00 ,170000,Education
5344209,INSPIRE COMMUNITY SERVICES LIMITED,Childrens Services,Children's Services,Living With Formal Support,,03/07/2019," 1,010.24 ",170000,Education
5344203,INSPIRE COMMUNITY SERVICES LIMITED,Childrens Services,Children's Services,Living With Formal Support,,03/07/2019," 2,144.00 ",170000,Education
5344215,INSPIRE COMMUNITY SERVICES LIMITED,Childrens Services,Children's Services,Living With Formal Support,,03/07/2019, 792.84 ,170000,Education
5342887,Non Stop Recruitment,Childrens Services,Children's Services,Agency Staff,,03/07/2019," 1,012.32 ",260000,Human Resources
5344116,Northern Community Pathways Limited,Childrens Services,Children's Services,Living With Formal Support,,03/07/2019," 2,940.00 ",321100,Social Community Care Supplies & Services - Children
5344115,Northern Community Pathways Limited,Childrens Services,Children's Services,Living With Formal Support,,03/07/19," 2,140.00 ",321100,Social Community Care Supplies & Services - Children
5344112,Northern Community Pathways Limited,Childrens Services,Children's Services,Living With Formal Support,,03/07/19," 2,540.00 ",321100,Social Community Care Supplies & Services - Children
5344114,Northern Community Pathways Limited,Childrens Services,Children's Services,Living With Formal Support,,03/07/19," 2,540.00 ",321100,Social Community Care Supplies & Services - Children
5344117,Northern Community Pathways Limited,Childrens Services,Children's Services,Living With Formal Support,,03/07/19," 2,600.00 ",321100,Social Community Care Supplies & Services - Children
5347032,Hyde Accessible Transport Limited,Education,Children's Services,Transport Of Pupils,,03/07/2019," 2,250.00 ",360000,Public Transport
5347054,Hyde Accessible Transport Limited,Education,Children's Services,Transport Of Pupils,,03/07/19," 2,250.00 ",360000,Public Transport
5347029,Hyde Accessible Transport Limited,Education,Children's Services,Transport Of Ola Pupils,,03/07/19," 2,460.50 ",360000,Public Transport
5347047,Hyde Accessible Transport Limited,Education,Children's Services,Transport Of Pupils,,03/07/19," 1,312.50 ",360000,Public Transport
5347027,Hyde Accessible Transport Limited,Education,Children's Services,Transport Of Pupils,,03/07/19," 1,050.00 ",360000,Public Transport
5347033,Hyde Accessible Transport Limited,Education,Children's Services,Transport Of Ola Pupils,,03/07/19," 2,115.00 ",360000,Public Transport
5347045,Hyde Accessible Transport Limited,Operations and Neighbourhoods,Operations and Neighbourhoods,Hired Transport,,03/07/19," 2,960.00 ",360000,Public Transport
5347056,Hyde Accessible Transport Limited,Education,Children's Services,Transport Of Pupils,,03/07/19," 1,687.50 ",360000,Public Transport
5347046,Hyde Accessible Transport Limited,Education,Children's Services,Transport Of Ola Pupils,,03/07/19," 2,220.00 ",360000,Public Transport
5347059,Hyde Accessible Transport Limited,Education,Children's Services,Transport Of Pupils,,03/07/19," 2,500.00 ",360000,Public Transport
5347044,Hyde Accessible Transport Limited,Operations and Neighbourhoods,Operations and Neighbourhoods,Hired Transport,,03/07/19," 2,000.00 ",360000,Public Transport
5347024,Hyde Accessible Transport Limited,Education,Children's Services,Transport Of Pupils,,03/07/19," 1,875.00 ",360000,Public Transport
5347039,Hyde Accessible Transport Limited,Education,Children's Services,Transport Of Pupils,,03/07/19," 1,875.00 ",360000,Public Transport
5347064,Hyde Accessible Transport Limited,Education,Children's Services,Transport Of Pupils,,03/07/2019," 1,875.00 ",360000,Public Transport
5347051,Hyde Accessible Transport Limited,Education,Children's Services,Transport Of Post 16 Pupils,,03/07/19," 1,530.00 ",360000,Public Transport
5347030,Hyde Accessible Transport Limited,Education,Children's Services,Transport Of Pupils,,03/07/19," 1,500.00 ",360000,Public Transport
5347021,Hyde Accessible Transport Limited,Education,Children's Services,Transport Of Pupils,,03/07/19," 1,050.00 ",360000,Public Transport
5347049,Hyde Accessible Transport Limited,Education,Children's Services,Transport Of Pupils,,03/07/19, 787.50 ,360000,Public Transport
5347038,Hyde Accessible Transport Limited,Operations and Neighbourhoods,Operations and Neighbourhoods,Hired Transport,,03/07/19," 1,700.00 ",360000,Public Transport
5347050,Hyde Accessible Transport Limited,Education,Children's Services,Transport Of Ola Pupils,,03/07/19," 1,880.00 ",360000,Public Transport
5347060,Hyde Accessible Transport Limited,Education,Children's Services,Transport Of Pupils,,03/07/2019," 1,687.50 ",360000,Public Transport
5347036,Hyde Accessible Transport Limited,Education,Children's Services,Transport Of Ola Pupils,,03/07/19," 1,850.00 ",360000,Public Transport
5347023,Hyde Accessible Transport Limited,Education,Children's Services,Transport Of Pupils,,03/07/19," 2,500.00 ",360000,Public Transport
5347026,Hyde Accessible Transport Limited,Education,Children's Services,Transport Of Pupils,,03/07/19," 1,500.00 ",360000,Public Transport
5347062,Hyde Accessible Transport Limited,Education,Children's Services,Transport Of Pupils,,03/07/19," 1,800.00 ",360000,Public Transport
5347061,Hyde Accessible Transport Limited,Education,Children's Services,Transport Of Pupils,,03/07/19," 1,350.00 ",360000,Public Transport
5347057,Hyde Accessible Transport Limited,Education,Children's Services,Transport Of Pupils,,03/07/19," 1,050.00 ",360000,Public Transport
5347048,Hyde Accessible Transport Limited,Education,Children's Services,Transport Of Pupils,,03/07/19, 787.50 ,360000,Public Transport
5347022,Hyde Accessible Transport Limited,Operations and Neighbourhoods,Operations and Neighbourhoods,Transport Of Post 16 Pupils,,03/07/19," 1,912.50 ",360000,Public Transport
5347053,Hyde Accessible Transport Limited,Operations and Neighbourhoods,Operations and Neighbourhoods,Transport Of Post 16 Pupils,,03/07/19," 1,912.50 ",360000,Public Transport
5343867,XMA LIMITED,Digital Tameside,Finance & IT,It Equipment,,03/07/19," 9,343.40 ",270000,Information Communication Technology
5337547,FOSTER CARE ASSOCIATES LTD (FCA),Childrens Services,Children's Services,Foster Carer Agency Fees,,03/07/19," 3,237.02 ",321000,Social Community Care Supplies & Services - Adult
5337541,FOSTER CARE ASSOCIATES LTD (FCA),Childrens Services,Children's Services,Foster Carer Agency Fees,,03/07/19," 3,565.93 ",321000,Social Community Care Supplies & Services - Adult
5344169,FOSTER CARE ASSOCIATES LTD (FCA),Childrens Services,Children's Services,Foster Carer Agency Fees,,03/07/19," 3,237.02 ",321000,Social Community Care Supplies & Services - Adult
5344174,FOSTER CARE ASSOCIATES LTD (FCA),Childrens Services,Children's Services,Foster Carer Agency Fees,,03/07/19," 3,217.49 ",321000,Social Community Care Supplies & Services - Adult
5344171,FOSTER CARE ASSOCIATES LTD (FCA),Childrens Services,Children's Services,Foster Carer Agency Fees,,03/07/2019," 4,029.69 ",321000,Social Community Care Supplies & Services - Adult
5344177,FOSTER CARE ASSOCIATES LTD (FCA),Childrens Services,Children's Services,Foster Carer Agency Fees,,03/07/19," 3,412.94 ",321000,Social Community Care Supplies & Services - Adult
5344145,FOSTER CARE ASSOCIATES LTD (FCA),Childrens Services,Children's Services,Foster Carer Agency Fees,,03/07/19," 4,029.69 ",321000,Social Community Care Supplies & Services - Adult
5344163,FOSTER CARE ASSOCIATES LTD (FCA),Childrens Services,Children's Services,Foster Carer Agency Fees,,03/07/19," 3,782.62 ",321000,Social Community Care Supplies & Services - Adult
5344176,FOSTER CARE ASSOCIATES LTD (FCA),Childrens Services,Children's Services,Foster Carer Agency Fees,,03/07/19," 3,412.94 ",321000,Social Community Care Supplies & Services - Adult
5344179,FOSTER CARE ASSOCIATES LTD (FCA),Childrens Services,Children's Services,Foster Carer Agency Fees,,03/07/19," 4,029.69 ",321000,Social Community Care Supplies & Services - Adult
5344144,FOSTER CARE ASSOCIATES LTD (FCA),Childrens Services,Children's Services,Foster Carer Agency Fees,,03/07/19," 4,411.30 ",321000,Social Community Care Supplies & Services - Adult
5344165,FOSTER CARE ASSOCIATES LTD (FCA),Childrens Services,Children's Services,Foster Carer Agency Fees,,03/07/19," 4,411.30 ",321000,Social Community Care Supplies & Services - Adult
5344223,FOSTER CARE ASSOCIATES LTD (FCA),Childrens Services,Children's Services,Foster Carer Agency Fees,,03/07/19," 3,412.94 ",321000,Social Community Care Supplies & Services - Adult
5344167,FOSTER CARE ASSOCIATES LTD (FCA),Childrens Services,Children's Services,Foster Carer Agency Fees,,03/07/19," 4,248.89 ",321000,Social Community Care Supplies & Services - Adult
5344173,FOSTER CARE ASSOCIATES LTD (FCA),Childrens Services,Children's Services,Foster Carer Agency Fees,,03/07/19," 4,411.30 ",321000,Social Community Care Supplies & Services - Adult
5346166,ROYAL MAIL GROUP PLC,Governance,Governance,Postages,,03/07/19," 2,855.53 ",300000,Mail Services
5346169,ROYAL MAIL GROUP PLC,Governance,Governance,Postages,,03/07/19," 2,187.78 ",300000,Mail Services
5346168,ROYAL MAIL GROUP PLC,Governance,Governance,Postages,,03/07/19," 1,842.49 ",300000,Mail Services
5346171,ROYAL MAIL GROUP PLC,Governance,Governance,Postages,,03/07/19," 6,100.71 ",300000,Mail Services
5346170,ROYAL MAIL GROUP PLC,Governance,Governance,Postages,,03/07/19," 5,293.38 ",300000,Mail Services
5344221,TREASURED MEMORIES LTD,Operations and Neighbourhoods,Operations and Neighbourhoods,Plaques,,03/07/2019, 776.05 ,120000,Cemetery & Crematorium
5343897,GLASDON UK LTD,Operations and Neighbourhoods,Operations and Neighbourhoods,General Materials,,03/07/19, 533.32 ,230000,Highway Equipment & Materials
5344161,SWIIS FOSTER CARE LTD,Childrens Services,Children's Services,Foster Carer Agency Fees,,03/07/19, 676.97 ,321100,Social Community Care Supplies & Services - Children
5344194,SWIIS FOSTER CARE LTD,Childrens Services,Children's Services,Foster Carer Agency Fees,,03/07/19, 760.48 ,321100,Social Community Care Supplies & Services - Children
5344164,SWIIS FOSTER CARE LTD,Childrens Services,Children's Services,Foster Carer Agency Fees,,03/07/19, 693.49 ,321100,Social Community Care Supplies & Services - Children
5344172,SWIIS FOSTER CARE LTD,Childrens Services,Children's Services,Foster Carer Agency Fees,,03/07/19, 693.49 ,321100,Social Community Care Supplies & Services - Children
5344188,SWIIS FOSTER CARE LTD,Childrens Services,Children's Services,Foster Carer Agency Fees,,03/07/19, 703.92 ,321100,Social Community Care Supplies & Services - Children
5344162,SWIIS FOSTER CARE LTD,Childrens Services,Children's Services,Foster Carer Agency Fees,,03/07/19, 703.92 ,321100,Social Community Care Supplies & Services - Children
5344180,SWIIS FOSTER CARE LTD,Childrens Services,Children's Services,Foster Carer Agency Fees,,03/07/19, 899.99 ,321100,Social Community Care Supplies & Services - Children
5344190,SWIIS FOSTER CARE LTD,Childrens Services,Children's Services,Foster Carer Agency Fees,,03/07/19, 784.98 ,321100,Social Community Care Supplies & Services - Children
5344192,SWIIS FOSTER CARE LTD,Childrens Services,Children's Services,Foster Carer Agency Fees,,03/07/19, 784.98 ,321100,Social Community Care Supplies & Services - Children
5344199,SWIIS FOSTER CARE LTD,Childrens Services,Children's Services,Foster Carer Agency Fees,,03/07/19, 760.48 ,321100,Social Community Care Supplies & Services - Children
5344166,SWIIS FOSTER CARE LTD,Childrens Services,Children's Services,Foster Carer Agency Fees,,03/07/19, 658.84 ,321100,Social Community Care Supplies & Services - Children
5344201,SWIIS FOSTER CARE LTD,Childrens Services,Children's Services,Foster Carer Agency Fees,,03/07/19, 676.97 ,321100,Social Community Care Supplies & Services - Children
5344184,SWIIS FOSTER CARE LTD,Childrens Services,Children's Services,Foster Carer Agency Fees,,03/07/19, 760.48 ,321100,Social Community Care Supplies & Services - Children
5346133,AGGREGATE INDUSTRIES UK LIMITED,(blank),(blank),Highway Construction,,03/07/19," 152,226.20 ",230000,Highway Equipment & Materials
5343619,Redacted,Childrens Services,Children's Services,Legal Fees,,03/07/19," 1,050.00 ",321100,Social Community Care Supplies & Services - Children
5343798,BARNARDO'S,Childrens Services,Children's Services,Foster Carer Agency Fees,,03/07/19," 3,587.14 ",-999999,Unclassifiable
5343853,BARNARDO'S,Childrens Services,Children's Services,Foster Carer Agency Fees,,03/07/19," 3,488.51 ",-999999,Unclassifiable
5344100,INTEC FOR BUSINESS LTD,Hosted Services,Hosted Services,Development Monies,,03/07/2019," 1,800.00 ",200000,Financial Services
5344098,TAMESIDE CITIZENS ADVICE BUREAU LTD,Operations and Neighbourhoods,Operations and Neighbourhoods,Grants to Citizens' Advice Bureau,,03/07/2019," 9,666.67 ",321000,Social Community Care Supplies & Services - Adult
5345700,QUALITY PROTECTS CHILDREN LTD,Childrens Services,Children's Services,Childrens Homes Outside Local Authority Fees,,03/07/19," 21,323.58 ",-999999,Unclassifiable
5346724,AUTUMN (UK) 2017 LIMITED,Housing,Director of Place,Improvement Grants - Final Mandatory,,03/07/2019," 4,283.00 ",321000,Social Community Care Supplies & Services - Adult
5347236,AQUINAS COLLEGE,Education,Children's Services,#N/A,,03/07/2019," 4,656.68 ",-999999,Unclassifiable
5344456,TOGETHER FOR MENTAL WELLBEING,Adult Social Care,Adults,Professional Services,,03/07/19," 12,762.00 ",321100,Social Community Care Supplies & Services - Children
5344359,Affinity Media,Policy and Communications,Governance,Professional Photography Services,,04/07/19, 700.00 ,-999999,Unclassifiable
5344322,NewCare Lodgings Limited,Childrens Services,Children's Services,Living With Formal Support,,04/07/19," 3,642.90 ",321100,Social Community Care Supplies & Services - Children
5344151,Presidion Ltd,Policy and Communications,Governance,Licences,,04/07/19," 2,164.00 ",150000,Consultancy
5344132,Compass Childrens Homes Limited,Childrens Services,Children's Services,Childrens Homes Outside Local Authority Fees,,04/07/19," 18,857.10 ",321100,Social Community Care Supplies & Services - Children
5344258,Andrew Uprichard Solicitors,Place,Growth,Professional Consultancy Services,,04/07/19," 2,628.20 ",280000,Legal Services
5347170,Hillgate Health Group Limited,Childrens Services,Children's Services,Living With Formal Support,,04/07/19," 1,179.36 ",-999999,Unclassifiable
5346666,CBS Building and Maintenance,Place,Growth,Building Maintenance,,04/07/19, 975.85 ,100000,Building Construction Materials
5346665,CBS Building and Maintenance,Place,Growth,Building Maintenance,,04/07/19," 4,049.86 ",100000,Building Construction Materials
5344046,CFS CARE LIMITED,Childrens Services,Children's Services,Living With Formal Support,,04/07/19," 4,873.00 ",321100,Social Community Care Supplies & Services - Children
5344367,Wellbeing Teams Group Ltd,Adult Social Care,Adults,Training Course Costs,,04/07/19," 5,500.00 ",150000,Consultancy
5346804,KL2 (Kappa Lambda Squared Limited),Operations and Neighbourhoods,Operations and Neighbourhoods,Computer Software,,04/07/19," 11,000.00 ",190000,Facilities & Management Services
5344799,PARADIGM CONSULTANCY & DEVELOPMENT AGENCY LTD,Childrens Services,Children's Services,Agency Staff,,04/07/19," 2,842.40 ",260000,Human Resources
3250718,ARNOLD PLANT HIRE LTD,Operations and Neighbourhoods,Operations and Neighbourhoods,Additional Hire,,04/07/19," 1,340.00 ",UNCLASS,Unclassifiable
3250718,DENNIS EAGLE LTD,Operations and Neighbourhoods,Operations and Neighbourhoods,General Materials,,04/07/19, 769.88 ,380000,Vehicle Management
3250718,F. R. SHARROCK LIMITED,Operations and Neighbourhoods,Operations and Neighbourhoods,General Materials,,04/07/19, 952.82 ,908001,Public Bodies
3250718,G B OILS TA CARLTON FUELS,Transport,Director of Place,Diesel Fuel,,04/07/19," 20,180.00 ",380000,Vehicle Management
3250718,HI-Q TYRESERVICES,Operations and Neighbourhoods,Operations and Neighbourhoods,Tyre Costs,,04/07/19," 1,599.50 ",380000,Vehicle Management
3250718,JOHNSTON SWEEPERS LTD,Operations and Neighbourhoods,Operations and Neighbourhoods,General Materials,,04/07/19," 1,224.05 ",180000,Environmental Services
3250718,SVR,Operations and Neighbourhoods,Operations and Neighbourhoods,Additional Hire,,04/07/19, 554.00 ,400001,Charities and Voluntary Organisations
3250718,TOLLAND PRECISION ENGINEERING LTD,Operations and Neighbourhoods,Operations and Neighbourhoods,General Materials,,04/07/19, 730.00 ,UNCLASS,Unclassifiable
3250718,A.R.B. SALES LTD,Operations and Neighbourhoods,Operations and Neighbourhoods,General Equipment Purchase,,24/07/19," 1,905.35 ",390000,"Works - Construction, Repair & Maintenance"
3250718,DAWSON RENTALS SWEEPERS,Operations and Neighbourhoods,Operations and Neighbourhoods,Replacement Hire,,04/07/19," 1,131.20 ",230000,Highway Equipment & Materials
5345575,Cushman and Wakefield Debenham Tie Leung Limited (C&WDTL),Cultural and Customer Services,"Community,Environmental,Adult and Health Services",External  Consultants,,04/07/19," 2,638.92 ",-999999,Unclassifiable
5344343,SAFEHOUSES NORTH LIMITED,Childrens Services,Children's Services,Foster Carer Agency Fees,,04/07/19," 3,456.60 ",321100,Social Community Care Supplies & Services - Children
5344353,SAFEHOUSES NORTH LIMITED,Childrens Services,Children's Services,Foster Carer Agency Fees,,04/07/19," 3,456.60 ",321100,Social Community Care Supplies & Services - Children
5344346,SAFEHOUSES NORTH LIMITED,Childrens Services,Children's Services,Foster Carer Agency Fees,,04/07/19," 3,638.70 ",321100,Social Community Care Supplies & Services - Children
5344349,SAFEHOUSES NORTH LIMITED,Childrens Services,Children's Services,Foster Carer Agency Fees,,04/07/19," 3,938.28 ",321100,Social Community Care Supplies & Services - Children
5345706,GREENSCAPE,Adult Social Care,Adults,Professional Services,,04/07/19," 1,221.70 ",390000,"Works - Construction, Repair & Maintenance"
5344141,FAB EVENTS LIMITED,Operations and Neighbourhoods,Operations and Neighbourhoods,Professional Entertainment Services,,04/07/19," 2,500.00 ",190000,Facilities & Management Services
5344142,FAB EVENTS LIMITED,Operations and Neighbourhoods,Operations and Neighbourhoods,Professional Entertainment Services,,04/07/19, 600.00 ,190000,Facilities & Management Services
5344232,TYNETEC,Adult Social Care,Adults,It Equipment,,04/07/19," 5,239.96 ",321100,Social Community Care Supplies & Services - Children
5347428,REGENDA LIMITED,Adult Social Care,Adults,Non-Authority Accommodation Rental,,04/07/19," 2,111.81 ",250000,Housing Management
5344186,TORDAN HEALTHCARE LTD,Childrens Services,Children's Services,Day Care Fees,,04/07/19," 5,532.40 ",310000,Healthcare
5344183,TORDAN HEALTHCARE LTD,Childrens Services,Children's Services,Day Care Fees,,04/07/19, 744.00 ,310000,Healthcare
5344379,CLOVERLEAF ADVOCACY 2000 LTD,Adult Social Care,Adults,Professional Services,,04/07/19," 12,408.34 ",321000,Social Community Care Supplies & Services - Adult
5346699,ABLE CARE AND SUPPORT SERVICES LTD,Adult Social Care,Adults,Homecare Fees,,04/07/19," 5,576.91 ",321000,Social Community Care Supplies & Services - Adult
5344383,Redacted,Hosted Services,Hosted Services,Professional Consultancy Services,Business Payment,04/07/19, 512.00 ,260000,Human Resources
5344335,PLATINUM STAIRLIFTS LIMITED,Housing,Director of Place,Improvement Grants - Final Mandatory,,04/07/19," 1,345.00 ",321000,Social Community Care Supplies & Services - Adult
5344384,PRISM MEDICAL UK,Housing,Director of Place,Improvement Grants - Final Mandatory,,04/07/19," 2,041.00 ",321000,Social Community Care Supplies & Services - Adult
5346332,INSPIREDSPACES TAMESIDE LTD,Asset & Investment Partnership Management,Growth,Professional Services,,04/07/19," 27,404.11 ",390000,"Works - Construction, Repair & Maintenance"
5344261,Northern Community Pathways Limited,Childrens Services,Children's Services,Living With Formal Support,,04/07/19," 3,605.00 ",321100,Social Community Care Supplies & Services - Children
5344260,Northern Community Pathways Limited,Childrens Services,Children's Services,Living With Formal Support,,04/07/2019," 2,540.00 ",321100,Social Community Care Supplies & Services - Children
5347317,STOCKPORT MBC,People and Workforce Development,Governance,Fees,,04/07/19, 712.48 ,321100,Social Community Care Supplies & Services - Children
5343892,XAVERIAN COLLEGE,Education,Children's Services,#N/A,,04/07/19," 3,106.00 ",-999999,Unclassifiable
5344355,Redacted,Childrens Services,Children's Services,Childrens Homes Outside Local Authority Fees,Redacted Supplier,04/07/19," 12,178.66 ",321100,Social Community Care Supplies & Services - Children
5344356,Redacted,Adult Social Care,Adults,Homecare Fees,Redacted Supplier,04/07/19," 1,973.12 ",321100,Social Community Care Supplies & Services - Children
5344352,MAGNA BOOK LTD,Operations and Neighbourhoods,Operations and Neighbourhoods,Purchase Books,,04/07/19, 550.60 ,170000,Education
5344294,CAPSTONE FOSTER CARE,Childrens Services,Children's Services,Foster Carer Agency Fees,,04/07/19," 3,420.00 ",321000,Social Community Care Supplies & Services - Adult
5344394,CAPSTONE FOSTER CARE,Childrens Services,Children's Services,Foster Carer Agency Fees,,04/07/19," 3,420.00 ",321000,Social Community Care Supplies & Services - Adult
5344403,CAPSTONE FOSTER CARE,Childrens Services,Children's Services,Foster Carer Agency Fees,,04/07/19," 3,295.80 ",321000,Social Community Care Supplies & Services - Adult
5344392,CAPSTONE FOSTER CARE,Childrens Services,Children's Services,Foster Carer Agency Fees,,04/07/19," 3,724.20 ",321000,Social Community Care Supplies & Services - Adult
5344399,CAPSTONE FOSTER CARE,Childrens Services,Children's Services,Foster Carer Agency Fees,,04/07/19," 3,686.96 ",321000,Social Community Care Supplies & Services - Adult
5344396,CAPSTONE FOSTER CARE,Childrens Services,Children's Services,Foster Carer Agency Fees,,04/07/19," 3,177.90 ",321000,Social Community Care Supplies & Services - Adult
5344398,CAPSTONE FOSTER CARE,Childrens Services,Children's Services,Foster Carer Agency Fees,,04/07/19," 3,177.90 ",321000,Social Community Care Supplies & Services - Adult
5344393,CAPSTONE FOSTER CARE,Childrens Services,Children's Services,Foster Carer Agency Fees,,04/07/19," 3,177.90 ",321000,Social Community Care Supplies & Services - Adult
5344400,CAPSTONE FOSTER CARE,Childrens Services,Children's Services,Foster Carer Agency Fees,,04/07/19," 3,177.90 ",321000,Social Community Care Supplies & Services - Adult
5344404,CAPSTONE FOSTER CARE,Childrens Services,Children's Services,Foster Carer Agency Fees,,04/07/19," 3,182.65 ",321000,Social Community Care Supplies & Services - Adult
5344405,CAPSTONE FOSTER CARE,Childrens Services,Children's Services,Foster Carer Agency Fees,,04/07/19," 3,385.80 ",321000,Social Community Care Supplies & Services - Adult
5344292,CAPSTONE FOSTER CARE,Childrens Services,Children's Services,Foster Carer Agency Fees,,04/07/19," 3,835.80 ",321000,Social Community Care Supplies & Services - Adult
5344410,CAPSTONE FOSTER CARE,Childrens Services,Children's Services,Foster Carer Agency Fees,,04/07/19," 3,835.80 ",321000,Social Community Care Supplies & Services - Adult
5344409,CAPSTONE FOSTER CARE,Childrens Services,Children's Services,Foster Carer Agency Fees,,04/07/19," 3,295.80 ",321000,Social Community Care Supplies & Services - Adult
5344402,CAPSTONE FOSTER CARE,Childrens Services,Children's Services,Foster Carer Agency Fees,,04/07/19," 6,814.20 ",321000,Social Community Care Supplies & Services - Adult
5341612,MANLEC ELECTRICAL(MANCHESTER) LTD,Housing,Director of Place,Adaptations - Jobs <#500,,04/07/19, 822.00 ,390000,"Works - Construction, Repair & Maintenance"
5346304,BOLTON MBC,Childrens Services,Children's Services,Professional Services,,04/07/19," 11,890.00 ",UNCLASS,Unclassifiable
5346558,RMD CONTRACTS LTD,Place,Growth,It Control Room Equipment,,04/07/19," 5,033.30 ",390000,"Works - Construction, Repair & Maintenance"
5347512,WORLDPAY,Finance,Finance & IT,National Giro,,04/07/19," 9,913.92 ",200000,Financial Services
5347523,HMCTS (FOR PAYMENT BY ACCOUNT),Childrens Services,Children's Services,Court Fees,,04/07/19," 31,123.00 ",-999999,Unclassifiable
5347519,HMCTS (FOR PAYMENT BY ACCOUNT),Adult Social Care,Adults,Court Fees,,04/07/19, 507.27 ,-999999,Unclassifiable
5347526,HMCTS (FOR PAYMENT BY ACCOUNT),Exchequer,Governance,Court Fees,,04/07/19," 2,391.50 ",-999999,Unclassifiable
5347491,CAPITA - BENEFIT PAYMENTS,Exchequer,Governance,Housing Benefit Payments,,04/07/2019," 3,859,065.25 ",-999999,Unclassifiable
5347501,CAPITA - BENEFIT PAYMENTS,Exchequer,Governance,Housing Benefit Payments,,04/07/19," 29,126.52 ",-999999,Unclassifiable
5347496,AD HOC CHAPS PAYMENT,Multiple Heads of Service,Multiple Strategic Directorates,Debits Superann Local Govt,,04/07/19," 483,137.14 ",400002,Chaps Payments
5347496,AD HOC CHAPS PAYMENT,(blank),(blank),Debits Superann Local Govt,,04/07/19," 1,105.29 ",400002,Chaps Payments
5347505,AD HOC CHAPS PAYMENT,Hosted Services,Hosted Services,Contributions,,04/07/19," 4,800,000.00 ",400002,Chaps Payments
5347493,AD HOC CHAPS PAYMENT,Multiple Heads of Service,Multiple Strategic Directorates,Salaries & Wages Advances(Hold),,04/07/19, 653.70 ,400002,Chaps Payments
5344745,Alzheimers Society,Adult Social Care,Adults,Project Costs,,05/07/19," 27,145.00 ",-999999,Unclassifiable
5344929,Complete Care & Enablement Services LTD,Adult Social Care,Adults,Residential Home Long Stay Fees,,05/07/19," 3,157.56 ",321000,Social Community Care Supplies & Services - Adult
5344930,Complete Care & Enablement Services LTD,Adult Social Care,Adults,Residential Home Long Stay Fees,,05/07/19," 4,315.40 ",321000,Social Community Care Supplies & Services - Adult
5346846,Greater Manchester Alternative Provision,Education,Children's Services,#N/A,,05/07/19," 1,430.00 ",170000,Education
5344984,Medgen Limited,Childrens Services,Children's Services,Day Care Fees,,05/07/19," 1,295.28 ",260000,Human Resources
5344933,Redacted,Childrens Services,Children's Services,Childrens Homes Outside Local Authority Fees,,05/07/19," 19,874.00 ",170000,Education
5344936,Redacted,Childrens Services,Children's Services,Childrens Homes Outside Local Authority Fees,,05/07/19," 58,833.33 ",170000,Education
5347434,Montrose Recruitment Limited TA Montrose Living,Childrens Services,Children's Services,Living With Formal Support,,05/07/19," 4,073.70 ",321100,Social Community Care Supplies & Services - Children
5344556,Mazars LLP,Corporate Costs,Corporate Costs,Audit Commission Fees,,05/07/19," 20,218.00 ",-999999,Unclassifiable
5344800,Redacted,Education,Children's Services,Other Local Authorities Fees,,05/07/19," 2,195.66 ",170000,Education
5344557,Randstad HR Solution Ltd T/A Student Worker Support,Individual Schools Budget,Children's Services,Professional Services,,05/07/19," 1,836.00 ",321000,Social Community Care Supplies & Services - Adult
5344558,Home Instead Senior Care,Adult Social Care,Adults,Day Care Fees,,05/07/19," 1,773.10 ",321000,Social Community Care Supplies & Services - Adult
5344559,Capita Resourcing Ltd trading as Veredus,Education,Children's Services,"Marketing, Publicity and Recruitment",,05/07/19," 4,000.00 ",-999999,Unclassifiable
5344801,Redacted,Education,Children's Services,Other Local Authorities Fees,,05/07/19," 1,618.25 ",170000,Education
5344560,Redacted,Childrens Services,Children's Services,Professional Child Services,,05/07/19," 3,648.00 ",170000,Education
5344564,iCare Solutions,Adult Social Care,Adults,Homecare Fees,,05/07/19," 4,453.16 ",310000,Healthcare
5344566,iCare Solutions,Adult Social Care,Adults,Homecare Fees,,05/07/19," 4,520.85 ",310000,Healthcare
5344562,iCare Solutions,Adult Social Care,Adults,Homecare Fees,,05/07/2019," 4,177.20 ",310000,Healthcare
5344570,Hawkis-SWS Limited,Childrens Services,Children's Services,Professional Child Services,,05/07/19," 2,172.30 ",321000,Social Community Care Supplies & Services - Adult
5344945,Quayside Childcare Limited,Childrens Services,Children's Services,Professional Services,,05/07/19," 5,730.00 ",360000,Public Transport
5344542,YOUNG PEOPLE FIRST LIMITED,Childrens Services,Children's Services,Living With Formal Support,,05/07/19," 5,838.00 ",321100,Social Community Care Supplies & Services - Children
5344449,CFS CARE LIMITED,Childrens Services,Children's Services,Living With Formal Support,,05/07/19, 684.00 ,321100,Social Community Care Supplies & Services - Children
5347545,Redacted,Childrens Services,Children's Services,Foster Care Placement Task,,05/07/19, 501.38 ,400000,Non 3rd Party spend  
5344738,PENNINE CARE NHS TRUST,Population Health,Population Health,Professional Services,,05/07/19," 7,403.00 ",321000,Social Community Care Supplies & Services - Adult
5344741,PENNINE CARE NHS TRUST,Population Health,Population Health,Professional Services,,05/07/19," 33,883.46 ",321000,Social Community Care Supplies & Services - Adult
5344740,PENNINE CARE NHS TRUST,Population Health,Population Health,Professional Services,,05/07/19," 16,414.88 ",321000,Social Community Care Supplies & Services - Adult
5344739,PENNINE CARE NHS TRUST,Population Health,Population Health,Professional Services,,05/07/19," 170,490.04 ",321000,Social Community Care Supplies & Services - Adult
5347484,Redacted,Childrens Services,Children's Services,Adoption Allowances,,05/07/19," 4,489.60 ",-999999,Unclassifiable
5347187,Redacted,Childrens Services,Children's Services,Professional Child Services,,05/07/19," 3,000.00 ",321100,Social Community Care Supplies & Services - Children
5346791,WORKS 4U SUPPORT SERVICES LIMITED,Education,Children's Services,#N/A,,05/07/19," 4,875.00 ",260000,Human Resources
5346790,WORKS 4U SUPPORT SERVICES LIMITED,Education,Children's Services,#N/A,,05/07/19," 9,700.00 ",260000,Human Resources
5346789,WORKS 4U SUPPORT SERVICES LIMITED,Education,Children's Services,#N/A,,05/07/19," 7,800.00 ",260000,Human Resources
5347186,GREENSCAPE,Adult Social Care,Adults,Professional Services,,05/07/2019," 1,221.70 ",390000,"Works - Construction, Repair & Maintenance"
5347188,GREENSCAPE,Operations and Neighbourhoods,Operations and Neighbourhoods,Highway Improvements,,05/07/19," 1,050.00 ",390000,"Works - Construction, Repair & Maintenance"
5344182,Randstad Public Services Limited,Education,Children's Services,Agency Staff,,05/07/19, 572.50 ,170000,Education
5344505,Randstad Public Services Limited,Individual Schools Budget,Children's Services,Agency Staff,,05/07/19, 565.00 ,170000,Education
5344508,Randstad Public Services Limited,Individual Schools Budget,Children's Services,Agency Staff,,05/07/19, 940.00 ,170000,Education
5344506,Randstad Public Services Limited,Individual Schools Budget,Children's Services,Agency Staff,,05/07/19," 1,025.00 ",170000,Education
5344500,Randstad Public Services Limited,Individual Schools Budget,Children's Services,Agency Staff,,05/07/19," 1,025.00 ",170000,Education
5344502,Randstad Public Services Limited,Individual Schools Budget,Children's Services,Agency Staff,,05/07/19," 1,025.00 ",170000,Education
5347489,CYCLESCHEME LTD,Multiple Heads of Service,Multiple Strategic Directorates,Debits,,05/07/19," 2,250.00 ",-999999,Unclassifiable
5344513,Redacted,Population Health,Population Health,Child Care Fees,,05/07/19," 1,040.00 ",321100,Social Community Care Supplies & Services - Children
5346921,NORCOMM (UK) LTD,Childrens Services,Children's Services,Computer Hardware Purchase,,05/07/19," 1,992.04 ",270000,Information Communication Technology
5346919,NORCOMM (UK) LTD,(blank),(blank),Cabling/Diversion Works,,05/07/19," 3,726.00 ",270000,Information Communication Technology
5346917,NORCOMM (UK) LTD,Place,Growth,Computer Software Maintenance Costs,,05/07/19, 897.75 ,270000,Information Communication Technology
5346916,NORCOMM (UK) LTD,Place,Growth,Computer Software Maintenance Costs,,05/07/19, 711.25 ,270000,Information Communication Technology
5346739,HUGH MASON PROPERTIES LIMITED,Adult Social Care,Adults,Non-Authority Accommodation Rental,,05/07/19," 2,436.55 ",190000,Facilities & Management Services
5346743,HUGH MASON PROPERTIES LIMITED,Adult Social Care,Adults,Non-Authority Accommodation Rental,,05/07/19," 2,428.60 ",190000,Facilities & Management Services
5347578,Redacted,Childrens Services,Children's Services,Foster Care Placement Task,,05/07/19," 2,234.04 ",-999999,Unclassifiable
5345016,VIP-SYSTEM LIMITED,Operations and Neighbourhoods,Operations and Neighbourhoods,General Materials,,05/07/19," 2,602.61 ",380000,Vehicle Management
5346740,NORTHERN PROPERTIES LTD,Adult Social Care,Adults,Non-Authority Accommodation Rental,,05/07/19," 1,934.79 ",190000,Facilities & Management Services
5345447,COMFORT CALL LIMITED,Adult Social Care,Adults,Homecare Fees,,05/07/19," 12,515.75 ",310000,Healthcare
5346956,COMFORT CALL LIMITED,Adult Social Care,Adults,Homecare Fees,,05/07/19," 11,963.42 ",310000,Healthcare
5344621,ENABLING FUTURES LTD,Childrens Services,Children's Services,Childrens Homes Outside Local Authority Fees,,05/07/19," 15,057.14 ",321100,Social Community Care Supplies & Services - Children
5345020,Redacted,Childrens Services,Children's Services,Living With Formal Support,Redacted Supplier,05/07/19," 4,619.31 ",321000,Social Community Care Supplies & Services - Adult
5345019,Redacted,Childrens Services,Children's Services,Living With Formal Support,Redacted Supplier,05/07/19," 4,592.65 ",321000,Social Community Care Supplies & Services - Adult
5345021,Redacted,Childrens Services,Children's Services,Living With Formal Support,Redacted Supplier,05/07/19," 4,619.31 ",321000,Social Community Care Supplies & Services - Adult
5345036,TORDAN HEALTHCARE LTD,Childrens Services,Children's Services,Day Care Fees,,05/07/19, 650.00 ,310000,Healthcare
5339925,TORDAN HEALTHCARE LTD,Childrens Services,Children's Services,Day Care Fees,,05/07/19," 1,396.08 ",310000,Healthcare
5345031,TORDAN HEALTHCARE LTD,Childrens Services,Children's Services,Day Care Fees,,05/07/19, 975.00 ,310000,Healthcare
5347554,Redacted,Childrens Services,Children's Services,Foster Care Placement Task,,05/07/19," 2,630.76 ",-999999,Unclassifiable
5344829,Transunion Internal UK Limited,Hosted Services,Hosted Services,Professional Services,,05/07/19," 13,400.00 ",150000,Consultancy
5344675,HEALTH DEVELOPMENT CONSULTANCY LTD,Population Health,Population Health,Professional Consultancy Services,,05/07/19," 4,000.00 ",150000,Consultancy
5344676,HEALTH DEVELOPMENT CONSULTANCY LTD,Population Health,Population Health,Professional Consultancy Services,,05/07/19," 4,000.00 ",150000,Consultancy
5344735,THREE CIRCLES FOSTERING LTD,Childrens Services,Children's Services,Foster Carer Agency Fees,,05/07/19," 3,534.00 ",321100,Social Community Care Supplies & Services - Children
5344736,THREE CIRCLES FOSTERING LTD,Childrens Services,Children's Services,Foster Carer Agency Fees,,05/07/2019," 3,534.00 ",321100,Social Community Care Supplies & Services - Children
5344733,THREE CIRCLES FOSTERING LTD,Childrens Services,Children's Services,Foster Carer Agency Fees,,05/07/19," 2,508.00 ",321100,Social Community Care Supplies & Services - Children
5344729,THREE CIRCLES FOSTERING LTD,Childrens Services,Children's Services,Foster Carer Agency Fees,,05/07/19," 2,781.81 ",321100,Social Community Care Supplies & Services - Children
5344724,THREE CIRCLES FOSTERING LTD,Childrens Services,Children's Services,Foster Carer Agency Fees,,05/07/19," 3,387.86 ",321100,Social Community Care Supplies & Services - Children
5344731,THREE CIRCLES FOSTERING LTD,Childrens Services,Children's Services,Foster Carer Agency Fees,,05/07/19," 2,945.66 ",321100,Social Community Care Supplies & Services - Children
5344734,THREE CIRCLES FOSTERING LTD,Childrens Services,Children's Services,Foster Carer Agency Fees,,05/07/19," 3,534.00 ",321100,Social Community Care Supplies & Services - Children
5344737,THREE CIRCLES FOSTERING LTD,Childrens Services,Children's Services,Foster Carer Agency Fees,,05/07/19," 3,534.00 ",321100,Social Community Care Supplies & Services - Children
5344720,THREE CIRCLES FOSTERING LTD,Childrens Services,Children's Services,Foster Carer Agency Fees,,05/07/19," 3,534.00 ",321100,Social Community Care Supplies & Services - Children
5344727,THREE CIRCLES FOSTERING LTD,Childrens Services,Children's Services,Foster Carer Agency Fees,,05/07/19," 2,893.08 ",321100,Social Community Care Supplies & Services - Children
5344722,THREE CIRCLES FOSTERING LTD,Childrens Services,Children's Services,Foster Carer Agency Fees,,05/07/19," 1,802.43 ",321100,Social Community Care Supplies & Services - Children
5344723,THREE CIRCLES FOSTERING LTD,Childrens Services,Children's Services,Foster Carer Agency Fees,,05/07/19," 5,301.00 ",321100,Social Community Care Supplies & Services - Children
5344725,THREE CIRCLES FOSTERING LTD,Childrens Services,Children's Services,Foster Carer Agency Fees,,05/07/19," 3,077.86 ",321100,Social Community Care Supplies & Services - Children
5344726,THREE CIRCLES FOSTERING LTD,Childrens Services,Children's Services,Foster Carer Agency Fees,,05/07/19," 3,016.74 ",321100,Social Community Care Supplies & Services - Children
5344830,CITY LIFT SERVICES (NW) LTD,Housing,Director of Place,Adaptations - Jobs #300-#1000,,05/07/19," 1,450.00 ",390000,"Works - Construction, Repair & Maintenance"
5347488,TOPMARK CLAIMS MANAGEMENT LTD,Multiple Heads of Service,Multiple Strategic Directorates,Reimbursement Paid To Insurers,,05/07/19," 39,795.00 ",280000,Legal Services
5345034,VIRGIN CARE SERVICES - NON SURREY,Population Health,Population Health,Professional Services,,05/07/19, 833.00 ,150000,Consultancy
5342886,Redacted,Childrens Services,Children's Services,Living With Formal Support,Redacted Supplier,05/07/19," 2,250.00 ",321000,Social Community Care Supplies & Services - Adult
5342866,Redacted,Education,Children's Services,#N/A,,05/07/19," 2,305.00 ",-999999,Unclassifiable
5342480,Redacted,Education,Children's Services,#N/A,,05/07/19," 1,647.00 ",-999999,Unclassifiable
5342493,Redacted,Education,Children's Services,#N/A,,05/07/19," 1,098.00 ",-999999,Unclassifiable
5344967,CARE 4 CHILDREN RESIDENTIAL SERVICES LTD,Childrens Services,Children's Services,Foster Carer Agency Fees,,05/07/19, 642.84 ,321100,Social Community Care Supplies & Services - Children
5344975,CARE 4 CHILDREN RESIDENTIAL SERVICES LTD,Childrens Services,Children's Services,Foster Carer Agency Fees,,05/07/19," 3,162.90 ",321100,Social Community Care Supplies & Services - Children
5344970,CARE 4 CHILDREN RESIDENTIAL SERVICES LTD,Childrens Services,Children's Services,Foster Carer Agency Fees,,05/07/19," 3,385.80 ",321100,Social Community Care Supplies & Services - Children
5345029,CARE 4 CHILDREN RESIDENTIAL SERVICES LTD,Childrens Services,Children's Services,Foster Carer Agency Fees,,05/07/19," 2,935.50 ",321100,Social Community Care Supplies & Services - Children
5344972,CARE 4 CHILDREN RESIDENTIAL SERVICES LTD,Childrens Services,Children's Services,Foster Carer Agency Fees,,05/07/2019," 2,850.00 ",321100,Social Community Care Supplies & Services - Children
5344968,CARE 4 CHILDREN RESIDENTIAL SERVICES LTD,Childrens Services,Children's Services,Foster Carer Agency Fees,,05/07/19, 636.42 ,321100,Social Community Care Supplies & Services - Children
5345030,CARE 4 CHILDREN RESIDENTIAL SERVICES LTD,Childrens Services,Children's Services,Foster Carer Agency Fees,,05/07/19," 4,262.70 ",321100,Social Community Care Supplies & Services - Children
5344107,Redacted,Childrens Services,Children's Services,Childrens Homes Outside Local Authority Fees,Redacted Supplier,05/07/19," 12,621.00 ",321100,Social Community Care Supplies & Services - Children
5344997,Redacted,Education,Children's Services,#N/A,Redacted Supplier,05/07/19," 13,689.00 ",321100,Social Community Care Supplies & Services - Children
5344999,Redacted,Education,Children's Services,#N/A,Redacted Supplier,05/07/19," 13,689.00 ",321100,Social Community Care Supplies & Services - Children
5344595,Redacted,Childrens Services,Children's Services,Legal Fees,Business Payment,05/07/19, 650.00 ,310000,Healthcare
5344563,DEKKO WINDOW SYSTEMS LTD,Place,Growth,Gas,,05/07/19," 1,595.00 ",370000,Utilities
5344875,SAFFER COOPER CONSULTANCY,Place,Growth,Professional Consultancy Services,,05/07/19, 990.00 ,150000,Consultancy
5343909,INDUSTRIAL WATER TRAINING SERVICES LTD,Operations and Neighbourhoods,Operations and Neighbourhoods,Training Course Costs,,05/07/19," 1,000.00 ",260000,Human Resources
5344453,CIPFA - PENNA (PENNA PLC),Place,Growth,Agency Staff,,05/07/19," 2,450.00 ",260000,Human Resources
5344528,NATIONAL FOSTERING AGENCY LTD,Childrens Services,Children's Services,Foster Carer Agency Fees,,05/07/19," 3,116.74 ",321100,Social Community Care Supplies & Services - Children
5344531,NATIONAL FOSTERING AGENCY LTD,Childrens Services,Children's Services,Foster Carer Agency Fees,,05/07/19," 3,092.25 ",321100,Social Community Care Supplies & Services - Children
5344530,NATIONAL FOSTERING AGENCY LTD,Childrens Services,Children's Services,Foster Carer Agency Fees,,05/07/19," 3,095.66 ",321100,Social Community Care Supplies & Services - Children
5344527,NATIONAL FOSTERING AGENCY LTD,Childrens Services,Children's Services,Foster Carer Agency Fees,,05/07/19," 3,116.74 ",321100,Social Community Care Supplies & Services - Children
5344529,NATIONAL FOSTERING AGENCY LTD,Childrens Services,Children's Services,Foster Carer Agency Fees,,05/07/19," 3,218.42 ",321100,Social Community Care Supplies & Services - Children
5344600,DURHAM COUNTY COUNCIL,Childrens Services,Children's Services,Childrens Homes Outside Local Authority Fees,,05/07/19," 31,806.00 ",270000,Information Communication Technology
5344602,FOSTERING LIMITED,Childrens Services,Children's Services,Foster Carer Agency Fees,,05/07/19, 880.00 ,321100,Social Community Care Supplies & Services - Children
5344604,FOSTERING LIMITED,Childrens Services,Children's Services,Foster Carer Agency Fees,,05/07/2019, 880.00 ,321100,Social Community Care Supplies & Services - Children
5346983,CARELINE HOMECARE LTD,Adult Social Care,Adults,Homecare Fees,,05/07/19," 12,183.00 ",321000,Social Community Care Supplies & Services - Adult
5345008,CARETECH COMMUNITY SERVICES LIMITED,Adult Social Care,Adults,Residential Home Long Stay Fees,,05/07/19," 3,680.72 ",321000,Social Community Care Supplies & Services - Adult
5345015,CARETECH COMMUNITY SERVICES LIMITED,Adult Social Care,Adults,Residential Home Long Stay Fees,,05/07/19," 1,983.64 ",321000,Social Community Care Supplies & Services - Adult
5345018,CARETECH COMMUNITY SERVICES LIMITED,Adult Social Care,Adults,Residential Home Long Stay Fees,,05/07/19," 2,706.48 ",321000,Social Community Care Supplies & Services - Adult
5345009,CARETECH COMMUNITY SERVICES LIMITED,Adult Social Care,Adults,Residential Home Long Stay Fees,,05/07/19," 3,866.40 ",321000,Social Community Care Supplies & Services - Adult
5345014,CARETECH COMMUNITY SERVICES LIMITED,Adult Social Care,Adults,Residential Home Long Stay Fees,,05/07/19," 4,890.72 ",321000,Social Community Care Supplies & Services - Adult
5345006,CARETECH COMMUNITY SERVICES LIMITED,Adult Social Care,Adults,Residential Home Long Stay Fees,,05/07/19," 6,440.56 ",321000,Social Community Care Supplies & Services - Adult
5345025,CARETECH COMMUNITY SERVICES LIMITED,Adult Social Care,Adults,Homecare Fees,,05/07/19," 4,817.88 ",321000,Social Community Care Supplies & Services - Adult
5345011,CARETECH COMMUNITY SERVICES LIMITED,Adult Social Care,Adults,Residential Home Long Stay Fees,,05/07/19," 4,059.72 ",321000,Social Community Care Supplies & Services - Adult
5345017,CARETECH COMMUNITY SERVICES LIMITED,Adult Social Care,Adults,Residential Home Long Stay Fees,,05/07/19," 4,059.72 ",321000,Social Community Care Supplies & Services - Adult
5345023,CARETECH COMMUNITY SERVICES LIMITED,Adult Social Care,Adults,Residential Home Long Stay Fees,,05/07/19," 2,706.48 ",321000,Social Community Care Supplies & Services - Adult
5345012,CARETECH COMMUNITY SERVICES LIMITED,Adult Social Care,Adults,Residential Home Long Stay Fees,,05/07/19," 3,157.56 ",321000,Social Community Care Supplies & Services - Adult
5345013,CARETECH COMMUNITY SERVICES LIMITED,Adult Social Care,Adults,Residential Home Long Stay Fees,,05/07/19," 6,440.56 ",321000,Social Community Care Supplies & Services - Adult
5344605,THE ADOLESCENT & CHILDRENS TRUST,Childrens Services,Children's Services,Foster Carer Agency Fees,,05/07/19," 2,898.84 ",321100,Social Community Care Supplies & Services - Children
5344606,THE ADOLESCENT & CHILDRENS TRUST,Childrens Services,Children's Services,Foster Carer Agency Fees,,05/07/19," 3,503.00 ",321100,Social Community Care Supplies & Services - Children
5344926,Pertemps Professional Recruitment Limited,Childrens Services,Children's Services,Agency Staff,,05/07/19," 1,044.81 ",321100,Social Community Care Supplies & Services - Children
5344844,Pertemps Professional Recruitment Limited,Childrens Services,Children's Services,Agency Staff,,05/07/19," 1,319.76 ",321100,Social Community Care Supplies & Services - Children
5344924,Pertemps Professional Recruitment Limited,Childrens Services,Children's Services,Agency Staff,,05/07/19," 1,427.76 ",321100,Social Community Care Supplies & Services - Children
5344846,Pertemps Professional Recruitment Limited,Childrens Services,Children's Services,Agency Staff,,05/07/19," 1,427.76 ",321100,Social Community Care Supplies & Services - Children
5344610,DHL Parcel UK Ltd (UK Mail),Exchequer,Governance,Printing And Stationery,,05/07/19," 1,961.14 ",300000,Mail Services
5346991,Smartway Health and Social Care Limited,Adult Social Care,Adults,Homecare Fees,,05/07/19," 2,027.61 ",321000,Social Community Care Supplies & Services - Adult
5344865,Reflexion Care Group - New Reflexions,Childrens Services,Children's Services,Childrens Homes Outside Local Authority Fees,,05/07/19," 1,113.00 ",321100,Social Community Care Supplies & Services - Children
5344922,Northern Community Pathways Limited,Childrens Services,Children's Services,Cash Grants,,05/07/19, 579.00 ,321100,Social Community Care Supplies & Services - Children
5344922,Northern Community Pathways Limited,Childrens Services,Children's Services,Living With Formal Support,,05/07/19," 6,350.00 ",321100,Social Community Care Supplies & Services - Children
5344916,Compass Fostering North LTD,Childrens Services,Children's Services,Foster Carer Agency Fees,,05/07/19," 3,120.04 ",321100,Social Community Care Supplies & Services - Children
5344796,STOCKPORT CP  SOCIETY,Adult Social Care,Adults,Homecare Fees,,05/07/19," 1,016.40 ",321000,Social Community Care Supplies & Services - Adult
5344488,XMA LIMITED,Digital Tameside,Finance & IT,It Equipment,,05/07/19," 79,353.00 ",270000,Information Communication Technology
5344869,PROGRESS CARE HOUSING ASSOCIATION LIMITED,Adult Social Care,Adults,Non-Authority Accommodation Rental,,05/07/19," 5,661.49 ",250000,Housing Management
5347525,Redacted,Education,Children's Services,Transport Of Pupils,Business Payment,05/07/19," 1,875.00 ",360000,Public Transport
5347522,Redacted,Education,Children's Services,Transport Of Pupils,Business Payment,05/07/2019," 1,875.00 ",360000,Public Transport
5347315,GREATER MANCHESTER COMBINED AUTHORITY,Adult Social Care,Adults,Contributions,,05/07/19," 23,511.00 ",-999999,Unclassifiable
5344619,CIVICA UK LIMITED,Operations and Neighbourhoods,Operations and Neighbourhoods,Computer Software,,05/07/19, 500.00 ,270000,Information Communication Technology
5344867,DARTINGTON HALL TRUST,Adult Social Care,Adults,Professional Services,,05/07/19," 12,834.00 ",150000,Consultancy
5344444,PARALLEL PARENTS,Childrens Services,Children's Services,Foster Carer Agency Fees,,05/07/19," 5,314.33 ",321100,Social Community Care Supplies & Services - Children
5344464,PARALLEL PARENTS,Childrens Services,Children's Services,Foster Carer Agency Fees,,05/07/19," 3,241.98 ",321100,Social Community Care Supplies & Services - Children
5344461,PARALLEL PARENTS,Childrens Services,Children's Services,Foster Carer Agency Fees,,05/07/19," 2,864.40 ",321100,Social Community Care Supplies & Services - Children
5344450,PARALLEL PARENTS,Childrens Services,Children's Services,Foster Carer Agency Fees,,05/07/19," 3,310.18 ",321100,Social Community Care Supplies & Services - Children
5344468,PARALLEL PARENTS,Childrens Services,Children's Services,Foster Carer Agency Fees,,05/07/19," 3,646.95 ",321100,Social Community Care Supplies & Services - Children
5344452,PARALLEL PARENTS,Childrens Services,Children's Services,Foster Carer Agency Fees,,05/07/19," 3,211.60 ",321100,Social Community Care Supplies & Services - Children
5344446,PARALLEL PARENTS,Childrens Services,Children's Services,Foster Carer Agency Fees,,05/07/19," 3,211.60 ",321100,Social Community Care Supplies & Services - Children
5344455,PARALLEL PARENTS,Childrens Services,Children's Services,Foster Carer Agency Fees,,05/07/19," 3,212.53 ",321100,Social Community Care Supplies & Services - Children
5344469,PARALLEL PARENTS,Childrens Services,Children's Services,Foster Carer Agency Fees,,05/07/19," 3,527.18 ",321100,Social Community Care Supplies & Services - Children
5344441,PARALLEL PARENTS,Childrens Services,Children's Services,Foster Carer Agency Fees,,05/07/19," 2,982.20 ",321100,Social Community Care Supplies & Services - Children
5344459,PARALLEL PARENTS,Childrens Services,Children's Services,Foster Carer Agency Fees,,05/07/19," 3,527.18 ",321100,Social Community Care Supplies & Services - Children
5344467,PARALLEL PARENTS,Childrens Services,Children's Services,Foster Carer Agency Fees,,05/07/19," 3,527.18 ",321100,Social Community Care Supplies & Services - Children
5344457,PARALLEL PARENTS,Childrens Services,Children's Services,Foster Carer Agency Fees,,05/07/19," 3,096.90 ",321100,Social Community Care Supplies & Services - Children
5344466,PARALLEL PARENTS,Childrens Services,Children's Services,Foster Carer Agency Fees,,05/07/2019," 3,813.00 ",321100,Social Community Care Supplies & Services - Children
5347487,WIGAN MBC,People and Workforce Development,Governance,"Marketing, Publicity and Recruitment",,05/07/19," 1,200.00 ",UNCLASS,Unclassifiable
5344489,TEACHING PERSONNEL LTD,Individual Schools Budget,Children's Services,Agency Staff,,05/07/19, 587.76 ,260000,Human Resources
5344487,TEACHING PERSONNEL LTD,Individual Schools Budget,Children's Services,Agency Staff,,05/07/19, 989.15 ,260000,Human Resources
5345771,CREATIVE SUPPORT LTD,Adult Social Care,Adults,Residential Home Long Stay Fees,,05/07/19," 1,817.20 ",321000,Social Community Care Supplies & Services - Adult
5344641,GLASDON UK LTD,Operations and Neighbourhoods,Operations and Neighbourhoods,General Materials,,05/07/19, 533.32 ,230000,Highway Equipment & Materials
5344650,ULVERSCROFT LARGE PRINT  BOOKS LTD,Operations and Neighbourhoods,Operations and Neighbourhoods,Purchase Books,,05/07/19, 731.50 ,170000,Education
5344474,NOMIX-ENVIRO LTD,Operations and Neighbourhoods,Operations and Neighbourhoods,Professional Weedspraying Services,,05/07/19," 1,455.00 ",240000,Horticultural
5344603,IDN SUPPLIES LTD,Multiple Heads of Service,Multiple Strategic Directorates,Communications Equipment,,05/07/19, 798.00 ,170000,Education
5344421,CAPSTONE FOSTER CARE,Childrens Services,Children's Services,Foster Carer Agency Fees,,05/07/19," 3,835.80 ",321000,Social Community Care Supplies & Services - Adult
5344839,CAPSTONE FOSTER CARE,Childrens Services,Children's Services,Foster Carer Agency Fees,,05/07/19," 3,295.80 ",321000,Social Community Care Supplies & Services - Adult
5344843,SARABEC LIMITED,Adult Social Care,Adults,It Equipment,,05/07/19," 1,793.75 ",321100,Social Community Care Supplies & Services - Children
5344683,KILLGERM CHEMICALS LTD,Operations and Neighbourhoods,Operations and Neighbourhoods,Pest Control Equipment,,05/07/19," 1,595.02 ",180000,Environmental Services
5344584,SWIIS FOSTER CARE LTD,Childrens Services,Children's Services,Foster Carer Agency Fees,,05/07/19, 660.10 ,321100,Social Community Care Supplies & Services - Children
5344712,SWIIS FOSTER CARE LTD,Childrens Services,Children's Services,Foster Carer Agency Fees,,05/07/19, 899.99 ,321100,Social Community Care Supplies & Services - Children
5344715,SWIIS FOSTER CARE LTD,Childrens Services,Children's Services,Foster Carer Agency Fees,,05/07/19, 703.92 ,321100,Social Community Care Supplies & Services - Children
5344716,SWIIS FOSTER CARE LTD,Childrens Services,Children's Services,Foster Carer Agency Fees,,05/07/19, 837.97 ,321100,Social Community Care Supplies & Services - Children
5344711,SWIIS FOSTER CARE LTD,Childrens Services,Children's Services,Foster Carer Agency Fees,,05/07/19, 837.97 ,321100,Social Community Care Supplies & Services - Children
5344714,SWIIS FOSTER CARE LTD,Childrens Services,Children's Services,Foster Carer Agency Fees,,05/07/19, 693.49 ,321100,Social Community Care Supplies & Services - Children
5344719,SWIIS FOSTER CARE LTD,Childrens Services,Children's Services,Foster Carer Agency Fees,,05/07/19, 760.48 ,321100,Social Community Care Supplies & Services - Children
5344713,SWIIS FOSTER CARE LTD,Childrens Services,Children's Services,Foster Carer Agency Fees,,05/07/19, 658.84 ,321100,Social Community Care Supplies & Services - Children
5344717,SWIIS FOSTER CARE LTD,Childrens Services,Children's Services,Foster Carer Agency Fees,,05/07/19, 676.97 ,321100,Social Community Care Supplies & Services - Children
5344585,SWIIS FOSTER CARE LTD,Childrens Services,Children's Services,Foster Carer Agency Fees,,05/07/19, 660.10 ,321100,Social Community Care Supplies & Services - Children
5346965,E PETCH PRINTERS LTD,Policy and Communications,Governance,Printing And Stationery,,05/07/19, 915.00 ,190000,Facilities & Management Services
5346730,P J SPENCER LTD,Operations and Neighbourhoods,Operations and Neighbourhoods,Building Maintenance,,05/07/19, 794.00 ,390000,"Works - Construction, Repair & Maintenance"
5346765,P J SPENCER LTD,Operations and Neighbourhoods,Operations and Neighbourhoods,Building Works,,05/07/19, 786.00 ,390000,"Works - Construction, Repair & Maintenance"
5347537,Redacted,Childrens Services,Children's Services,Foster Care Placement Task,,05/07/2019," 1,335.66 ",321100,Social Community Care Supplies & Services - Children
5347664,ELECTORAL REFORM SERVICES,Governance,Governance,Miscellaneous Expenses,,05/07/19," 1,766.91 ",-999999,Unclassifiable
5344687,LEEDS CITY COUNCIL,Hosted Services,Hosted Services,Conference/Seminar Expenses For Staff,,05/07/19," 1,034.50 ",-999999,Unclassifiable
5344842,CHILD ACTION NORTHWEST,Childrens Services,Children's Services,Professional Services,,05/07/19, 862.75 ,-999999,Unclassifiable
5347559,FORBES SOLICITORS,Multiple Heads of Service,Multiple Strategic Directorates,Claims Settled,,05/07/19," 16,694.71 ",280000,Legal Services
5344620,A-PLANT,Governance,Governance,General Equipment Rental,,05/07/19," 1,370.00 ",-999999,Unclassifiable
5345041,NPOWER LIMITED,Place,Growth,Electricity,,05/07/19," 26,083.85 ",370000,Utilities
5344721,PERPETUAL FOSTERING,Childrens Services,Children's Services,Foster Carer Agency Fees,,05/07/19," 4,200.00 ",321100,Social Community Care Supplies & Services - Children
5344883,PERPETUAL FOSTERING,Childrens Services,Children's Services,Foster Carer Agency Fees,,05/07/19," 4,200.00 ",321100,Social Community Care Supplies & Services - Children
5346722,STAMFORD PROPERTIES,Adult Social Care,Adults,Non-Authority Accommodation Rental,,05/07/19," 2,494.72 ",-999999,Unclassifiable
5346723,STAMFORD PROPERTIES,Adult Social Care,Adults,Non-Authority Accommodation Rental,,05/07/19," 1,006.80 ",-999999,Unclassifiable
5346761,RMD CONTRACTS LTD,Place,Growth,It Control Room Equipment,,05/07/19," 3,355.54 ",390000,"Works - Construction, Repair & Maintenance"
5344093,ALPHA PLUS FOSTERING LIMITED,Childrens Services,Children's Services,Foster Carer Agency Fees,,05/07/19," 3,609.33 ",321000,Social Community Care Supplies & Services - Adult
5344704,FOSTER CARES LTD,Childrens Services,Children's Services,Foster Carer Agency Fees,,05/07/19, 760.00 ,321100,Social Community Care Supplies & Services - Children
5344702,FOSTER CARES LTD,Childrens Services,Children's Services,Foster Carer Agency Fees,,05/07/19, 760.00 ,321100,Social Community Care Supplies & Services - Children
5344705,FOSTER CARES LTD,Childrens Services,Children's Services,Foster Carer Agency Fees,,05/07/19, 850.00 ,321100,Social Community Care Supplies & Services - Children
5344878,INSIGHT DIRECT (UK) LIMITED,Digital Tameside,Finance & IT,It Equipment,,05/07/19, 668.97 ,270000,Information Communication Technology
5344139,Redacted,Childrens Services,Children's Services,Childrens Homes Outside Local Authority Fees,Redacted Supplier,05/07/19," 11,447.85 ",321100,Social Community Care Supplies & Services - Children
5347552,Redacted,Adult Social Care,Adults,Day Care Fees,,08/07/2019, 948.31 ,400000,Non 3rd Party spend  
470815,AGGREGATE INDUSTRIES UK LIMITED,Operations and Neighbourhoods,Operations and Neighbourhoods,General Materials,,08/07/19," 15,656.62 ",230000,Highway Equipment & Materials
470815,ALTITUDE SERVICES,Operations and Neighbourhoods,Operations and Neighbourhoods,Sub-contractor Services,,08/07/19," 6,897.32 ",370000,Utilities
470815,ARCO LIMITED,Civil Engineers,Director of Place,Debits Goods Received,,08/07/19," 1,623.10 ",140000,Clothing
470815,EAGLE CIVIL ENGINEERING LTD,Operations and Neighbourhoods,Operations and Neighbourhoods,General Materials,,08/07/19," 2,438.90 ",230000,Highway Equipment & Materials
470815,EAGLE CIVIL ENGINEERING LTD,Operations and Neighbourhoods,Operations and Neighbourhoods,Sub-contractor Services,,08/07/19," 11,197.72 ",230000,Highway Equipment & Materials
470815,FAIRWAY LANDSCAPES LTD,Operations and Neighbourhoods,Operations and Neighbourhoods,Sub-contractor Services,,08/07/19," 4,160.00 ",399999,"Works - Construction, Repair & Maintenance"
470815,J HOPKINS CONTRACTORS  LTD,Operations and Neighbourhoods,Operations and Neighbourhoods,General Materials,,08/07/19," 1,140.00 ",390000,"Works - Construction, Repair & Maintenance"
470815,KEN TAYLOR SUPPLIES LTD,Operations and Neighbourhoods,Operations and Neighbourhoods,General Materials,,08/07/19," 2,539.25 ",-999999,Unclassifiable
470815,Redacted,Operations and Neighbourhoods,Operations and Neighbourhoods,Sub-contractor Services,,08/07/19," 28,063.78 ",150000,Consultancy
470815,KEYLINE BUILDERS MERCHANTS LTD,Operations and Neighbourhoods,Operations and Neighbourhoods,General Materials,,08/07/19, 923.73 ,100000,Building Construction Materials
470815,P CASEY (ENVIRO) LTD,Operations and Neighbourhoods,Operations and Neighbourhoods,Tipping Facility Fees,,08/07/19," 1,053.08 ",908001,Public Bodies
470815,TARMAC CENTRAL LIMITED,Operations and Neighbourhoods,Operations and Neighbourhoods,General Materials,,08/07/19," 7,630.38 ",230000,Highway Equipment & Materials
470815,WOLSELEY UK LTD,Operations and Neighbourhoods,Operations and Neighbourhoods,General Materials,,08/07/19," 1,493.52 ",230000,Highway Equipment & Materials
470815,JONES LIGHTING LTD,Operations and Neighbourhoods,Operations and Neighbourhoods,Sub-contractor Services,,08/07/19, 538.41 ,230000,Highway Equipment & Materials
470815,INSTARMAC GROUP PLC,Civil Engineers,Director of Place,Debits Goods Received,,08/07/19," 1,182.00 ",230000,Highway Equipment & Materials
470815,REACTEC LIMITED,Operations and Neighbourhoods,Operations and Neighbourhoods,General Materials,,08/07/19," 1,595.30 ",390000,"Works - Construction, Repair & Maintenance"
470815,RONDAR SIGNS LTD,Operations and Neighbourhoods,Operations and Neighbourhoods,General Materials,,08/07/19, 510.73 ,190000,Facilities & Management Services
470815,TRAFFIC DIRECT LTD,(blank),(blank),General Materials,,08/07/19," 11,894.00 ",350000,Street & Traffic Management
470815,MERCURY RECYCLING LTD,Operations and Neighbourhoods,Operations and Neighbourhoods,General Materials,,08/07/19," 1,340.00 ",180000,Environmental Services
5347474,IMPROVEMENT AND DEVELOPMENT AGENCY,Adult Social Care,Adults,Conference/Seminar Expenses For Staff,,08/07/19, 950.00 ,-999999,Unclassifiable
5339321,HERTFORDSHIRE COUNTY COUNCIL,Childrens Services,Children's Services,Adoption Agency Fees,,08/07/19," 28,667.00 ",UNCLASS,Unclassifiable
5347641,REGENDA LIMITED,Adult Social Care,Adults,Non-Authority Accommodation Rental,,08/07/19," 15,755.15 ",250000,Housing Management
5347457,PERSON CENTRED CARE SERVICES LIMITED,Adult Social Care,Adults,Homecare Fees,,08/07/19," 9,596.56 ",310000,Healthcare
5347570,Redacted,Adult Social Care,Adults,Day Care Fees,,08/07/19, 608.55 ,-999999,Unclassifiable
5347695,SHARED LIVES PLUS,Adult Social Care,Adults,Miscellaneous Expenses,,08/07/19," 10,000.00 ",200000,Financial Services
5346547,BRITISH YOUTH COUNCIL,Operations and Neighbourhoods,Operations and Neighbourhoods,"Activity (Materials, Trips)",,08/07/19, 630.00 ,UNCLASS,Unclassifiable
5345028,ACE SAFETY ACADEMY,Operations and Neighbourhoods,Operations and Neighbourhoods,Engineers Works,,08/07/19," 1,200.00 ",-999999,Unclassifiable
5340344,MEDACS HEALTHCARE,Adult Social Care,Adults,Homecare Fees,,08/07/19," 19,243.88 ",150000,Consultancy
5344654,LIBERTY SUPPORT SERVICES LTD,Adult Social Care,Adults,Homecare Fees,,08/07/19," 16,433.62 ",321000,Social Community Care Supplies & Services - Adult
5347542,Redacted,Adult Social Care,Adults,Day Care Fees,,08/07/19," 1,073.49 ",-999999,Unclassifiable
5345178,DIRECT CARE (TAMESIDE) LTD,Adult Social Care,Adults,Homecare Fees,,08/07/19," 39,214.73 ",321000,Social Community Care Supplies & Services - Adult
5345177,DIRECT CARE (TAMESIDE) LTD,Adult Social Care,Adults,Homecare Fees,,08/07/19," 38,122.60 ",321000,Social Community Care Supplies & Services - Adult
5347556,Redacted,Adult Social Care,Adults,Day Care Fees,Redacted Supplier,08/07/19," 2,114.87 ",-999999,Unclassifiable
5347293,NEXUS MOVE LIMITED PREVIOUSLY RADIO CABS (ASHTON)LTD,Education,Children's Services,Transport Of Ola Pupils,,08/07/19, 880.00 ,360000,Public Transport
5347297,NEXUS MOVE LIMITED PREVIOUSLY RADIO CABS (ASHTON)LTD,Education,Children's Services,Transport Of Pupils,,08/07/19, 705.00 ,360000,Public Transport
5347302,NEXUS MOVE LIMITED PREVIOUSLY RADIO CABS (ASHTON)LTD,Education,Children's Services,Transport Of Post 16 Pupils,,08/07/19, 770.00 ,360000,Public Transport
5347308,NEXUS MOVE LIMITED PREVIOUSLY RADIO CABS (ASHTON)LTD,Education,Children's Services,Transport Of Pupils,,08/07/19," 1,666.00 ",360000,Public Transport
5347305,NEXUS MOVE LIMITED PREVIOUSLY RADIO CABS (ASHTON)LTD,Education,Children's Services,Transport Of Ola Pupils,,08/07/19," 1,632.00 ",360000,Public Transport
5347294,NEXUS MOVE LIMITED PREVIOUSLY RADIO CABS (ASHTON)LTD,Education,Children's Services,Transport Of Ola Pupils,,08/07/19," 1,476.00 ",360000,Public Transport
5347283,NEXUS MOVE LIMITED PREVIOUSLY RADIO CABS (ASHTON)LTD,Operations and Neighbourhoods,Operations and Neighbourhoods,Hired Transport,,08/07/19," 1,100.50 ",360000,Public Transport
5347303,NEXUS MOVE LIMITED PREVIOUSLY RADIO CABS (ASHTON)LTD,Education,Children's Services,Transport Of Pupils,,08/07/19, 739.50 ,360000,Public Transport
5347295,NEXUS MOVE LIMITED PREVIOUSLY RADIO CABS (ASHTON)LTD,Education,Children's Services,Transport Of Post 16 Pupils,,08/07/19, 745.50 ,360000,Public Transport
5347280,NEXUS MOVE LIMITED PREVIOUSLY RADIO CABS (ASHTON)LTD,Education,Children's Services,Transport Of Pupils,,08/07/19, 672.00 ,360000,Public Transport
5347286,NEXUS MOVE LIMITED PREVIOUSLY RADIO CABS (ASHTON)LTD,Operations and Neighbourhoods,Operations and Neighbourhoods,Hired Transport,,08/07/19, 594.00 ,360000,Public Transport
5347300,NEXUS MOVE LIMITED PREVIOUSLY RADIO CABS (ASHTON)LTD,Education,Children's Services,Transport Of Ola Pupils,,08/07/19," 1,512.00 ",360000,Public Transport
5347292,NEXUS MOVE LIMITED PREVIOUSLY RADIO CABS (ASHTON)LTD,Education,Children's Services,Transport Of Pupils,,08/07/19, 544.50 ,360000,Public Transport
5347284,NEXUS MOVE LIMITED PREVIOUSLY RADIO CABS (ASHTON)LTD,Operations and Neighbourhoods,Operations and Neighbourhoods,Hired Transport,,08/07/19, 560.00 ,360000,Public Transport
5347281,NEXUS MOVE LIMITED PREVIOUSLY RADIO CABS (ASHTON)LTD,Operations and Neighbourhoods,Operations and Neighbourhoods,Hired Transport,,08/07/19, 788.00 ,360000,Public Transport
5347310,NEXUS MOVE LIMITED PREVIOUSLY RADIO CABS (ASHTON)LTD,Education,Children's Services,Transport Of Ola Pupils,,08/07/19, 907.50 ,360000,Public Transport
5347296,NEXUS MOVE LIMITED PREVIOUSLY RADIO CABS (ASHTON)LTD,Education,Children's Services,Transport Of Ola Pupils,,08/07/19," 1,008.00 ",360000,Public Transport
5347287,NEXUS MOVE LIMITED PREVIOUSLY RADIO CABS (ASHTON)LTD,Operations and Neighbourhoods,Operations and Neighbourhoods,Hired Transport,,08/07/19," 1,300.00 ",360000,Public Transport
5347311,NEXUS MOVE LIMITED PREVIOUSLY RADIO CABS (ASHTON)LTD,Education,Children's Services,Transport Of Pupils,,08/07/19," 1,802.00 ",360000,Public Transport
5347306,NEXUS MOVE LIMITED PREVIOUSLY RADIO CABS (ASHTON)LTD,Education,Children's Services,Transport Of Ola Pupils,,08/07/19," 1,904.00 ",360000,Public Transport
5347307,NEXUS MOVE LIMITED PREVIOUSLY RADIO CABS (ASHTON)LTD,Education,Children's Services,Transport Of Pupils,,08/07/19," 2,346.00 ",360000,Public Transport
5347301,NEXUS MOVE LIMITED PREVIOUSLY RADIO CABS (ASHTON)LTD,Education,Children's Services,Transport Of Ola Pupils,,08/07/19," 2,006.00 ",360000,Public Transport
5347304,NEXUS MOVE LIMITED PREVIOUSLY RADIO CABS (ASHTON)LTD,Education,Children's Services,Transport Of Pupils,,08/07/19," 1,200.00 ",360000,Public Transport
5347309,NEXUS MOVE LIMITED PREVIOUSLY RADIO CABS (ASHTON)LTD,Education,Children's Services,Transport Of Pupils,,08/07/19," 1,360.00 ",360000,Public Transport
5347789,JACKSON & TAYLOR LTD,Housing,Director of Place,Improvement Grants - Final Mandatory,,08/07/19," 5,445.00 ",390000,"Works - Construction, Repair & Maintenance"
5347700,AUTUMN (UK) 2017 LIMITED,Housing,Director of Place,Improvement Grants - Final Mandatory,,08/07/19," 4,935.00 ",321000,Social Community Care Supplies & Services - Adult
5347237,TAMESIDE ARTS LTD,Adult Social Care,Adults,Professional Services,,08/07/19," 3,054.25 ",290000,Arts & Leisure Services
5345855,Water Plus,Place,Growth,Metered Water Costs,,08/07/19, 613.37 ,370000,Utilities
5345856,Water Plus,Place,Growth,Metered Water Costs,,08/07/19, 570.24 ,370000,Utilities
5345858,Water Plus,Place,Growth,Metered Water Costs,,08/07/19," 4,361.46 ",370000,Utilities
5346422,Water Plus,Place,Growth,Metered Water Costs,,08/07/19," 2,658.72 ",370000,Utilities
5346516,Water Plus,Place,Growth,Metered Water Costs,,08/07/19," 2,763.11 ",370000,Utilities
5345687,Water Plus,Place,Growth,Metered Water Costs,,08/07/19, 564.79 ,370000,Utilities
5345936,Water Plus,Place,Growth,Metered Water Costs,,08/07/2019," 3,023.14 ",370000,Utilities
5345857,Water Plus,Place,Growth,Metered Water Costs,,08/07/2019," 3,882.65 ",370000,Utilities
5345843,Water Plus,Place,Growth,Metered Water Costs,,08/07/19," 4,960.10 ",370000,Utilities
5346423,Water Plus,Place,Growth,Metered Water Costs,,08/07/19, 929.99 ,370000,Utilities
5347737,K P DODD CONSTRUCTION LTD,Housing,Director of Place,Improvement Grants - Final Mandatory,,08/07/2019," 3,419.00 ",390000,"Works - Construction, Repair & Maintenance"
5347735,K P DODD CONSTRUCTION LTD,Housing,Director of Place,Improvement Grants - Final Mandatory,,08/07/19," 3,536.00 ",390000,"Works - Construction, Repair & Maintenance"
5347747,Oracle Investigations,Childrens Services,Children's Services,Professional Services,,09/07/19, 515.85 ,200000,Financial Services
5347817,ISW CSC Limited,Childrens Services,Children's Services,Living With Formal Support,,09/07/19, 980.00 ,260000,Human Resources
5347819,ISW CSC Limited,Childrens Services,Children's Services,Living With Formal Support,,09/07/19, 750.00 ,260000,Human Resources
5347820,ISW CSC Limited,Childrens Services,Children's Services,Living With Formal Support,,09/07/19, 980.00 ,260000,Human Resources
5347818,ISW CSC Limited,Childrens Services,Children's Services,Living With Formal Support,,09/07/19, 750.00 ,260000,Human Resources
5344083,PARADIGM CONSULTANCY & DEVELOPMENT AGENCY LTD,Childrens Services,Children's Services,Agency Staff,,09/07/19," 6,068.70 ",260000,Human Resources
5344462,HECTARE 8 CONTRACTS LTD T/A COMPLETE WEED CONTROL (MANCHESTER),Operations and Neighbourhoods,Operations and Neighbourhoods,General Materials,,09/07/19," 2,640.00 ",390000,"Works - Construction, Repair & Maintenance"
5347604,TAMESIDE AND GLOSSOP INTEGRATED CARE NHS FOUNDATION TRUST,Childrens Services,Children's Services,Day Care Fees,,09/07/19," 4,254.75 ",310000,Healthcare
5347822,FUSION CARE,Adult Social Care,Adults,Supporting People Gross Contract,,09/07/19," 2,780.00 ",321100,Social Community Care Supplies & Services - Children
5347804,GETRONICS SERVICES UK LIMITED,Digital Tameside,Finance & IT,Telephone Landline Costs,,09/07/19," 6,955.37 ",270000,Information Communication Technology
5347929,Hyde Accessible Transport Limited,Operations and Neighbourhoods,Operations and Neighbourhoods,Hired Transport,,09/07/19, 960.00 ,360000,Public Transport
5347925,Hyde Accessible Transport Limited,Operations and Neighbourhoods,Operations and Neighbourhoods,Hired Transport,,09/07/19, 990.00 ,360000,Public Transport
5347524,Hyde Accessible Transport Limited,Operations and Neighbourhoods,Operations and Neighbourhoods,Hired Transport,,09/07/19," 1,675.00 ",360000,Public Transport
5347806,TAMESIDE SPORTS TRUST,Adult Social Care,Adults,Professional Services,,09/07/19, 653.64 ,290000,Arts & Leisure Services
5347637,TAMESIDE SPORTS TRUST,Individual Schools Budget,Children's Services,Professional Services,,09/07/19," 1,924.04 ",290000,Arts & Leisure Services
5347909,TAMESIDE SPORTS TRUST,Childrens Services,Children's Services,Homecare Fees,,09/07/19," 1,110.00 ",290000,Arts & Leisure Services
5343862,EXPERIAN LTD,Hosted Services,Hosted Services,Professional Services,,09/07/19," 9,000.00 ",200000,Financial Services
5346127,KIELY BROS LTD,(blank),(blank),Highway Construction,,09/07/19," 298,075.52 ",230000,Highway Equipment & Materials
5345064,The Anthony Seddon Fund,Population Health,Population Health,Room Hire,,10/07/19, 540.00 ,-999999,Unclassifiable
5348100,Redacted,Childrens Services,Children's Services,Placement with Relative or Friend In LA,,10/07/19," 2,004.00 ",400000,Non 3rd Party spend  
5345065,Randstad HR Solution Ltd T/A Student Worker Support,Education,Children's Services,#N/A,,10/07/19," 1,540.00 ",321000,Social Community Care Supplies & Services - Adult
5345066,Capita Resourcing Ltd trading as Veredus,Education,Children's Services,Agency Staff,,10/07/19," 2,800.00 ",-999999,Unclassifiable
5344652,Jane Donohoe Training & Consultancy,Operations and Neighbourhoods,Operations and Neighbourhoods,General Materials,,10/07/19, 700.00 ,260000,Human Resources
5345069,YOUNG PEOPLE FIRST LIMITED,Childrens Services,Children's Services,Living With Formal Support,,10/07/19," 6,818.00 ",321100,Social Community Care Supplies & Services - Children
5345070,ROC Northwest Limited,Childrens Services,Children's Services,Childrens Homes Outside Local Authority Fees,,10/07/2019," 32,495.00 ",321100,Social Community Care Supplies & Services - Children
5346037,Zeno Ltd,Adult Social Care,Adults,Nursing Home Long Stay Fees,,10/07/19," 8,833.34 ",310000,Healthcare
5345120,EON ENERGY,Adult Social Care,Adults,Electricity,,10/07/19, 922.60 ,370000,Utilities
5348162,FOSTERING SOLUTIONS LTD,Childrens Services,Children's Services,Foster Carer Agency Fees,,10/07/19," 2,987.11 ",321000,Social Community Care Supplies & Services - Adult
5348166,FOSTERING SOLUTIONS LTD,Childrens Services,Children's Services,Foster Carer Agency Fees,,10/07/19," 2,924.09 ",321000,Social Community Care Supplies & Services - Adult
5348169,FOSTERING SOLUTIONS LTD,Childrens Services,Children's Services,Foster Carer Agency Fees,,10/07/19," 2,924.09 ",321000,Social Community Care Supplies & Services - Adult
5348165,FOSTERING SOLUTIONS LTD,Childrens Services,Children's Services,Foster Carer Agency Fees,,10/07/19," 3,344.64 ",321000,Social Community Care Supplies & Services - Adult
5348164,FOSTERING SOLUTIONS LTD,Childrens Services,Children's Services,Foster Carer Agency Fees,,10/07/2019," 3,077.99 ",321000,Social Community Care Supplies & Services - Adult
5348167,FOSTERING SOLUTIONS LTD,Childrens Services,Children's Services,Foster Carer Agency Fees,,10/07/19," 3,302.52 ",321000,Social Community Care Supplies & Services - Adult
5347850,Redacted,Adult Social Care,Adults,Day Care Fees,Redacted Supplier,10/07/19, 503.40 ,-999999,Unclassifiable
5347823,FUSION CARE,Adult Social Care,Adults,Homecare Fees,,10/07/19," 2,780.00 ",321100,Social Community Care Supplies & Services - Children
5345880,PROFILE SECURITY SERVICES LIMITED,Operations and Neighbourhoods,Operations and Neighbourhoods,Security Services,,10/07/19," 1,728.00 ",190000,Facilities & Management Services
5345078,PROFILE SECURITY SERVICES LIMITED,Place,Growth,Security Services,,10/07/19," 1,344.00 ",190000,Facilities & Management Services
5345077,PROFILE SECURITY SERVICES LIMITED,Place,Growth,Security Services,,10/07/19, 768.00 ,190000,Facilities & Management Services
5345079,PROFILE SECURITY SERVICES LIMITED,Place,Growth,Security Services,,10/07/19, 579.00 ,190000,Facilities & Management Services
5341890,NEW BRIDGE HORIZONS,Adult Social Care,Adults,Day Centre Fees,,10/07/19," 1,410.00 ",321000,Social Community Care Supplies & Services - Adult
5341888,NEW BRIDGE HORIZONS,Adult Social Care,Adults,Day Centre Fees,,10/07/19," 2,820.00 ",321000,Social Community Care Supplies & Services - Adult
5341892,NEW BRIDGE HORIZONS,Adult Social Care,Adults,Day Centre Fees,,10/07/19," 1,016.00 ",321000,Social Community Care Supplies & Services - Adult
5341885,NEW BRIDGE HORIZONS,Adult Social Care,Adults,Day Centre Fees,,10/07/2019," 1,016.00 ",321000,Social Community Care Supplies & Services - Adult
5338007,NEW BRIDGE HORIZONS,Adult Social Care,Adults,Day Centre Fees,,10/07/19," 2,538.00 ",321000,Social Community Care Supplies & Services - Adult
5341883,NEW BRIDGE HORIZONS,Adult Social Care,Adults,Day Centre Fees,,10/07/19," 1,620.00 ",321000,Social Community Care Supplies & Services - Adult
5347486,Redacted,Childrens Services,Children's Services,Cash Grants,,10/07/19," 1,000.00 ",400000,Non 3rd Party spend  
5346964,Eden Brown LTD,Childrens Services,Children's Services,Agency Staff,,10/07/19," 2,607.30 ",-999999,Unclassifiable
5345082,Redacted,Operations and Neighbourhoods,Operations and Neighbourhoods,General Materials,,10/07/19," 4,298.50 ",180000,Environmental Services
5346163,QUEST MEDIA NETWORKS LTD,Policy and Communications,Governance,Statutory Advertising,,10/07/19," 1,139.25 ",-999999,Unclassifiable
5341621,Redacted,Childrens Services,Children's Services,Childrens Homes Outside Local Authority Fees,,10/07/19," 61,775.00 ",170000,Education
5347923,Hyde Accessible Transport Limited,Childrens Services,Children's Services,Hired Transport,,10/07/19, 910.00 ,360000,Public Transport
5345100,Footsteps Psychology,Education,Children's Services,Professional Services,,10/07/19," 1,100.00 ",-999999,Unclassifiable
5348195,TAMESIDE SPORTS TRUST,Education,Children's Services,#N/A,,10/07/19," 5,220.00 ",290000,Arts & Leisure Services
5348194,TAMESIDE SPORTS TRUST,Education,Children's Services,#N/A,,10/07/2019," 229,319.36 ",290000,Arts & Leisure Services
5346252,CREATIVE SUPPORT LTD,Adult Social Care,Adults,Independent Sector Care Fees,,10/07/2019," 17,933.04 ",321000,Social Community Care Supplies & Services - Adult
5345105,ADDLESHAW GODDARD,Place,Growth,Legal Fees,,10/07/19," 4,350.00 ",UNCLASS,Unclassifiable
5346945,Redacted,Childrens Services,Children's Services,Childrens Homes Outside Local Authority Fees,Redacted Supplier,10/07/19," 11,180.12 ",321100,Social Community Care Supplies & Services - Children
5346883,Redacted,Childrens Services,Children's Services,Childrens Homes Outside Local Authority Fees,Redacted Supplier,10/07/19," 10,827.99 ",321100,Social Community Care Supplies & Services - Children
5347003,Redacted,Childrens Services,Children's Services,Childrens Homes Outside Local Authority Fees,Redacted Supplier,10/07/19," 1,210.00 ",321100,Social Community Care Supplies & Services - Children
5346947,Redacted,Childrens Services,Children's Services,Childrens Homes Outside Local Authority Fees,Redacted Supplier,10/07/19," 4,912.18 ",321100,Social Community Care Supplies & Services - Children
5346881,Redacted,Childrens Services,Children's Services,Childrens Homes Outside Local Authority Fees,Redacted Supplier,10/07/19," 7,935.06 ",321100,Social Community Care Supplies & Services - Children
5346882,Redacted,Childrens Services,Children's Services,Childrens Homes Outside Local Authority Fees,Redacted Supplier,10/07/19," 15,760.08 ",321100,Social Community Care Supplies & Services - Children
5346949,Redacted,Childrens Services,Children's Services,Childrens Homes Outside Local Authority Fees,Redacted Supplier,10/07/19," 14,634.36 ",321100,Social Community Care Supplies & Services - Children
5347004,WESSEX LIFT CO. LIMITED,Housing,Director of Place,Improvement Grants - Final Mandatory,,10/07/19," 9,554.00 ",390000,"Works - Construction, Repair & Maintenance"
5345119,ASKEWS  AND HOLTS LIBRARY SERVICES LTD,Operations and Neighbourhoods,Operations and Neighbourhoods,Purchase Books,,10/07/19," 1,122.35 ",170000,Education
5345218,De Vere Colmore Gate,Hosted Services,Hosted Services,Conference/Seminar Expenses For Staff,,11/07/19," 2,616.67 ",190000,Facilities & Management Services
5348352,Redacted,Adult Social Care,Adults,Homecare Fees,,11/07/19," 22,378.76 ",321000,Social Community Care Supplies & Services - Adult
5345226,Skybound Therapies,Education,Children's Services,#N/A,,11/07/19," 1,295.25 ",170000,Education
5345229,GIA-MAC Architects Limited,Asset Management and Investment Partnership Management,Director of Place,Engineers -External,,11/07/19, 525.00 ,390000,"Works - Construction, Repair & Maintenance"
5348353,NewCare Lodgings Limited,Childrens Services,Children's Services,Living With Formal Support,,11/07/19," 1,285.68 ",321100,Social Community Care Supplies & Services - Children
5345199,Randstad HR Solution Ltd T/A Student Worker Support,Education,Children's Services,Professional Services,,11/07/19," 1,440.00 ",321000,Social Community Care Supplies & Services - Adult
5345201,Randstad HR Solution Ltd T/A Student Worker Support,Education,Children's Services,Professional Services,,11/07/2019," 1,340.00 ",321000,Social Community Care Supplies & Services - Adult
5345196,Randstad HR Solution Ltd T/A Student Worker Support,Education,Children's Services,Professional Services,,11/07/19, 840.00 ,321000,Social Community Care Supplies & Services - Adult
5345200,Randstad HR Solution Ltd T/A Student Worker Support,Education,Children's Services,Professional Services,,11/07/19," 1,020.00 ",321000,Social Community Care Supplies & Services - Adult
5345240,JJH Enterprise Ltd T/A Value Licensing,Digital Tameside,Finance & IT,Computer Software,,11/07/19," 9,200.00 ",270000,Information Communication Technology
5347724,Good News Nwk Ltd,Childrens Services,Children's Services,Childrens Homes Outside Local Authority Fees,,11/07/19," 14,487.96 ",250000,Housing Management
5347726,Good News Nwk Ltd,Childrens Services,Children's Services,Childrens Homes Outside Local Authority Fees,,11/07/19," 20,524.61 ",250000,Housing Management
5348221,Redacted,Adult Social Care,Adults,Day Care Fees,Redacted Supplier,11/07/19, 698.20 ,321000,Social Community Care Supplies & Services - Adult
5348170,FOSTERING SOLUTIONS LTD,Childrens Services,Children's Services,Foster Carer Agency Fees,,11/07/19," 2,924.09 ",321000,Social Community Care Supplies & Services - Adult
5348171,FOSTERING SOLUTIONS LTD,Childrens Services,Children's Services,Foster Carer Agency Fees,,11/07/19," 3,501.14 ",321000,Social Community Care Supplies & Services - Adult
5348173,FOSTERING SOLUTIONS LTD,Childrens Services,Children's Services,Foster Carer Agency Fees,,11/07/2019," 3,609.33 ",321000,Social Community Care Supplies & Services - Adult
5345256,Randstad Public Services Limited,Education,Children's Services,Agency Staff,,11/07/19," 1,000.00 ",170000,Education
5348271,Redacted,Education,Children's Services,#N/A,,11/07/19," 20,000.00 ",170000,Education
5348272,Redacted,Education,Children's Services,#N/A,,11/07/19," 20,000.00 ",170000,Education
5345996,CY4OR LIMITED,Childrens Services,Children's Services,Professional Medical Services,,11/07/19, 647.90 ,-999999,Unclassifiable
5346478,COMFORT CALL LIMITED,Adult Social Care,Adults,Homecare Fees,,11/07/19," 12,044.03 ",310000,Healthcare
5345580,DEFENSIVE DRIVER TRAINING LTD,Operations and Neighbourhoods,Operations and Neighbourhoods,Training Course Costs,,11/07/19," 2,828.75 ",260000,Human Resources
5348107,Redacted,Childrens Services,Children's Services,Photo Print Charges,,11/07/19, 590.00 ,-999999,Unclassifiable
5345227,BY THE BRIDGE NORTH WEST LTD,Childrens Services,Children's Services,Foster Carer Agency Fees,,11/07/19," 3,134.25 ",908001,Public Bodies
5345225,QUADRANT SECURITY GROUP LTD,Multiple Heads of Service,Multiple Strategic Directorates,Computer Hardware,,11/07/19," 1,389.37 ",190000,Facilities & Management Services
5345223,LEGGETT PSYCHOLOGY LTD,Education,Children's Services,Professional Services,,11/07/19," 2,200.00 ",170000,Education
5345222,Redacted,Childrens Services,Children's Services,Childrens Homes Outside Local Authority Fees,Redacted Supplier,11/07/19," 11,779.60 ",321100,Social Community Care Supplies & Services - Children
5348362,COMPLETE BACKGROUND SCREENING LTD,People and Workforce Development,Governance,Professional Services,,11/07/19," 4,146.50 ",-999999,Unclassifiable
5348361,COMPLETE BACKGROUND SCREENING LTD,People and Workforce Development,Governance,Professional Services,,11/07/19," 2,821.00 ",-999999,Unclassifiable
5348363,COMPLETE BACKGROUND SCREENING LTD,People and Workforce Development,Governance,Professional Services,,11/07/19," 1,506.00 ",-999999,Unclassifiable
5347109,INSPIREDSPACES TAMESIDE LTD,Place,Growth,Fees,,11/07/19," 2,614.39 ",390000,"Works - Construction, Repair & Maintenance"
5347109,INSPIREDSPACES TAMESIDE LTD,Place,Growth,Professional Services,,11/07/19," 326,798.48 ",390000,"Works - Construction, Repair & Maintenance"
5344873,PLANIT IE LLP,Tameside Investment Partnership,Director of Place,Consultancies,,11/07/19," 5,640.00 ",-999999,Unclassifiable
5346331,MEDACS HEALTHCARE,Adult Social Care,Adults,Homecare Fees,,11/07/19," 19,612.21 ",150000,Consultancy
5345167,Sanctuary Personnel Trading as Skylakes,Childrens Services,Children's Services,Professional Services,,11/07/19," 22,811.13 ",321100,Social Community Care Supplies & Services - Children
5345168,Sanctuary Personnel Trading as Skylakes,Childrens Services,Children's Services,Professional Services,,11/07/19," 22,811.13 ",321100,Social Community Care Supplies & Services - Children
5345170,Excel Fostering Limited,Childrens Services,Children's Services,Foster Carer Agency Fees,,11/07/19," 2,921.40 ",-999999,Unclassifiable
5345173,Excel Fostering Limited,Childrens Services,Children's Services,Foster Carer Agency Fees,,11/07/19," 3,145.50 ",-999999,Unclassifiable
5345172,Excel Fostering Limited,Childrens Services,Children's Services,Foster Carer Agency Fees,,11/07/19," 3,167.49 ",-999999,Unclassifiable
5345171,Excel Fostering Limited,Childrens Services,Children's Services,Foster Carer Agency Fees,,11/07/19," 2,921.40 ",-999999,Unclassifiable
5337321,GREATER MANCHESTER COMBINED AUTHORITY,Operations and Neighbourhoods,Operations and Neighbourhoods,Passenger Transport Levy,,11/07/19," 1,567,688.46 ",-999999,Unclassifiable
5345156,LORIMER FOSTERING SERVICES,Childrens Services,Children's Services,Foster Carer Agency Fees,,11/07/19," 3,358.93 ",321100,Social Community Care Supplies & Services - Children
5345158,LORIMER FOSTERING SERVICES,Childrens Services,Children's Services,Foster Carer Agency Fees,,11/07/19," 2,157.86 ",321100,Social Community Care Supplies & Services - Children
5345159,LORIMER FOSTERING SERVICES,Childrens Services,Children's Services,Foster Carer Agency Fees,,11/07/19," 2,157.86 ",321100,Social Community Care Supplies & Services - Children
5345155,TAMESIDE LINK,Childrens Services,Children's Services,Day Care Fees,,11/07/19, 922.20 ,321000,Social Community Care Supplies & Services - Adult
5347482,TAMESIDE LINK,Adult Social Care,Adults,Independent Sector Residential Care Fees,,11/07/19," 23,702.09 ",321000,Social Community Care Supplies & Services - Adult
5344411,CAPSTONE FOSTER CARE,Childrens Services,Children's Services,Foster Carer Agency Fees,,11/07/19," 3,686.96 ",321000,Social Community Care Supplies & Services - Adult
5347594,E PETCH PRINTERS LTD,Policy and Communications,Governance,Printing And Stationery,,11/07/19, 925.00 ,190000,Facilities & Management Services
5348186,JACKSON & TAYLOR LTD,Housing,Director of Place,Improvement Grants - Final Mandatory,,11/07/19," 4,606.00 ",390000,"Works - Construction, Repair & Maintenance"
5345690,BOND SOLON TRAINING LTD,Quality and Safeguarding,Quality and Safeguarding,Professional Entertainment Services,,11/07/2019," 2,015.50 ",-999999,Unclassifiable
5345403,COOLSPIRIT LTD,(blank),(blank),Communications Equipment,,12/07/19," 28,475.40 ",270000,Information Communication Technology
5345699,Medgen Limited,Childrens Services,Children's Services,Day Care Fees,,12/07/2019," 1,224.00 ",260000,Human Resources
5345462,Swan Assessments Ltd,Childrens Services,Children's Services,Professional Services,,12/07/2019," 2,650.00 ",321100,Social Community Care Supplies & Services - Children
5345573,ISOteaching,Education,Children's Services,#N/A,,12/07/19," 4,900.00 ",170000,Education
5345459,Redacted,Childrens Services,Children's Services,Legal Fees,,12/07/19, 550.00 ,400000,Non 3rd Party spend  
5345460,Redacted,Childrens Services,Children's Services,Legal Fees,,12/07/19, 650.00 ,400000,Non 3rd Party spend  
5346202,A1 Foster Care,Childrens Services,Children's Services,Foster Carer Agency Fees,,12/07/19," 3,542.86 ",321100,Social Community Care Supplies & Services - Children
5346210,iCare Solutions,Adult Social Care,Adults,Homecare Fees,,12/07/19," 4,845.39 ",310000,Healthcare
5345458,Quayside Childcare Limited,Childrens Services,Children's Services,Professional Services,,12/07/19, 876.00 ,360000,Public Transport
5345578,Plogolution,Operations and Neighbourhoods,Operations and Neighbourhoods,General Materials,,12/07/19," 3,000.00 ",260000,Human Resources
5345493,YOUNG PEOPLE FIRST LIMITED,Childrens Services,Children's Services,Living With Formal Support,,12/07/19," 5,838.00 ",321100,Social Community Care Supplies & Services - Children
5345576,PENNINE CARE NHS TRUST,Education,Children's Services,Professional Consultancy Services,,12/07/19," 4,441.20 ",321000,Social Community Care Supplies & Services - Adult
5345577,PENNINE CARE NHS TRUST,Education,Children's Services,Professional Consultancy Services,,12/07/19," 3,701.00 ",321000,Social Community Care Supplies & Services - Adult
5345071,Redacted,Childrens Services,Children's Services,Legal Fees,,12/07/19," 1,250.00 ",280000,Legal Services
5345715,Flintshire County Council,Education,Children's Services,Other Local Authorities Fees,,12/07/19," 19,420.15 ",-999999,Unclassifiable
5345712,The Running Bee Foundation,Population Health,Population Health,Contributions,,12/07/19," 2,000.00 ",310000,Healthcare
5345541,Redacted,Childrens Services,Children's Services,Professional Services,Redacted Supplier,12/07/19," 2,421.25 ",321100,Social Community Care Supplies & Services - Children
3250719,BURNT TREE GROUP LIMITED,Operations and Neighbourhoods,Operations and Neighbourhoods,Additional Hire,,12/07/19," 4,292.26 ",380000,Vehicle Management
3250719,DENNIS EAGLE LTD,Operations and Neighbourhoods,Operations and Neighbourhoods,General Materials,,12/07/19, 807.74 ,380000,Vehicle Management
3250719,DIRECT FILTER/ PARTS SUPPLY,Operations and Neighbourhoods,Operations and Neighbourhoods,Consumable Materials,,12/07/19, 505.87 ,380000,Vehicle Management
3250719,G B OILS TA CARLTON FUELS,Transport,Director of Place,Diesel Fuel,,12/07/19," 10,118.79 ",380000,Vehicle Management
5345466,A & G BUILDING & JOINERY SERVICES LTD,Housing,Director of Place,Adaptations - Jobs <#500,,12/07/19, 600.00 ,390000,"Works - Construction, Repair & Maintenance"
5345757,Randstad Public Services Limited,Individual Schools Budget,Children's Services,Agency Staff,,12/07/19," 1,025.00 ",170000,Education
5345817,Randstad Public Services Limited,Education,Children's Services,Agency Staff,,12/07/19, 572.50 ,170000,Education
5345756,Randstad Public Services Limited,Education,Children's Services,Agency Staff,,12/07/19, 572.50 ,170000,Education
5344113,STEP AHEAD RESOURCE SERVICES,Adult Social Care,Adults,Homecare Fees,,12/07/19," 1,150.00 ",321000,Social Community Care Supplies & Services - Adult
5347603,AIDAN GAUNT FUNERAL DIRECTORS,Operations and Neighbourhoods,Operations and Neighbourhoods,Professional Services,,12/07/2019," 1,460.00 ",-999999,Unclassifiable
5345374,SOFTCAT LIMITED,(blank),(blank),Computer Hardware,,12/07/19," 20,950.20 ",270000,Information Communication Technology
5348431,PRD PROPERTY SERVICES LTD,Governance,Governance,Legal Fees,,12/07/19," 5,270.00 ",190000,Facilities & Management Services
5348482,NEW BRIDGE HORIZONS,Adult Social Care,Adults,Day Centre Fees,,12/07/19," 2,335.00 ",321000,Social Community Care Supplies & Services - Adult
5348478,NEW BRIDGE HORIZONS,Adult Social Care,Adults,Day Centre Fees,,12/07/19," 2,218.25 ",321000,Social Community Care Supplies & Services - Adult
5348479,NEW BRIDGE HORIZONS,Adult Social Care,Adults,Day Centre Fees,,12/07/19," 1,868.00 ",321000,Social Community Care Supplies & Services - Adult
5345381,Redacted,Childrens Services,Children's Services,Living With Formal Support,Redacted Supplier,12/07/19," 4,148.42 ",321000,Social Community Care Supplies & Services - Adult
5345380,Redacted,Childrens Services,Children's Services,Living With Formal Support,Redacted Supplier,12/07/19," 4,619.31 ",321000,Social Community Care Supplies & Services - Adult
5345383,Redacted,Childrens Services,Children's Services,Living With Formal Support,Redacted Supplier,12/07/2019," 2,674.60 ",321000,Social Community Care Supplies & Services - Adult
5345382,Redacted,Childrens Services,Children's Services,Living With Formal Support,Redacted Supplier,12/07/19," 4,595.44 ",321000,Social Community Care Supplies & Services - Adult
5345040,BY THE BRIDGE NORTH WEST LTD,Childrens Services,Children's Services,Foster Carer Agency Fees,,12/07/19," 4,477.50 ",908001,Public Bodies
5345615,Redacted,Childrens Services,Children's Services,Legal Fees,Business Payment,12/07/19, 500.00 ,-999999,Unclassifiable
5345594,QUADRANT SECURITY GROUP LTD,Operations and Neighbourhoods,Operations and Neighbourhoods,Security Equipment,,12/07/19," 2,130.00 ",190000,Facilities & Management Services
5348055,ABLE CARE AND SUPPORT SERVICES LTD,Adult Social Care,Adults,Homecare Fees,,12/07/19, 959.00 ,321000,Social Community Care Supplies & Services - Adult
5347655,ABLE CARE AND SUPPORT SERVICES LTD,Adult Social Care,Adults,Homecare Fees,,12/07/19," 40,400.16 ",321000,Social Community Care Supplies & Services - Adult
5347654,ABLE CARE AND SUPPORT SERVICES LTD,Adult Social Care,Adults,Homecare Fees,,12/07/19," 19,998.33 ",321000,Social Community Care Supplies & Services - Adult
5348054,ABLE CARE AND SUPPORT SERVICES LTD,Adult Social Care,Adults,Homecare Fees,,12/07/19," 5,720.53 ",321000,Social Community Care Supplies & Services - Adult
5345812,FOSTERING PEOPLE LTD,Childrens Services,Children's Services,Foster Carer Agency Fees,,12/07/19," 3,405.00 ",321100,Social Community Care Supplies & Services - Children
5345479,Redacted,Education,Children's Services,#N/A,Redacted Supplier,12/07/19," 6,695.00 ",321100,Social Community Care Supplies & Services - Children
5345439,VISION BEYOND AUTISM CIC,Education,Children's Services,Non-Maintained School Fees,,12/07/19," 9,941.75 ",321100,Social Community Care Supplies & Services - Children
5348472,COZYHOMES4U LTD,Operations and Neighbourhoods,Operations and Neighbourhoods,Other Accomodation Related Costs,,12/07/2019, 900.00 ,-999999,Unclassifiable
5345371,Manchester University NHS Foundation Trust (MFT),Population Health,Population Health,Contributions,,12/07/19," 4,195.69 ",150000,Consultancy
5345832,Redacted,Individual Schools Budget,Children's Services,Professional Services,,12/07/19," 39,027.55 ",170000,Education
5348302,Redacted,Education,Children's Services,#N/A,,12/07/19," 7,560.00 ",170000,Education
5345579,UK CONTAINER MAINTENANCE LTD,Operations and Neighbourhoods,Operations and Neighbourhoods,General Materials,,12/07/19," 3,176.52 ",390000,"Works - Construction, Repair & Maintenance"
5345367,Connex Community Support,Childrens Services,Children's Services,Day Care Fees,,12/07/19, 766.50 ,321000,Social Community Care Supplies & Services - Adult
5345358,Connex Community Support,Childrens Services,Children's Services,Day Care Fees,,12/07/19, 589.00 ,321000,Social Community Care Supplies & Services - Adult
5345354,Connex Community Support,Childrens Services,Children's Services,Day Care Fees,,12/07/19, 533.75 ,321000,Social Community Care Supplies & Services - Adult
5345370,Connex Community Support,Childrens Services,Children's Services,Day Care Fees,,12/07/19, 676.50 ,321000,Social Community Care Supplies & Services - Adult
5347599,INSPIREDSPACES TAMESIDE LTD,Place,Growth,Professional Services,,12/07/19," 17,471.20 ",390000,"Works - Construction, Repair & Maintenance"
5348296,BRANAS ISAF LTD,Childrens Services,Children's Services,Childrens Homes Outside Local Authority Fees,,12/07/19," 19,991.58 ",321100,Social Community Care Supplies & Services - Children
5346445,MEDACS HEALTHCARE,Adult Social Care,Adults,Homecare Fees,,12/07/19," 24,891.42 ",150000,Consultancy
5346446,MEDACS HEALTHCARE,Adult Social Care,Adults,Homecare Fees,,12/07/19," 24,891.42 ",150000,Consultancy
5346448,MEDACS HEALTHCARE,Adult Social Care,Adults,Homecare Fees,,12/07/19," 18,805.28 ",150000,Consultancy
5347716,ELITE CARE SERVICES (UK) LTD,Adult Social Care,Adults,Homecare Fees,,12/07/19," 1,012.62 ",321000,Social Community Care Supplies & Services - Adult
5344939,STEPPING STONES CHILDRENS HOMES LTD,Childrens Services,Children's Services,Childrens Homes Outside Local Authority Fees,,12/07/19," 20,000.00 ",321100,Social Community Care Supplies & Services - Children
5345345,DHL Parcel UK Ltd (UK Mail),Exchequer,Governance,Printing And Stationery,,12/07/19," 4,919.40 ",300000,Mail Services
5345568,Non Stop Recruitment,Childrens Services,Children's Services,Agency Staff,,12/07/19," 1,518.48 ",260000,Human Resources
5347776,Smartway Health and Social Care Limited,Adult Social Care,Adults,Homecare Fees,,12/07/19," 1,972.43 ",321000,Social Community Care Supplies & Services - Adult
5345793,Redacted,Childrens Services,Children's Services,Professional Services,,12/07/19," 1,831.20 ",170000,Education
5345564,SMS Coaching LTD,Education,Children's Services,Non-Maintained School Fees,,12/07/19," 9,063.00 ",-999999,Unclassifiable
5345565,SMS Coaching LTD,Education,Children's Services,Non-Maintained School Fees,,12/07/19," 3,816.00 ",-999999,Unclassifiable
5347625,Viva Minibus LTD,Childrens Services,Children's Services,Hired Transport,,12/07/19, 840.00 ,230000,Highway Equipment & Materials
5345560,Compass Fostering North LTD,Childrens Services,Children's Services,Foster Carer Agency Fees,,12/07/19," 3,198.04 ",321100,Social Community Care Supplies & Services - Children
5345561,Compass Fostering North LTD,Childrens Services,Children's Services,Foster Carer Agency Fees,,12/07/19," 3,256.98 ",321100,Social Community Care Supplies & Services - Children
5345559,Compass Fostering North LTD,Childrens Services,Children's Services,Foster Carer Agency Fees,,12/07/19," 3,175.76 ",321100,Social Community Care Supplies & Services - Children
5345557,Compass Fostering North LTD,Childrens Services,Children's Services,Foster Carer Agency Fees,,12/07/19," 3,334.50 ",321100,Social Community Care Supplies & Services - Children
5345558,Compass Fostering North LTD,Childrens Services,Children's Services,Foster Carer Agency Fees,,12/07/19," 3,008.61 ",321100,Social Community Care Supplies & Services - Children
5345563,Compass Fostering North LTD,Childrens Services,Children's Services,Foster Carer Agency Fees,,12/07/19," 3,428.40 ",321100,Social Community Care Supplies & Services - Children
5345562,Compass Fostering North LTD,Childrens Services,Children's Services,Foster Carer Agency Fees,,12/07/19," 3,428.40 ",321100,Social Community Care Supplies & Services - Children
5345478,Good News Family Care (Homes) LTD,Childrens Services,Children's Services,Professional Child Services,,12/07/19," 1,350.00 ",321100,Social Community Care Supplies & Services - Children
5347791,ARCO LIMITED,Adult Social Care,Adults,Uniforms/Clothing,,12/07/19, 512.20 ,140000,Clothing
5345294,XMA LIMITED,Digital Tameside,Finance & IT,It Equipment,,12/07/2019," 3,588.16 ",270000,Information Communication Technology
5345339,MANCHESTER METROPOLITAN UNIVERSITY,People and Workforce Development,Governance,Training Course Costs,,12/07/19, 750.00 ,UNCLASS,Unclassifiable
5345340,MANCHESTER METROPOLITAN UNIVERSITY,People and Workforce Development,Governance,Training Course Costs,,12/07/19, 750.00 ,UNCLASS,Unclassifiable
5345791,MANCHESTER METROPOLITAN UNIVERSITY,People and Workforce Development,Governance,Training Course Costs,,12/07/19, 750.00 ,UNCLASS,Unclassifiable
5345341,MANCHESTER METROPOLITAN UNIVERSITY,People and Workforce Development,Governance,Training Course Costs,,12/07/19, 750.00 ,UNCLASS,Unclassifiable
5345338,MANCHESTER METROPOLITAN UNIVERSITY,People and Workforce Development,Governance,Training Course Costs,,12/07/19, 750.00 ,UNCLASS,Unclassifiable
5347920,DIRECT CARE (TAMESIDE) LTD,Adult Social Care,Adults,Homecare Fees,,12/07/19," 39,937.75 ",321000,Social Community Care Supplies & Services - Adult
5345426,MYERSCOUGH COLLEGE,Education,Children's Services,#N/A,,12/07/19," 2,103.00 ",908001,Public Bodies
5345553,PARALLEL PARENTS,Childrens Services,Children's Services,Foster Carer Agency Fees,,12/07/19," 1,441.80 ",321100,Social Community Care Supplies & Services - Children
5345984,ROYAL MAIL GROUP PLC,Governance,Governance,Postages,,12/07/19," 3,299.39 ",300000,Mail Services
5345157,LORIMER FOSTERING SERVICES,Childrens Services,Children's Services,Foster Carer Agency Fees,,12/07/19," 3,407.14 ",321100,Social Community Care Supplies & Services - Children
5342878,BANNER GROUP LIMITED,Operations and Neighbourhoods,Operations and Neighbourhoods,Printing And Stationery,,12/07/19," 2,308.03 ",340000,Stationery
5345313,SWIIS FOSTER CARE LTD,Childrens Services,Children's Services,Foster Carer Agency Fees,,12/07/19, 676.97 ,321100,Social Community Care Supplies & Services - Children
5345310,SWIIS FOSTER CARE LTD,Childrens Services,Children's Services,Foster Carer Agency Fees,,12/07/2019, 837.97 ,321100,Social Community Care Supplies & Services - Children
5345311,SWIIS FOSTER CARE LTD,Childrens Services,Children's Services,Foster Carer Agency Fees,,12/07/19, 899.99 ,321100,Social Community Care Supplies & Services - Children
5345315,SWIIS FOSTER CARE LTD,Childrens Services,Children's Services,Foster Carer Agency Fees,,12/07/19, 693.49 ,321100,Social Community Care Supplies & Services - Children
5345309,SWIIS FOSTER CARE LTD,Childrens Services,Children's Services,Foster Carer Agency Fees,,12/07/19, 760.48 ,321100,Social Community Care Supplies & Services - Children
5345312,SWIIS FOSTER CARE LTD,Childrens Services,Children's Services,Foster Carer Agency Fees,,12/07/19, 660.10 ,321100,Social Community Care Supplies & Services - Children
5345314,SWIIS FOSTER CARE LTD,Childrens Services,Children's Services,Foster Carer Agency Fees,,12/07/19, 703.92 ,321100,Social Community Care Supplies & Services - Children
5345316,SWIIS FOSTER CARE LTD,Childrens Services,Children's Services,Foster Carer Agency Fees,,12/07/19, 658.84 ,321100,Social Community Care Supplies & Services - Children
5345484,MUSEUMS ASSOCIATION,Operations and Neighbourhoods,Operations and Neighbourhoods,Subscriptions,,12/07/19, 628.33 ,290000,Arts & Leisure Services
5348001,TAMESIDE COLLEGE,Education,Children's Services,#N/A,,12/07/19," 264,341.22 ",170000,Education
5345329,WESSEX LIFT CO. LIMITED,Housing,Director of Place,Improvement Grants - Final Mandatory,,12/07/19," 10,868.00 ",390000,"Works - Construction, Repair & Maintenance"
5347790,JACKSON & TAYLOR LTD,Housing,Director of Place,Adaptations - Jobs <#500,,12/07/19, 660.00 ,390000,"Works - Construction, Repair & Maintenance"
5347624,MANLEC ELECTRICAL(MANCHESTER) LTD,Housing,Director of Place,Adaptations - Jobs <#500,,12/07/19, 560.00 ,390000,"Works - Construction, Repair & Maintenance"
5345547,CORONA ENERGY RETAIL 4 LIMITED,Place,Growth,Gas,,12/07/19," 1,511.16 ",370000,Utilities
5345542,CORONA ENERGY RETAIL 4 LIMITED,Place,Growth,Gas,,12/07/19," 3,792.70 ",370000,Utilities
5345544,CORONA ENERGY RETAIL 4 LIMITED,Place,Growth,Gas,,12/07/19," 3,019.85 ",370000,Utilities
5345543,CORONA ENERGY RETAIL 4 LIMITED,Place,Growth,Gas,,12/07/19," 3,664.92 ",370000,Utilities
5345537,CORONA ENERGY RETAIL 4 LIMITED,Place,Growth,Gas,,12/07/19," 3,466.59 ",370000,Utilities
5345546,CORONA ENERGY RETAIL 4 LIMITED,Place,Growth,Gas,,12/07/2019," 2,316.47 ",370000,Utilities
5345536,CORONA ENERGY RETAIL 4 LIMITED,Place,Growth,Gas,,12/07/19," 2,674.71 ",370000,Utilities
5345548,CORONA ENERGY RETAIL 4 LIMITED,Place,Growth,Gas,,12/07/19," 1,123.33 ",370000,Utilities
5345830,CORONA ENERGY RETAIL 4 LIMITED,Place,Growth,Gas,,12/07/19," 24,010.22 ",370000,Utilities
5345539,CORONA ENERGY RETAIL 4 LIMITED,Place,Growth,Gas,,12/07/19," 3,875.52 ",370000,Utilities
5345540,CORONA ENERGY RETAIL 4 LIMITED,Place,Growth,Gas,,12/07/19," 4,291.16 ",370000,Utilities
5345549,CORONA ENERGY RETAIL 4 LIMITED,Place,Growth,Gas,,12/07/19," 1,739.52 ",370000,Utilities
5345519,NPOWER LIMITED,Place,Growth,Electricity,,12/07/19," 23,515.16 ",370000,Utilities
5347516,TAMESIDE ARTS LTD,Adult Social Care,Adults,Professional Services,,12/07/19," 3,086.40 ",290000,Arts & Leisure Services
5347510,TAMESIDE ARTS LTD,Adult Social Care,Adults,Professional Services,,12/07/19," 3,054.25 ",290000,Arts & Leisure Services
5345404,FOSTER CARES LTD,Childrens Services,Children's Services,Foster Carer Agency Fees,,12/07/19, 760.00 ,321100,Social Community Care Supplies & Services - Children
5345406,FOSTER CARES LTD,Childrens Services,Children's Services,Foster Carer Agency Fees,,12/07/2019, 760.00 ,321100,Social Community Care Supplies & Services - Children
5345405,FOSTER CARES LTD,Childrens Services,Children's Services,Foster Carer Agency Fees,,12/07/2019, 850.00 ,321100,Social Community Care Supplies & Services - Children
5348249,K P DODD CONSTRUCTION LTD,Place,Growth,Improvement Grants - Final Mandatory,,12/07/19, 708.00 ,390000,"Works - Construction, Repair & Maintenance"
470816,AGGREGATE INDUSTRIES UK LIMITED,Operations and Neighbourhoods,Operations and Neighbourhoods,General Materials,,15/07/19," 2,700.74 ",230000,Highway Equipment & Materials
470816,EAGLE CIVIL ENGINEERING LTD,Operations and Neighbourhoods,Operations and Neighbourhoods,General Materials,,15/07/19," 2,074.19 ",230000,Highway Equipment & Materials
470816,EAGLE CIVIL ENGINEERING LTD,Operations and Neighbourhoods,Operations and Neighbourhoods,Sub-contractor Services,,15/07/19," 20,161.86 ",230000,Highway Equipment & Materials
470816,KEN TAYLOR SUPPLIES LTD,Operations and Neighbourhoods,Operations and Neighbourhoods,General Materials,,15/07/2019," 1,092.50 ",-999999,Unclassifiable
470816,Redacted,Operations and Neighbourhoods,Operations and Neighbourhoods,General Materials,,15/07/19," 22,619.27 ",150000,Consultancy
470816,Redacted,Operations and Neighbourhoods,Operations and Neighbourhoods,Sub-contractor Services,,15/07/19," 16,167.50 ",150000,Consultancy
470816,MARWOOD ELECTRICAL CO,Civil Engineers,Director of Place,Debits Goods Received,,15/07/19, 771.72 ,230000,Highway Equipment & Materials
470816,P F CUSACK LTD,Civil Engineers,Director of Place,Debits Goods Received,,15/07/19, 500.70 ,240000,Horticultural
470816,TARMAC CENTRAL LIMITED,Operations and Neighbourhoods,Operations and Neighbourhoods,General Materials,,15/07/19," 19,451.95 ",230000,Highway Equipment & Materials
470816,WILDE CONSULTING ENGINEERS,Operations and Neighbourhoods,Operations and Neighbourhoods,General Materials,,15/07/19," 14,582.79 ",150000,Consultancy
470816,WOLSELEY UK LTD,Civil Engineers,Director of Place,Debits Goods Received,,15/07/19," 3,194.42 ",230000,Highway Equipment & Materials
470816,WOLSELEY UK LTD,Operations and Neighbourhoods,Operations and Neighbourhoods,General Materials,,15/07/19," 1,452.52 ",230000,Highway Equipment & Materials
470816,ZODION LTD,Civil Engineers,Director of Place,Debits Goods Received,,15/07/19, 615.60 ,230000,Highway Equipment & Materials
470816,GRAFTON MERCHANTING GB LTD,Civil Engineers,Director of Place,Debits Goods Received,,15/07/19, 543.50 ,100000,Building Construction Materials
470816,BRAMHALL SURFACING LTD,Operations and Neighbourhoods,Operations and Neighbourhoods,Sub-contractor Services,,15/07/19," 18,296.39 ",390000,"Works - Construction, Repair & Maintenance"
470816,JONES LIGHTING LTD,Operations and Neighbourhoods,Operations and Neighbourhoods,Sub-contractor Services,,15/07/19," 3,615.45 ",230000,Highway Equipment & Materials
470816,COMPASS MINERALS UK LTD,Civil Engineers,Director of Place,Debits Goods Received,,15/07/19," 4,828.62 ",230000,Highway Equipment & Materials
470816,STALYBRIDGE READYMIX LTD,Operations and Neighbourhoods,Operations and Neighbourhoods,General Materials,,15/07/19, 913.00 ,230000,Highway Equipment & Materials
470816,CASTINGS SERVICES LTD,Civil Engineers,Director of Place,Debits Goods Received,,15/07/19, 930.00 ,100000,Building Construction Materials
470816,TOTALLY LOCAL COMPANY LIMITED,Operations and Neighbourhoods,Operations and Neighbourhoods,Tipping Facility Fees,,15/07/19, 860.00 ,190000,Facilities & Management Services
470816,FSN Facilities Management Ltd,Operations and Neighbourhoods,Operations and Neighbourhoods,General Materials,,02/08/19," 5,670.00 ",190000,Facilities & Management Services
470816,NORTHWEST UTILITY SOLUTIONS LTD,Operations and Neighbourhoods,Operations and Neighbourhoods,Sub-contractor Services,,15/07/2019," 5,930.92 ",370000,Utilities
470816,TRAFFIC DIRECT LTD,(blank),(blank),General Materials,,15/07/19," 2,000.00 ",350000,Street & Traffic Management
470816,TRAFFIC DIRECT LTD,Operations and Neighbourhoods,Operations and Neighbourhoods,Sub-contractor Services,,15/07/19," 3,080.00 ",350000,Street & Traffic Management
470816,VIATEC UK,Operations and Neighbourhoods,Operations and Neighbourhoods,General Materials,,15/07/19," 1,674.00 ",390000,"Works - Construction, Repair & Maintenance"
470816,VIRIDOR,Operations and Neighbourhoods,Operations and Neighbourhoods,Tipping Facility Fees,,15/07/19," 18,580.90 ",180000,Environmental Services
470816,UTILITY & CONSTRUCTION TRAINING LTD,Operations and Neighbourhoods,Operations and Neighbourhoods,Training Course Costs,,15/07/19," 1,400.00 ",261400,Human Resources
470816,UNIVERSAL CONTAINER SERVICES LTD,Operations and Neighbourhoods,Operations and Neighbourhoods,General Materials,,24/07/19," 7,940.00 ",290000,Arts & Leisure Services
470816,MANCHESTER SAFETY  SERVICES LTD,Operations and Neighbourhoods,Operations and Neighbourhoods,General Materials,,15/07/19," 2,398.00 ",140000,Clothing
5348359,Hillgate Health Group Limited,Childrens Services,Children's Services,Living With Formal Support,,15/07/19," 1,179.36 ",-999999,Unclassifiable
5348037,BLACK & WHITE PROMOTIONAL PRINT SERVICES,Policy and Communications,Governance,Printing And Stationery,,15/07/19, 943.50 ,190000,Facilities & Management Services
5348327,INSTITUTE OF LICENSING (EVENTS) LIMITED,Operations and Neighbourhoods,Operations and Neighbourhoods,General Materials,,15/07/19," 1,489.20 ",UNCLASS,Unclassifiable
5345033,INTACT PROJECTS LIMITED,Childrens Services,Children's Services,Living With Formal Support,,15/07/2019," 1,590.00 ",321000,Social Community Care Supplies & Services - Adult
5346928,INTACT PROJECTS LIMITED,Childrens Services,Children's Services,Living With Formal Support,,15/07/19," 1,590.00 ",321000,Social Community Care Supplies & Services - Adult
5348205,PERSON CENTRED CARE SERVICES LIMITED,Adult Social Care,Adults,Homecare Fees,,15/07/19," 9,492.81 ",310000,Healthcare
5348148,NEW BRIDGE HORIZONS,Adult Social Care,Adults,Day Centre Fees,,15/07/19," 2,218.25 ",321000,Social Community Care Supplies & Services - Adult
5348480,NEW BRIDGE HORIZONS,Adult Social Care,Adults,Day Centre Fees,,15/07/19," 1,800.00 ",321000,Social Community Care Supplies & Services - Adult
5348138,NEW BRIDGE HORIZONS,Adult Social Care,Adults,Day Centre Fees,,15/07/19, 952.50 ,321000,Social Community Care Supplies & Services - Adult
5348481,NEW BRIDGE HORIZONS,Adult Social Care,Adults,Day Centre Fees,,15/07/19," 1,800.00 ",321000,Social Community Care Supplies & Services - Adult
5348139,NEW BRIDGE HORIZONS,Adult Social Care,Adults,Day Centre Fees,,15/07/19," 1,543.75 ",321000,Social Community Care Supplies & Services - Adult
5345444,Redacted,Childrens Services,Children's Services,Childrens Homes Outside Local Authority Fees,Redacted Supplier,15/07/19," 3,062.50 ",321000,Social Community Care Supplies & Services - Adult
5345898,AFFINITY TRUST,Adult Social Care,Adults,Homecare Fees,,15/07/19," 141,032.17 ",321000,Social Community Care Supplies & Services - Adult
5345899,AFFINITY TRUST,Adult Social Care,Adults,Homecare Fees,,15/07/19," 141,032.17 ",321000,Social Community Care Supplies & Services - Adult
5348532,CARELINE HOMECARE LTD,Adult Social Care,Adults,Homecare Fees,,15/07/19," 22,005.42 ",321000,Social Community Care Supplies & Services - Adult
5348636,Arrow Cabs LTD,Education,Children's Services,Transport Of Ola Pupils,,15/07/19," 3,700.00 ",360000,Public Transport
5348635,Arrow Cabs LTD,Education,Children's Services,Transport Of Ola Pupils,,15/07/2019," 3,500.00 ",360000,Public Transport
5348556,Adlard Transport LTD,Education,Children's Services,Transport Of Pupils,,15/07/19," 2,000.00 ",360000,Public Transport
5348535,Adlard Transport LTD,Education,Children's Services,Transport Of Pupils,,15/07/19," 2,000.00 ",360000,Public Transport
5348616,NMA Travel LTD,Childrens Services,Children's Services,Hired Transport,,15/07/19," 1,219.35 ",360000,Public Transport
5345792,Redacted,Education,Children's Services,Other Local Authorities Fees,,15/07/19," 6,621.08 ",170000,Education
5348588,Redacted,Childrens Services,Children's Services,Professional Services,,15/07/19, 600.00 ,-999999,Unclassifiable
5348197,STALYBRIDGE READYMIX LTD,Operations and Neighbourhoods,Operations and Neighbourhoods,General Materials,,15/07/19," 1,878.75 ",230000,Highway Equipment & Materials
5348590,ROYALE MINICOACHES,Education,Children's Services,Transport Of Pupils,,15/07/19," 2,080.00 ",UNCLASS,Unclassifiable
5348156,MANLEC ELECTRICAL(MANCHESTER) LTD,Housing,Director of Place,Adaptations - Small Jobs,,15/07/2019, 620.00 ,390000,"Works - Construction, Repair & Maintenance"
5345688,INSIGHT DIRECT (UK) LIMITED,Digital Tameside,Finance & IT,It Equipment,,15/07/19, 723.98 ,270000,Information Communication Technology
5348475,Eccles Borough Band,Operations and Neighbourhoods,Operations and Neighbourhoods,Professional Entertainment Services,,16/07/19, 500.00 ,400000,Non 3rd Party spend  
5348645,ISW CSC Limited,Childrens Services,Children's Services,Living With Formal Support,,16/07/19, 750.00 ,260000,Human Resources
5347845,Redacted,Operations and Neighbourhoods,Operations and Neighbourhoods,General Materials,,16/07/19," 5,000.00 ",-999999,Unclassifiable
5348533,NSL LIMITED,Operations and Neighbourhoods,Operations and Neighbourhoods,General Materials,,16/07/19," 51,873.41 ",350000,Street & Traffic Management
5345987,IMPROVEMENT AND DEVELOPMENT AGENCY,GMPF (FX),GMPF (FX),Training Course Costs,,16/07/19," 3,000.00 ",-999999,Unclassifiable
5348756,ENVIRONMENT AGENCY,Operations and Neighbourhoods,Operations and Neighbourhoods,General Materials,,16/07/19," 1,049.75 ",-999999,Unclassifiable
5348771,INSPIREDSPACES TAMESIDE LTD,Asset & Investment Partnership Management,Growth,Professional Services,,16/07/19," 23,880.07 ",390000,"Works - Construction, Repair & Maintenance"
5348772,INSPIREDSPACES TAMESIDE LTD,Asset & Investment Partnership Management,Growth,Free School Meal Costs,,16/07/19," 3,089.25 ",390000,"Works - Construction, Repair & Maintenance"
5348629,Hyde Accessible Transport Limited,Operations and Neighbourhoods,Operations and Neighbourhoods,Hired Transport,,16/07/19, 960.00 ,360000,Public Transport
5348624,Hyde Accessible Transport Limited,Education,Children's Services,Transport Of Ola Pupils,,16/07/19," 2,460.50 ",360000,Public Transport
5348627,Hyde Accessible Transport Limited,Operations and Neighbourhoods,Operations and Neighbourhoods,Hired Transport,,16/07/19, 990.00 ,360000,Public Transport
5348625,Hyde Accessible Transport Limited,Operations and Neighbourhoods,Operations and Neighbourhoods,Hired Transport,,16/07/19," 1,100.00 ",360000,Public Transport
5348623,Hyde Accessible Transport Limited,Operations and Neighbourhoods,Operations and Neighbourhoods,Hired Transport,,16/07/19, 625.00 ,360000,Public Transport
5348621,Hyde Accessible Transport Limited,Operations and Neighbourhoods,Operations and Neighbourhoods,Hired Transport,,16/07/19," 1,080.00 ",360000,Public Transport
5348476,FODENS BAND,Operations and Neighbourhoods,Operations and Neighbourhoods,Professional Entertainment Services,,16/07/19," 2,000.00 ",-999999,Unclassifiable
5348789,AUTUMN (UK) 2017 LIMITED,Housing,Director of Place,Improvement Grants - Final Mandatory,,16/07/19," 3,468.00 ",321000,Social Community Care Supplies & Services - Adult
5348743,AUTUMN (UK) 2017 LIMITED,Housing,Director of Place,Improvement Grants - Final Mandatory,,16/07/19," 3,583.46 ",321000,Social Community Care Supplies & Services - Adult
5348790,AUTUMN (UK) 2017 LIMITED,Housing,Director of Place,Improvement Grants - Final Mandatory,,16/07/19," 4,288.00 ",321000,Social Community Care Supplies & Services - Adult
5348474,ELLAND SILVER BAND,Operations and Neighbourhoods,Operations and Neighbourhoods,Professional Entertainment Services,,16/07/19, 750.00 ,400000,Non 3rd Party spend  
5345913,COOLSPIRIT LTD,Place,Growth,It Control Room Equipment,,17/07/19," 2,784.35 ",270000,Information Communication Technology
5348816,Torus 62 Commercial Services Ltd - T/A Torus Property Solutions,Housing,Director of Place,Improvement Grants - Final Mandatory,,17/07/19," 4,211.42 ",321000,Social Community Care Supplies & Services - Adult
5345926,Five Plus Architects Limited (5plus),Housing,Director of Place,Ground Condition Testing,,17/07/19," 3,000.00 ",390000,"Works - Construction, Repair & Maintenance"
5345924,Redacted,Childrens Services,Children's Services,Legal Fees,,17/07/19," 1,300.00 ",400000,Non 3rd Party spend  
5348644,ISW CSC Limited,Childrens Services,Children's Services,Living With Formal Support,,17/07/2019, 980.00 ,260000,Human Resources
5345925,YOUNG PEOPLE FIRST LIMITED,Childrens Services,Children's Services,Living With Formal Support,,17/07/19," 6,818.00 ",321100,Social Community Care Supplies & Services - Children
5345916,Sandcastle Care LTD,Childrens Services,Children's Services,Childrens Homes Outside Local Authority Fees,,17/07/19," 25,692.86 ",321000,Social Community Care Supplies & Services - Adult
5346214,Furniture Resource Centre Ltd,Operations and Neighbourhoods,Operations and Neighbourhoods,Fixtures & Fittings Purchase,,17/07/19, 624.48 ,#N/A,#N/A
5348922,Redacted,Childrens Services,Children's Services,Professional Child Services,,17/07/19," 2,505.50 ",321000,Social Community Care Supplies & Services - Adult
5347727,SEDGEMOOR DISTRICT COUNCIL,Hosted Services,Hosted Services,Professional Consultancy Services,,17/07/19," 4,066.48 ",-999999,Unclassifiable
5335112,YMCA FAIRTMORNE MANOR,Childrens Services,Children's Services,Personal Needs Entertainments & Holidays,,17/07/19," 2,704.00 ",908001,Public Bodies
5348927,Redacted,Education,Children's Services,Transport Of Pupils,Business Payment,17/07/19," 2,160.00 ",360000,Public Transport
5348925,Redacted,Education,Children's Services,Transport Of Pupils,Business Payment,17/07/19," 1,620.00 ",360000,Public Transport
5348926,Redacted,Education,Children's Services,Transport Of Pupils,Business Payment,17/07/19," 1,660.00 ",360000,Public Transport
5348924,Redacted,Education,Children's Services,Transport Of Post 16 Pupils,Business Payment,17/07/19," 1,836.00 ",360000,Public Transport
5348897,PAT HIGGINS LTD,Place,Growth,Furniture Removal Fees,,17/07/19," 2,953.50 ",190000,Facilities & Management Services
5345904,POSITIVE STEPS OLDHAM,Place,Growth,Professional Services,,17/07/19," 36,986.30 ",-999999,Unclassifiable
5348619,NEW BRIDGE HORIZONS,Adult Social Care,Adults,Day Centre Fees,,17/07/19," 1,710.00 ",321000,Social Community Care Supplies & Services - Adult
5348617,NEW BRIDGE HORIZONS,Adult Social Care,Adults,Day Centre Fees,,17/07/19," 1,869.60 ",321000,Social Community Care Supplies & Services - Adult
5348618,NEW BRIDGE HORIZONS,Adult Social Care,Adults,Day Centre Fees,,17/07/19," 1,751.25 ",321000,Social Community Care Supplies & Services - Adult
5345906,INTERFERENCE-ART,Operations and Neighbourhoods,Operations and Neighbourhoods,Professional Entertainment Services,,17/07/19, 900.00 ,200000,Financial Services
5345905,COMPLETE BACKGROUND SCREENING LTD,People and Workforce Development,Governance,Professional Services,,17/07/19, 874.00 ,-999999,Unclassifiable
5345903,COMPLETE BACKGROUND SCREENING LTD,People and Workforce Development,Governance,Professional Services,,17/07/19," 3,335.50 ",-999999,Unclassifiable
5345902,HEATHCOTES M LTD,Adult Social Care,Adults,Homecare Fees,,17/07/19," 9,068.66 ",321000,Social Community Care Supplies & Services - Adult
5345901,TUDOR (UK) LTD T/A TUDOR ENVIRONMENTAL,Operations and Neighbourhoods,Operations and Neighbourhoods,General Materials,,17/07/19," 2,704.12 ",240000,Horticultural
5348929,PRISM MEDICAL UK,Housing,Director of Place,Improvement Grants - Final Mandatory,,17/07/19," 1,961.26 ",321000,Social Community Care Supplies & Services - Adult
5347798,INSPIREDSPACES TAMESIDE LTD,Tameside Investment Partnership,Director of Place,New Build Construction Costs,,17/07/19," 53,218.04 ",390000,"Works - Construction, Repair & Maintenance"
5345881,Redacted,Education,Children's Services,Professional Services,,17/07/19," 1,100.00 ",170000,Education
5345882,Redacted,Education,Children's Services,Professional Services,,17/07/19," 1,100.00 ",170000,Education
5346240,LIBERTY SUPPORT SERVICES LTD,Adult Social Care,Adults,Homecare Fees,,17/07/19," 16,554.16 ",321000,Social Community Care Supplies & Services - Adult
5345349,HORIZON SEMI-INDEPENDENT SUPPORT,Childrens Services,Children's Services,Living With Formal Support,,17/07/19," 3,600.00 ",321000,Social Community Care Supplies & Services - Adult
5345865,Pertemps Professional Recruitment Limited,Childrens Services,Children's Services,Agency Staff,,17/07/19," 1,319.76 ",321100,Social Community Care Supplies & Services - Children
5348365,Oxygen Finance Limited,People and Workforce Development,Governance,Professional Services,,17/07/19, 536.42 ,200000,Financial Services
5348783,Emsleys Solicitors,Multiple Heads of Service,Multiple Strategic Directorates,Claims Settled,,17/07/19," 1,000.00 ",230000,Highway Equipment & Materials
5348887,Hyde Accessible Transport Limited,Childrens Services,Children's Services,Hired Transport,,17/07/19, 910.00 ,360000,Public Transport
5348312,Redacted,Multiple Heads of Service,Multiple Strategic Directorates,Section 52 School Cash Advances,Redacted Supplier,17/07/19," 6,000.00 ",400000,Non 3rd Party spend  
5345879,DOCUMENT MANAGEMENT INDUSTRIES ASSOCIATION,Place,Growth,Computer Software,,17/07/19, 861.30 ,190000,Facilities & Management Services
5347277,CREATIVE SUPPORT LTD,Adult Social Care,Adults,Independent Sector Care Fees,,17/07/19," 72,336.58 ",321000,Social Community Care Supplies & Services - Adult
5347276,CREATIVE SUPPORT LTD,Adult Social Care,Adults,Independent Sector Care Fees,,17/07/19," 72,336.58 ",321000,Social Community Care Supplies & Services - Adult
5346979,CREATIVE SUPPORT LTD,Adult Social Care,Adults,Homecare Fees,,17/07/19," 4,404.22 ",321000,Social Community Care Supplies & Services - Adult
5347779,Redacted,Childrens Services,Children's Services,Childrens Homes Outside Local Authority Fees,Redacted Supplier,17/07/19," 11,335.80 ",321100,Social Community Care Supplies & Services - Children
5347775,Redacted,Childrens Services,Children's Services,Childrens Homes Outside Local Authority Fees,Redacted Supplier,17/07/19," 16,885.80 ",321100,Social Community Care Supplies & Services - Children
5347781,Redacted,Childrens Services,Children's Services,Childrens Homes Outside Local Authority Fees,Redacted Supplier,17/07/19," 10,478.70 ",321100,Social Community Care Supplies & Services - Children
5347774,Redacted,Childrens Services,Children's Services,Childrens Homes Outside Local Authority Fees,Redacted Supplier,17/07/19," 11,335.80 ",321100,Social Community Care Supplies & Services - Children
5347777,Redacted,Childrens Services,Children's Services,Childrens Homes Outside Local Authority Fees,Redacted Supplier,17/07/19," 11,978.70 ",321100,Social Community Care Supplies & Services - Children
5346172,SWIIS FOSTER CARE LTD,Childrens Services,Children's Services,Foster Carer Agency Fees,,17/07/19, 837.97 ,321100,Social Community Care Supplies & Services - Children
5348847,E PETCH PRINTERS LTD,Policy and Communications,Governance,Printing And Stationery,,17/07/19, 780.00 ,190000,Facilities & Management Services
5345331,STALYBRIDGE READYMIX LTD,Operations and Neighbourhoods,Operations and Neighbourhoods,General Materials,,17/07/19, 693.75 ,230000,Highway Equipment & Materials
5345873,SWEEPWISE LIMITED,Operations and Neighbourhoods,Operations and Neighbourhoods,General Equipment Purchase,,17/07/19," 3,200.00 ",230000,Highway Equipment & Materials
5348810,JACKSON & TAYLOR LTD,Housing,Director of Place,Improvement Grants - Final Mandatory,,17/07/19," 3,400.00 ",390000,"Works - Construction, Repair & Maintenance"
5348086,QUALITY PROTECTS CHILDREN LTD,Childrens Services,Children's Services,Childrens Homes Outside Local Authority Fees,,17/07/19," 12,000.00 ",-999999,Unclassifiable
5348085,QUALITY PROTECTS CHILDREN LTD,Childrens Services,Children's Services,Childrens Homes Outside Local Authority Fees,,17/07/19," 30,000.00 ",-999999,Unclassifiable
5348084,QUALITY PROTECTS CHILDREN LTD,Childrens Services,Children's Services,Childrens Homes Outside Local Authority Fees,,17/07/19," 26,000.00 ",-999999,Unclassifiable
5348333,WORLDPAY,Finance,Finance & IT,National Giro,,18/07/19," 11,396.71 ",200000,Financial Services
5349046,BARCLAYCARD COMMERCIAL,Childrens Services,Children's Services,Procurement Hub Holding Account,,18/07/19," 27,810.11 ",200000,Financial Services
5349046,BARCLAYCARD COMMERCIAL,Individual Schools Budget,Children's Services,Procurement Hub Holding Account,,18/07/19," 1,091.58 ",200000,Financial Services
5349046,BARCLAYCARD COMMERCIAL,Operations and Neighbourhoods,Operations and Neighbourhoods,Procurement Hub Holding Account,,18/07/19, 605.61 ,200000,Financial Services
5349046,BARCLAYCARD COMMERCIAL,Hosted Services,Hosted Services,Procurement Hub Holding Account,,18/07/19," 1,233.43 ",200000,Financial Services
5349046,BARCLAYCARD COMMERCIAL,Digital Tameside,Finance & IT,Procurement Hub Holding Account,,18/07/19," 1,788.92 ",200000,Financial Services
5349033,CAPITA - BENEFIT PAYMENTS,Exchequer,Governance,Housing Benefit Payments,,18/07/19," 316,101.86 ",-999999,Unclassifiable
5349030,CAPITA - BENEFIT PAYMENTS,Exchequer,Governance,Housing Benefit Payments,,18/07/19," 18,764.96 ",-999999,Unclassifiable
5349032,CAPITA - BENEFIT PAYMENTS,Exchequer,Governance,Housing Benefit Payments,,18/07/19," 29,271.68 ",-999999,Unclassifiable
5348322,AD HOC CHAPS PAYMENT,Multiple Heads of Service,Multiple Strategic Directorates,Debits Superann Teachers,,18/07/19," 908,456.52 ",400002,Chaps Payments
5349042,AD HOC CHAPS PAYMENT,Digital Tameside,Finance & IT,Computer Software,,18/07/19," 1,630.95 ",400002,Chaps Payments
5348490,Redacted,Operations and Neighbourhoods,Operations and Neighbourhoods,Hired Transport,Business Payment,18/07/19," 2,236.00 ",360000,Public Transport
5348491,Redacted,Operations and Neighbourhoods,Operations and Neighbourhoods,Hired Transport,Business Payment,18/07/19," 1,050.00 ",360000,Public Transport
5345960,Nationwide Franking Sense Limited,Governance,Governance,General Equipment Purchase,,18/07/19, 625.00 ,400000,Non 3rd Party spend  
5349073,Redacted,Multiple Heads of Service,Multiple Strategic Directorates,Salaries & Wages Advances(Hold),,18/07/19," 4,448.47 ",400000,Non 3rd Party spend  
5341282,Dance Manchester Ltd,Operations and Neighbourhoods,Operations and Neighbourhoods,Professional Entertainment Services,,18/07/19, 608.00 ,290000,Arts & Leisure Services
5346015,Asset Management Academy,Engineers Client,Director of Place,Engineers -External,,18/07/19," 1,600.00 ",260000,Human Resources
5348310,jhweb Design,Operations and Neighbourhoods,Operations and Neighbourhoods,General Materials,,18/07/19, 500.00 ,270000,Information Communication Technology
5348339,Fire Regulation Services Ltd,Individual Schools Budget,Children's Services,Miscellaneous Expenses,,18/07/19," 1,225.00 ",260000,Human Resources
5349075,Redacted,Multiple Heads of Service,Multiple Strategic Directorates,Salaries & Wages Advances(Hold),,18/07/19," 1,705.00 ",-999999,Unclassifiable
5349044,Redacted,Multiple Heads of Service,Multiple Strategic Directorates,Salaries & Wages Advances(Hold),,18/07/19, 980.00 ,-999999,Unclassifiable
5349093,Redacted,Multiple Heads of Service,Multiple Strategic Directorates,Salaries & Wages Advances(Hold),,18/07/19," 1,250.00 ",-999999,Unclassifiable
5345948,NETCARE EUROPE LTD,Place,Growth,It Control Room Equipment,,18/07/19, 894.00 ,-999999,Unclassifiable
5348774,PG FABRICATIONS,Operations and Neighbourhoods,Operations and Neighbourhoods,General Materials,,18/07/19," 2,475.00 ",390000,"Works - Construction, Repair & Maintenance"
3250720,BURNT TREE GROUP LIMITED,Operations and Neighbourhoods,Operations and Neighbourhoods,Additional Hire,,18/07/19," 2,073.50 ",380000,Vehicle Management
3250720,DENNIS EAGLE LTD,Transport,Director of Place,Debits Goods Received,,18/07/19," 3,193.30 ",380000,Vehicle Management
3250720,DENNIS EAGLE LTD,Operations and Neighbourhoods,Operations and Neighbourhoods,General Materials,,18/07/19," 4,569.31 ",380000,Vehicle Management
3250720,G B OILS TA CARLTON FUELS,Transport,Director of Place,Diesel Fuel,,18/07/19," 21,373.80 ",380000,Vehicle Management
3250720,MULTEVO LIMITED,Operations and Neighbourhoods,Operations and Neighbourhoods,General Materials,,18/07/19," 1,786.67 ",-999999,Unclassifiable
3250720,PEAK PARTS,Operations and Neighbourhoods,Operations and Neighbourhoods,General Equipment Purchase,,18/07/19, 914.00 ,380000,Vehicle Management
3250720,AEBI SCHMIDT UK LTD,Operations and Neighbourhoods,Operations and Neighbourhoods,General Materials,,18/07/19," 1,537.25 ",380000,Vehicle Management
3250720,SKYKING LTD,Operations and Neighbourhoods,Operations and Neighbourhoods,General Materials,,18/07/19," 2,231.46 ",380000,Vehicle Management
3250720,BRENNTAG UK LIMITED,Transport,Director of Place,Fuel / Ad Blu,,18/07/19, 835.76 ,130000,Cleaning & Janitorial
3250720,PO HYDRAULICS T/A PIRTEK OLDHAM,Operations and Neighbourhoods,Operations and Neighbourhoods,Sub-contractor Services,,18/07/19, 556.29 ,380000,Vehicle Management
5346463,MATTHEW COOKE T/A THE TRAINING COMPANY,Childrens Services,Children's Services,Training Course Costs,,18/07/2019, 786.20 ,260000,Human Resources
5346228,TRANSPORT FOR GREATER MANCHESTER,Tameside Investment Partnership,Director of Place,Consultancies,,18/07/2019," 3,800.00 ",360000,Public Transport
5346229,TRANSPORT FOR GREATER MANCHESTER,Tameside Investment Partnership,Director of Place,Consultancies,,18/07/19," 1,386.00 ",360000,Public Transport
5346456,TRANSPORT FOR GREATER MANCHESTER,Education,Children's Services,Bus Pass Fees,,18/07/19," 18,755.75 ",360000,Public Transport
5346461,TRANSPORT FOR GREATER MANCHESTER,Education,Children's Services,Bus Pass Fees,,18/07/19," 16,815.50 ",360000,Public Transport
5345989,TRANSPORT FOR GREATER MANCHESTER,Tameside Investment Partnership,Director of Place,Consultancies,,18/07/19, 670.00 ,360000,Public Transport
5331430,TRANSPORT FOR GREATER MANCHESTER,Tameside Investment Partnership,Director of Place,Consultancies,,18/07/19," 1,287.50 ",360000,Public Transport
5347821,FUSION CARE,Adult Social Care,Adults,Residential Home Long Stay Fees,,18/07/19," 9,851.62 ",321100,Social Community Care Supplies & Services - Children
5348226,ASHTON PIONEER HOMES,Operations and Neighbourhoods,Operations and Neighbourhoods,Miscellaneous Expenses,,18/07/19," 3,904.75 ",250000,Housing Management
5345973,CARRICK SIGNS LTD,Policy and Communications,Governance,Printing And Stationery,,18/07/19, 588.00 ,100000,Building Construction Materials
5346358,DEFENSIVE DRIVER TRAINING LTD,Operations and Neighbourhoods,Operations and Neighbourhoods,Training Course Costs,,18/07/2019, 896.25 ,260000,Human Resources
5348220,THE FAMILY UNIT LTD,Childrens Services,Children's Services,Living With Formal Support,,18/07/2019," 3,400.00 ",321000,Social Community Care Supplies & Services - Adult
5348215,THE FAMILY UNIT LTD,Childrens Services,Children's Services,Living With Formal Support,,18/07/2019," 3,400.00 ",321000,Social Community Care Supplies & Services - Adult
5348218,THE FAMILY UNIT LTD,Childrens Services,Children's Services,Living With Formal Support,,18/07/2019," 3,400.00 ",321000,Social Community Care Supplies & Services - Adult
5348214,THE FAMILY UNIT LTD,Childrens Services,Children's Services,Living With Formal Support,,18/07/19," 3,400.00 ",321000,Social Community Care Supplies & Services - Adult
5348213,THE FAMILY UNIT LTD,Childrens Services,Children's Services,Living With Formal Support,,18/07/19," 3,400.00 ",321000,Social Community Care Supplies & Services - Adult
5348217,THE FAMILY UNIT LTD,Childrens Services,Children's Services,Living With Formal Support,,18/07/19," 3,400.00 ",321000,Social Community Care Supplies & Services - Adult
5348219,THE FAMILY UNIT LTD,Childrens Services,Children's Services,Living With Formal Support,,18/07/19," 7,000.00 ",321000,Social Community Care Supplies & Services - Adult
5348216,THE FAMILY UNIT LTD,Childrens Services,Children's Services,Living With Formal Support,,18/07/19," 3,400.00 ",321000,Social Community Care Supplies & Services - Adult
5345980,CORE INTEGRATED SOLUTIONS LTD,(blank),(blank),Cabling/Diversion Works,,18/07/19," 2,641.08 ",390000,"Works - Construction, Repair & Maintenance"
5346024,VIRGIN CARE SERVICES - NON SURREY,Population Health,Population Health,Professional Services,,18/07/19," 1,179.00 ",150000,Consultancy
5344191,Redacted,Finance,Finance & IT,Fees,,18/07/19," 12,000.00 ",-999999,Unclassifiable
5348278,ABLE CARE AND SUPPORT SERVICES LTD,Adult Social Care,Adults,Homecare Fees,,18/07/19," 4,930.11 ",321000,Social Community Care Supplies & Services - Adult
5348277,ABLE CARE AND SUPPORT SERVICES LTD,Adult Social Care,Adults,Homecare Fees,,18/07/2019, 805.06 ,321000,Social Community Care Supplies & Services - Adult
5349001,Versalift United Kingdom Limited,Operations and Neighbourhoods,Operations and Neighbourhoods,Training Course Costs,,18/07/19, 615.00 ,380000,Vehicle Management
5348412,INSPIREDSPACES TAMESIDE LTD,Place,Growth,Other Works,,18/07/19," 79,045.54 ",390000,"Works - Construction, Repair & Maintenance"
5348407,INSPIREDSPACES TAMESIDE LTD,Place,Growth,Other Works,,18/07/19," 21,807.03 ",390000,"Works - Construction, Repair & Maintenance"
5348409,INSPIREDSPACES TAMESIDE LTD,(blank),(blank),Other Works,,18/07/19," 24,665.39 ",390000,"Works - Construction, Repair & Maintenance"
5347955,INSPIREDSPACES TAMESIDE LTD,Place,Growth,Refurbish Accommodation Works,,18/07/2019," 18,511.76 ",390000,"Works - Construction, Repair & Maintenance"
5348411,INSPIREDSPACES TAMESIDE LTD,Place,Growth,Other Works,,18/07/2019," 17,866.24 ",390000,"Works - Construction, Repair & Maintenance"
5349049,INSPIREDSPACES TAMESIDE LTD,Place,Growth,Refreshments,,18/07/2019," 128,832.63 ",390000,"Works - Construction, Repair & Maintenance"
5345347,HORIZON SEMI-INDEPENDENT SUPPORT,Childrens Services,Children's Services,Living With Formal Support,,18/07/19," 4,400.00 ",321000,Social Community Care Supplies & Services - Adult
5346023,INSPIRE COMMUNITY SERVICES LIMITED,Childrens Services,Children's Services,Living With Formal Support,,18/07/19," 1,253.55 ",170000,Education
5346003,INSPIRE COMMUNITY SERVICES LIMITED,Childrens Services,Children's Services,Living With Formal Support,,18/07/19, 911.35 ,170000,Education
5346019,INSPIRE COMMUNITY SERVICES LIMITED,Childrens Services,Children's Services,Living With Formal Support,,18/07/19," 1,242.75 ",170000,Education
5346021,INSPIRE COMMUNITY SERVICES LIMITED,Childrens Services,Children's Services,Living With Formal Support,,18/07/19," 1,982.10 ",170000,Education
5348248,STEPPING STONES CHILDRENS HOMES LTD,Childrens Services,Children's Services,Childrens Homes Outside Local Authority Fees,,18/07/19," 20,000.00 ",321100,Social Community Care Supplies & Services - Children
5348243,STEPPING STONES CHILDRENS HOMES LTD,Childrens Services,Children's Services,Childrens Homes Outside Local Authority Fees,,18/07/19," 28,000.00 ",321100,Social Community Care Supplies & Services - Children
5348234,STEPPING STONES CHILDRENS HOMES LTD,Childrens Services,Children's Services,Childrens Homes Outside Local Authority Fees,,18/07/19," 20,000.00 ",321100,Social Community Care Supplies & Services - Children
5348244,STEPPING STONES CHILDRENS HOMES LTD,Childrens Services,Children's Services,Childrens Homes Outside Local Authority Fees,,18/07/19," 20,000.00 ",321100,Social Community Care Supplies & Services - Children
5348233,STEPPING STONES CHILDRENS HOMES LTD,Childrens Services,Children's Services,Childrens Homes Outside Local Authority Fees,,18/07/19," 16,000.00 ",321100,Social Community Care Supplies & Services - Children
5348236,STEPPING STONES CHILDRENS HOMES LTD,Childrens Services,Children's Services,Childrens Homes Outside Local Authority Fees,,18/07/19," 14,000.00 ",321100,Social Community Care Supplies & Services - Children
5348238,STEPPING STONES CHILDRENS HOMES LTD,Childrens Services,Children's Services,Childrens Homes Outside Local Authority Fees,,18/07/19, 714.29 ,321100,Social Community Care Supplies & Services - Children
5348239,STEPPING STONES CHILDRENS HOMES LTD,Childrens Services,Children's Services,Childrens Homes Outside Local Authority Fees,,18/07/19," 14,000.00 ",321100,Social Community Care Supplies & Services - Children
5348232,STEPPING STONES CHILDRENS HOMES LTD,Childrens Services,Children's Services,Childrens Homes Outside Local Authority Fees,,18/07/19," 20,000.00 ",321100,Social Community Care Supplies & Services - Children
5348242,STEPPING STONES CHILDRENS HOMES LTD,Childrens Services,Children's Services,Childrens Homes Outside Local Authority Fees,,18/07/19," 18,000.00 ",321100,Social Community Care Supplies & Services - Children
5348230,STEPPING STONES CHILDRENS HOMES LTD,Childrens Services,Children's Services,Childrens Homes Outside Local Authority Fees,,18/07/19," 28,000.00 ",321100,Social Community Care Supplies & Services - Children
5349077,Smartway Health and Social Care Limited,Adult Social Care,Adults,Homecare Fees,,18/07/19, 657.37 ,321000,Social Community Care Supplies & Services - Adult
5349076,Smartway Health and Social Care Limited,Adult Social Care,Adults,Homecare Fees,,18/07/19," 1,957.06 ",321000,Social Community Care Supplies & Services - Adult
5345956,Redacted,Childrens Services,Children's Services,Childrens Homes Outside Local Authority Fees,,18/07/19," 20,868.00 ",170000,Education
5345957,Redacted,Childrens Services,Children's Services,Childrens Homes Outside Local Authority Fees,,18/07/19," 61,775.00 ",170000,Education
5348495,Viva Minibus LTD,Education,Children's Services,Transport Of Pupils,,18/07/19," 1,800.00 ",230000,Highway Equipment & Materials
5348589,AM-PM Travel LTD,Education,Children's Services,Transport Of Pupils,,18/07/19, 630.00 ,360000,Public Transport
5348577,Joes Travel LTD,Education,Children's Services,Transport Of Ola Pupils,,18/07/19," 1,900.00 ",360000,Public Transport
5348498,NMA Travel LTD,Education,Children's Services,Transport Of Pupils,,18/07/19," 1,590.00 ",360000,Public Transport
5348497,NMA Travel LTD,Education,Children's Services,Transport Of Post 16 Pupils,,18/07/19," 1,802.00 ",360000,Public Transport
5348496,NMA Travel LTD,Education,Children's Services,Transport Of Pupils,,18/07/19," 1,880.00 ",360000,Public Transport
5345953,Oasis Adolescent Services,Childrens Services,Children's Services,Childrens Homes Outside Local Authority Fees,,18/07/19," 22,142.99 ",-999999,Unclassifiable
5348857,Redacted,Governance,Governance,Elections Officer Fees,Redacted Supplier,18/07/19," 6,676.00 ",-999999,Unclassifiable
5348768,ST THOMAS MORE RC COLLEGE,Multiple Heads of Service,Multiple Strategic Directorates,Section 52 School Cash Advances,,18/07/19," 35,000.00 ",-999999,Unclassifiable
5346472,ARCO LIMITED,Operations and Neighbourhoods,Operations and Neighbourhoods,Protective Clothing,,18/07/19," 1,038.45 ",140000,Clothing
5348493,FENTONS TAXIS,Education,Children's Services,Transport Of Pupils,,18/07/19," 1,950.00 ",360000,Public Transport
5346009,CHESHIRE TURF MACHINERY,Operations and Neighbourhoods,Operations and Neighbourhoods,General Equipment Purchase,,18/07/19," 2,552.00 ",240000,Horticultural
5348293,DIRECT CARE (TAMESIDE) LTD,Adult Social Care,Adults,Homecare Fees,,18/07/19," 39,970.13 ",321000,Social Community Care Supplies & Services - Adult
5348980,Redacted,Education,Children's Services,Transport Of Pupils,Business Payment,18/07/19," 2,500.00 ",360000,Public Transport
5348978,Redacted,Education,Children's Services,Transport Of Pupils,Business Payment,18/07/19," 2,500.00 ",360000,Public Transport
5337341,GREATER MANCHESTER COMBINED AUTHORITY,Operations and Neighbourhoods,Operations and Neighbourhoods,GMC Waste Disposal Levy,,18/07/19," 1,288,000.00 ",-999999,Unclassifiable
5347203,CREATIVE SUPPORT LTD,Adult Social Care,Adults,Independent Sector Care Fees,,18/07/19," 72,336.58 ",321000,Social Community Care Supplies & Services - Adult
5347204,CREATIVE SUPPORT LTD,Adult Social Care,Adults,Independent Sector Care Fees,,18/07/19," 72,336.58 ",321000,Social Community Care Supplies & Services - Adult
5348568,J & R TAXIS LTD,Education,Children's Services,Transport Of Ola Pupils,,18/07/19," 1,353.00 ",360000,Public Transport
5345985,RIGBY TAYLOR LTD,Operations and Neighbourhoods,Operations and Neighbourhoods,General Materials,,18/07/19," 2,850.00 ",240000,Horticultural
5345990,DSG Retail Limited t/as Currys PC WORLD BUSINESS,Childrens Services,Children's Services,Fixtures & Fittings Purchase,,18/07/2019, 570.00 ,270000,Information Communication Technology
5345918,ORANGE PCS Airtime,Digital Tameside,Finance & IT,Telephone Landline Costs,,18/07/19, 722.06 ,270000,Information Communication Technology
5345923,ORANGE PCS Airtime,Digital Tameside,Finance & IT,Telephone Landline Costs,,18/07/19," 11,732.21 ",270000,Information Communication Technology
5345922,ORANGE PCS Airtime,Digital Tameside,Finance & IT,Telephone Landline Costs,,18/07/19," 6,352.68 ",270000,Information Communication Technology
5348283,M G DOMESTIC,Adult Social Care,Adults,Fixtures & Fittings Purchase,,18/07/19, 559.99 ,160000,Domestic Goods
5348161,P J SPENCER LTD,Operations and Neighbourhoods,Operations and Neighbourhoods,General Materials,,18/07/19, 725.26 ,390000,"Works - Construction, Repair & Maintenance"
5348994,MANLEC ELECTRICAL(MANCHESTER) LTD,Place,Growth,Adaptations - Small Jobs,,18/07/2019, 675.00 ,390000,"Works - Construction, Repair & Maintenance"
5348893,M NELSON & SON,Multiple Heads of Service,Multiple Strategic Directorates,CIS Labour Debits,,18/07/19," 1,850.00 ",390000,"Works - Construction, Repair & Maintenance"
5348893,M NELSON & SON,Operations and Neighbourhoods,Operations and Neighbourhoods,Engineers Works,,18/07/19," 2,660.00 ",390000,"Works - Construction, Repair & Maintenance"
5348494,FENTONS MINIBUSES LTD,Education,Children's Services,Transport Of Ola Pupils,,18/07/2019," 1,912.50 ",360000,Public Transport
5345997,NEXUS SOLICITORS,Education,Children's Services,Legal Fees,,18/07/2019, 522.50 ,-999999,Unclassifiable
5346000,NEXUS SOLICITORS,Childrens Services,Children's Services,Legal Fees,,18/07/19," 11,000.00 ",-999999,Unclassifiable
5345998,NEXUS SOLICITORS,Education,Children's Services,Legal Fees,,18/07/2019, 907.50 ,-999999,Unclassifiable
5348545,Redacted,Education,Children's Services,Transport Of Pupils,Business Payment,18/07/19," 1,420.00 ",360000,Public Transport
5348985,K P DODD CONSTRUCTION LTD,Housing,Director of Place,Improvement Grants - Final Mandatory,,18/07/19," 4,525.00 ",390000,"Works - Construction, Repair & Maintenance"
5348986,K P DODD CONSTRUCTION LTD,Housing,Director of Place,Improvement Grants - Final Mandatory,,18/07/19," 4,435.00 ",390000,"Works - Construction, Repair & Maintenance"
5345992,PAKFLATT (UK) LTD,Governance,Governance,Printing And Stationery,,18/07/19, 690.00 ,-999999,Unclassifiable
5346453,Dynamic Childcare Limited,Childrens Services,Children's Services,Childrens Homes Outside Local Authority Fees,,19/07/19," 18,000.00 ",321100,Social Community Care Supplies & Services - Children
5346454,Dynamic Childcare Limited,Childrens Services,Children's Services,Childrens Homes Outside Local Authority Fees,,19/07/19," 18,000.00 ",321100,Social Community Care Supplies & Services - Children
5346452,Dynamic Childcare Limited,Childrens Services,Children's Services,Childrens Homes Outside Local Authority Fees,,19/07/19," 18,000.00 ",321100,Social Community Care Supplies & Services - Children
5346660,Medgen Limited,Childrens Services,Children's Services,Day Care Fees,,19/07/19," 1,285.20 ",260000,Human Resources
5347147,Redacted,Childrens Services,Children's Services,Training Course Costs,,19/07/19," 2,800.00 ",-999999,Unclassifiable
5346193,HC Assessment Ltd,Adult Social Care,Adults,Professional Services,,19/07/19," 1,393.90 ",260000,Human Resources
5346194,Redacted,Corporate Costs,Corporate Costs,Agency Staff,,19/07/19," 2,562.00 ",360000,Public Transport
5345772,Interserve Healthcare Limited,Childrens Services,Children's Services,Day Care Fees,,19/07/19, 968.78 ,321100,Social Community Care Supplies & Services - Children
5346195,NewCare Lodgings Limited,Childrens Services,Children's Services,Living With Formal Support,,19/07/19," 1,499.96 ",321100,Social Community Care Supplies & Services - Children
5346196,NewCare Lodgings Limited,Childrens Services,Children's Services,Living With Formal Support,,19/07/19," 1,392.82 ",321100,Social Community Care Supplies & Services - Children
5346442,Bennett Smith Limited (Solicitors),Childrens Services,Children's Services,Professional Child Services,,19/07/2019, 609.00 ,280000,Legal Services
5346447,Bennett Smith Limited (Solicitors),Childrens Services,Children's Services,Professional Child Services,,19/07/19, 745.50 ,280000,Legal Services
5349079,Redacted,Childrens Services,Children's Services,Refreshments,,19/07/19, 957.00 ,400000,Non 3rd Party spend  
5346199,Capita Resourcing Ltd trading as Veredus,Education,Children's Services,Agency Staff,,19/07/19," 2,450.00 ",-999999,Unclassifiable
5346208,iCare Solutions,Adult Social Care,Adults,Homecare Fees,,19/07/19," 5,025.99 ",310000,Healthcare
5346152,Quayside Childcare Limited,Childrens Services,Children's Services,Professional Services,,19/07/19," 1,983.75 ",360000,Public Transport
5346492,Redacted,Childrens Services,Children's Services,Legal Fees,,19/07/19, 600.00 ,280000,Legal Services
5346368,YOUNG PEOPLE FIRST LIMITED,Childrens Services,Children's Services,Living With Formal Support,,19/07/19," 5,838.00 ",321100,Social Community Care Supplies & Services - Children
5346495,Redacted,Childrens Services,Children's Services,Legal Fees,,19/07/19, 600.00 ,280000,Legal Services
5346494,Redacted,Childrens Services,Children's Services,Legal Fees,,19/07/19, 550.00 ,280000,Legal Services
5346203,SSI SCHAEFER LTD,Environmental Services,Director of Place,General Materials,,19/07/19," 13,834.80 ",180000,Environmental Services
5346465,HEALTH MANAGEMENT (UK) LTD,People and Workforce Development,Governance,Professional Medical Services,,19/07/19," 7,537.59 ",310000,Healthcare
5346497,HEALTH MANAGEMENT (UK) LTD,People and Workforce Development,Governance,Professional Medical Services,,19/07/19," 6,050.00 ",310000,Healthcare
5348465,WORKS 4U SUPPORT SERVICES LIMITED,Individual Schools Budget,Children's Services,Professional Services,,19/07/19," 6,900.00 ",260000,Human Resources
5348464,WORKS 4U SUPPORT SERVICES LIMITED,Individual Schools Budget,Children's Services,Professional Services,,19/07/19," 8,625.00 ",260000,Human Resources
5346153,GBM DIGITAL TECHNOLOGIESLIMITED,Policy and Communications,Governance,Printing And Stationery,,19/07/2019," 2,123.88 ",270000,Information Communication Technology
5348572,GREENSCAPE,Adult Social Care,Adults,Professional Services,,19/07/19," 1,192.06 ",390000,"Works - Construction, Repair & Maintenance"
5348487,GREENSCAPE,Adult Social Care,Adults,Professional Services,,19/07/19," 2,967.00 ",390000,"Works - Construction, Repair & Maintenance"
5346455,HOMESTART TAMESIDE & OLDHAM,Population Health,Population Health,Professional Services,,19/07/19," 20,833.34 ",321000,Social Community Care Supplies & Services - Adult
5346449,HOMESTART TAMESIDE & OLDHAM,Population Health,Population Health,Professional Services,,19/07/19," 6,250.00 ",321000,Social Community Care Supplies & Services - Adult
5346670,A & G BUILDING & JOINERY SERVICES LTD,Housing,Director of Place,Adaptations - Jobs <#500,,19/07/19, 670.00 ,390000,"Works - Construction, Repair & Maintenance"
5347194,Randstad Public Services Limited,Education,Children's Services,Agency Staff,,19/07/19, 572.50 ,170000,Education
5346541,METRONET (UK) LIMITED T/A  M24SEVEN,Operations and Neighbourhoods,Operations and Neighbourhoods,Security Equipment,,19/07/19," 49,000.00 ",190000,Facilities & Management Services
5348722,BROMLEYS SOLICITORS LLP,Childrens Services,Children's Services,Legal Fees,,19/07/19," 1,507.00 ",280000,Legal Services
5346510,ALTERNATIVE FUTURES GROUP,Adult Social Care,Adults,Homecare Fees,,19/07/19," 10,107.83 ",321000,Social Community Care Supplies & Services - Adult
5346355,ALTERNATIVE FUTURES GROUP,Adult Social Care,Adults,Homecare Fees,,19/07/19," 1,594.78 ",321000,Social Community Care Supplies & Services - Adult
5346509,ALTERNATIVE FUTURES GROUP,Adult Social Care,Adults,Homecare Fees,,19/07/19," 202,637.34 ",321000,Social Community Care Supplies & Services - Adult
5347335,ALTERNATIVE FUTURES GROUP,Adult Social Care,Adults,Homecare Fees,,19/07/19," 177,627.69 ",321000,Social Community Care Supplies & Services - Adult
5347338,ALTERNATIVE FUTURES GROUP,Adult Social Care,Adults,Homecare Fees,,19/07/19," 202,637.33 ",321000,Social Community Care Supplies & Services - Adult
5346354,ALTERNATIVE FUTURES GROUP,Adult Social Care,Adults,Homecare Fees,,19/07/19," 31,971.08 ",321000,Social Community Care Supplies & Services - Adult
5346360,ALTERNATIVE FUTURES GROUP,Adult Social Care,Adults,Homecare Fees,,19/07/19," 177,627.69 ",321000,Social Community Care Supplies & Services - Adult
5346511,ALTERNATIVE FUTURES GROUP,Adult Social Care,Adults,Homecare Fees,,19/07/2019," 202,637.34 ",321000,Social Community Care Supplies & Services - Adult
5346359,ALTERNATIVE FUTURES GROUP,Adult Social Care,Adults,Homecare Fees,,19/07/19," 177,627.69 ",321000,Social Community Care Supplies & Services - Adult
5346357,ALTERNATIVE FUTURES GROUP,Adult Social Care,Adults,Homecare Fees,,19/07/19," 8,860.26 ",321000,Social Community Care Supplies & Services - Adult
5346353,ALTERNATIVE FUTURES GROUP,Adult Social Care,Adults,Homecare Fees,,19/07/19," 31,971.08 ",321000,Social Community Care Supplies & Services - Adult
5347337,ALTERNATIVE FUTURES GROUP,Adult Social Care,Adults,Homecare Fees,,19/07/19," 31,971.08 ",321000,Social Community Care Supplies & Services - Adult
5348540,OLDHAM COUNCIL,Corporate Costs,Corporate Costs,Contributions,,19/07/19," 25,000.00 ",-999999,Unclassifiable
5349148,OLDHAM COUNCIL,Corporate Costs,Corporate Costs,Contributions,,19/07/19," 25,000.00 ",-999999,Unclassifiable
5346467,Redacted,Childrens Services,Children's Services,Childrens Homes Outside Local Authority Fees,Redacted Supplier,19/07/2019," 9,600.00 ",321100,Social Community Care Supplies & Services - Children
5346673,INTACT PROJECTS LIMITED,Childrens Services,Children's Services,Living With Formal Support,,19/07/2019," 1,590.00 ",321000,Social Community Care Supplies & Services - Adult
5348953,Park Lane Minibuses LTD,Education,Children's Services,Transport Of Post 16 Pupils,,19/07/19," 2,076.00 ",360000,Public Transport
5348955,Park Lane Minibuses LTD,Education,Children's Services,Transport Of Pupils,,19/07/19," 2,848.00 ",360000,Public Transport
5348956,Park Lane Minibuses LTD,Education,Children's Services,Transport Of Pupils,,19/07/19," 2,573.60 ",360000,Public Transport
5348957,Park Lane Minibuses LTD,Education,Children's Services,Transport Of Post 16 Pupils,,19/07/19," 1,387.00 ",360000,Public Transport
5348144,NEW BRIDGE HORIZONS,Adult Social Care,Adults,Day Centre Fees,,19/07/19," 1,868.00 ",321000,Social Community Care Supplies & Services - Adult
5348146,NEW BRIDGE HORIZONS,Adult Social Care,Adults,Day Centre Fees,,19/07/19," 1,968.00 ",321000,Social Community Care Supplies & Services - Adult
5348552,NEW BRIDGE HORIZONS,Adult Social Care,Adults,Day Centre Fees,,19/07/19," 1,800.00 ",321000,Social Community Care Supplies & Services - Adult
5348620,NEW BRIDGE HORIZONS,Adult Social Care,Adults,Day Centre Fees,,19/07/19," 1,625.00 ",321000,Social Community Care Supplies & Services - Adult
5348145,NEW BRIDGE HORIZONS,Adult Social Care,Adults,Day Centre Fees,,19/07/19," 2,335.00 ",321000,Social Community Care Supplies & Services - Adult
5348147,NEW BRIDGE HORIZONS,Adult Social Care,Adults,Day Centre Fees,,19/07/19," 1,016.00 ",321000,Social Community Care Supplies & Services - Adult
5346491,Redacted,Childrens Services,Children's Services,Living With Formal Support,Redacted Supplier,19/07/19," 2,666.68 ",321000,Social Community Care Supplies & Services - Adult
5346681,LEGGETT PSYCHOLOGY LTD,Education,Children's Services,Professional Services,,19/07/19," 1,650.00 ",170000,Education
5346682,LEGGETT PSYCHOLOGY LTD,Education,Children's Services,Professional Services,,19/07/19," 1,650.00 ",170000,Education
5348767,ABLE CARE AND SUPPORT SERVICES LTD,Adult Social Care,Adults,Homecare Fees,,19/07/19," 2,002.67 ",321000,Social Community Care Supplies & Services - Adult
5349165,ABLE CARE AND SUPPORT SERVICES LTD,Adult Social Care,Adults,Homecare Fees,,19/07/19," 2,126.43 ",321000,Social Community Care Supplies & Services - Adult
5346435,Redacted,Childrens Services,Children's Services,Living With Formal Support,Redacted Supplier,19/07/19," 3,750.00 ",321000,Social Community Care Supplies & Services - Adult
5346191,SIZZLERS CATERING,Childrens Services,Children's Services,Refreshments,,19/07/19, 720.00 ,110000,Catering
5347207,FAMILY CARE FOSTERING LTD,Childrens Services,Children's Services,Foster Carer Agency Fees,,19/07/19," 4,446.30 ",321100,Social Community Care Supplies & Services - Children
5346190,FAMILY CARE FOSTERING LTD,Childrens Services,Children's Services,Foster Carer Agency Fees,,19/07/19," 3,379.24 ",321100,Social Community Care Supplies & Services - Children
5346188,FAMILY CARE FOSTERING LTD,Childrens Services,Children's Services,Foster Carer Agency Fees,,19/07/19," 3,023.54 ",321100,Social Community Care Supplies & Services - Children
5346689,NEW CHARTER HOUSING TRUST - FAMILY SUPPORT CHARITY,Childrens Services,Children's Services,Other Accomodation Related Costs,,19/07/19, 854.74 ,-999999,Unclassifiable
5349082,Redacted,Childrens Services,Children's Services,#N/A,,19/07/19, 500.00 ,-999999,Unclassifiable
5346233,ST GEORGE'S HOUSE TRUST (WINDSOR CASTLE),Hosted Services,Hosted Services,Conference/Seminar Expenses For Staff,,19/07/19," 9,403.95 ",290000,Arts & Leisure Services
5347218,POWER CONTROL LTD,Place,Growth,It Control Room Equipment,,19/07/19," 7,867.00 ",-999999,Unclassifiable
5348408,INSPIREDSPACES TAMESIDE LTD,Place,Growth,Building Repairs,,19/07/19," 33,249.44 ",390000,"Works - Construction, Repair & Maintenance"
5348108,INSPIREDSPACES TAMESIDE LTD,Place,Growth,Repairs & Maintenance Heavy Catering Equipment,,19/07/2019," 4,231.48 ",390000,"Works - Construction, Repair & Maintenance"
5346429,FOSTERING LIMITED,Childrens Services,Children's Services,Foster Carer Agency Fees,,19/07/19, 880.00 ,321100,Social Community Care Supplies & Services - Children
5346432,FOSTERING LIMITED,Childrens Services,Children's Services,Foster Carer Agency Fees,,19/07/19, 880.00 ,321100,Social Community Care Supplies & Services - Children
5346482,CARETECH COMMUNITY SERVICES LIMITED,Adult Social Care,Adults,Residential Home Long Stay Fees,,19/07/19," 1,014.93 ",321000,Social Community Care Supplies & Services - Adult
5346255,The Networking People (TNP) Ltd,Multiple Heads of Service,Multiple Strategic Directorates,Communications Equipment,,19/07/19," 10,290.84 ",270000,Information Communication Technology
5346687,HORIZON SEMI-INDEPENDENT SUPPORT,Childrens Services,Children's Services,Living With Formal Support,,19/07/19," 3,800.00 ",321000,Social Community Care Supplies & Services - Adult
5346161,Sanctuary Personnel Trading as Skylakes,Childrens Services,Children's Services,Professional Services,,19/07/2019," 22,811.13 ",321100,Social Community Care Supplies & Services - Children
5346479,Pertemps Professional Recruitment Limited,Childrens Services,Children's Services,Agency Staff,,19/07/19," 1,427.76 ",321100,Social Community Care Supplies & Services - Children
5346483,Pertemps Professional Recruitment Limited,Childrens Services,Children's Services,Agency Staff,,19/07/19," 1,444.76 ",321100,Social Community Care Supplies & Services - Children
5346481,Pertemps Professional Recruitment Limited,Childrens Services,Children's Services,Agency Staff,,19/07/19, 769.86 ,321100,Social Community Care Supplies & Services - Children
5346701,DHL Parcel UK Ltd (UK Mail),Exchequer,Governance,Printing And Stationery,,19/07/19," 2,490.18 ",300000,Mail Services
5348773,NMA Travel LTD,Childrens Services,Children's Services,Hired Transport,,19/07/19," 1,122.04 ",360000,Public Transport
5346249,Compass Fostering North LTD,Childrens Services,Children's Services,Foster Carer Agency Fees,,19/07/2019," 3,445.65 ",321100,Social Community Care Supplies & Services - Children
5347128,Redacted,Education,Children's Services,Professional Services,,19/07/19," 1,100.00 ",321100,Social Community Care Supplies & Services - Children
5347127,Redacted,Education,Children's Services,Professional Services,,19/07/19," 1,100.00 ",321100,Social Community Care Supplies & Services - Children
5347182,Footsteps Psychology,Education,Children's Services,Professional Services,,19/07/19, 550.00 ,-999999,Unclassifiable
5348314,TRAFFORD MBC,Finance,Finance & IT,Professional Consultancy Services,,19/07/2019," 108,750.00 ",321100,Social Community Care Supplies & Services - Children
5345834,FOSTER CARE ASSOCIATES LTD (FCA),Childrens Services,Children's Services,Foster Carer Agency Fees,,19/07/19," 3,237.02 ",321000,Social Community Care Supplies & Services - Adult
5349101,DIRECT CARE (TAMESIDE) LTD,Adult Social Care,Adults,Homecare Fees,,19/07/19," 8,375.93 ",321000,Social Community Care Supplies & Services - Adult
5349089,Redacted,Education,Children's Services,Transport Of Post 16 Pupils,Business Payment,19/07/19," 1,530.00 ",360000,Public Transport
5348818,GREATER MANCHESTER COMBINED AUTHORITY,(blank),(blank),Engineers -External,,19/07/19," 1,492.61 ",-999999,Unclassifiable
5348819,GREATER MANCHESTER COMBINED AUTHORITY,(blank),(blank),Engineers -External,,19/07/19," 5,075.57 ",-999999,Unclassifiable
5349155,PLANTATION INVESTMENTS LIMITED,Place,Growth,Building & Contents Insurance,,19/07/19," 28,822.00 ",-999999,Unclassifiable
5346144,PROGRESSIVE CARE LTD,Childrens Services,Children's Services,Childrens Homes Outside Local Authority Fees,,19/07/19," 8,171.42 ",321000,Social Community Care Supplies & Services - Adult
5346146,Redacted,Education,Children's Services,Voluntary Organisations Fees,Redacted Supplier,19/07/19, 650.00 ,321100,Social Community Care Supplies & Services - Children
5346192,Redacted,Education,Children's Services,Voluntary Organisations Fees,Redacted Supplier,19/07/19, 650.00 ,321100,Social Community Care Supplies & Services - Children
5346147,Redacted,Education,Children's Services,Voluntary Organisations Fees,Redacted Supplier,19/07/19," 2,100.00 ",321100,Social Community Care Supplies & Services - Children
5345859,CAPSTONE FOSTER CARE,Childrens Services,Children's Services,Foster Carer Agency Fees,,19/07/19," 2,335.07 ",321000,Social Community Care Supplies & Services - Adult
5345860,CAPSTONE FOSTER CARE,Childrens Services,Children's Services,Foster Carer Agency Fees,,19/07/19," 2,012.67 ",321000,Social Community Care Supplies & Services - Adult
5345862,CAPSTONE FOSTER CARE,Childrens Services,Children's Services,Foster Carer Agency Fees,,19/07/19," 2,952.82 ",321000,Social Community Care Supplies & Services - Adult
5348661,NEXUS MOVE LIMITED PREVIOUSLY RADIO CABS (ASHTON)LTD,Education,Children's Services,Transport Of Pupils,,19/07/19," 1,248.00 ",360000,Public Transport
5349003,NEXUS MOVE LIMITED PREVIOUSLY RADIO CABS (ASHTON)LTD,Operations and Neighbourhoods,Operations and Neighbourhoods,Hired Transport,,19/07/19, 808.00 ,360000,Public Transport
5348707,NEXUS MOVE LIMITED PREVIOUSLY RADIO CABS (ASHTON)LTD,Education,Children's Services,Transport Of Ola Pupils,,19/07/19, 990.00 ,360000,Public Transport
5348660,NEXUS MOVE LIMITED PREVIOUSLY RADIO CABS (ASHTON)LTD,Education,Children's Services,Transport Of Ola Pupils,,19/07/19, 990.00 ,360000,Public Transport
5349002,NEXUS MOVE LIMITED PREVIOUSLY RADIO CABS (ASHTON)LTD,Operations and Neighbourhoods,Operations and Neighbourhoods,Hired Transport,,19/07/19, 625.00 ,360000,Public Transport
5348689,NEXUS MOVE LIMITED PREVIOUSLY RADIO CABS (ASHTON)LTD,Operations and Neighbourhoods,Operations and Neighbourhoods,Hired Transport,,19/07/19, 550.00 ,360000,Public Transport
5348670,NEXUS MOVE LIMITED PREVIOUSLY RADIO CABS (ASHTON)LTD,Education,Children's Services,Transport Of Ola Pupils,,19/07/19," 1,232.00 ",360000,Public Transport
5348702,NEXUS MOVE LIMITED PREVIOUSLY RADIO CABS (ASHTON)LTD,Operations and Neighbourhoods,Operations and Neighbourhoods,Hired Transport,,19/07/2019," 1,349.00 ",360000,Public Transport
5348684,NEXUS MOVE LIMITED PREVIOUSLY RADIO CABS (ASHTON)LTD,Education,Children's Services,Transport Of Pupils,,19/07/19," 2,070.00 ",360000,Public Transport
5348668,NEXUS MOVE LIMITED PREVIOUSLY RADIO CABS (ASHTON)LTD,Education,Children's Services,Transport Of Post 16 Pupils,,19/07/19," 1,280.00 ",360000,Public Transport
5348706,NEXUS MOVE LIMITED PREVIOUSLY RADIO CABS (ASHTON)LTD,Education,Children's Services,Transport Of Pupils,,19/07/19, 870.00 ,360000,Public Transport
5348667,NEXUS MOVE LIMITED PREVIOUSLY RADIO CABS (ASHTON)LTD,Education,Children's Services,Transport Of Ola Pupils,,19/07/2019, 985.00 ,360000,Public Transport
5348672,NEXUS MOVE LIMITED PREVIOUSLY RADIO CABS (ASHTON)LTD,Education,Children's Services,Transport Of Post 16 Pupils,,19/07/19, 990.00 ,360000,Public Transport
5348663,NEXUS MOVE LIMITED PREVIOUSLY RADIO CABS (ASHTON)LTD,Education,Children's Services,Transport Of Ola Pupils,,19/07/19," 1,638.00 ",360000,Public Transport
5348700,NEXUS MOVE LIMITED PREVIOUSLY RADIO CABS (ASHTON)LTD,Education,Children's Services,Transport Of Ola Pupils,,19/07/19," 2,184.00 ",360000,Public Transport
5348675,NEXUS MOVE LIMITED PREVIOUSLY RADIO CABS (ASHTON)LTD,Education,Children's Services,Transport Of Pupils,,19/07/19, 610.50 ,360000,Public Transport
5348666,NEXUS MOVE LIMITED PREVIOUSLY RADIO CABS (ASHTON)LTD,Education,Children's Services,Transport Of Pupils,,19/07/19, 705.00 ,360000,Public Transport
5348665,NEXUS MOVE LIMITED PREVIOUSLY RADIO CABS (ASHTON)LTD,Education,Children's Services,Transport Of Pupils,,19/07/19," 1,470.00 ",360000,Public Transport
5348695,NEXUS MOVE LIMITED PREVIOUSLY RADIO CABS (ASHTON)LTD,Operations and Neighbourhoods,Operations and Neighbourhoods,Hired Transport,,19/07/19," 1,296.00 ",360000,Public Transport
5348704,NEXUS MOVE LIMITED PREVIOUSLY RADIO CABS (ASHTON)LTD,Education,Children's Services,Transport Of Pupils,,19/07/19," 1,200.00 ",360000,Public Transport
5346175,SWIIS FOSTER CARE LTD,Childrens Services,Children's Services,Foster Carer Agency Fees,,19/07/19, 899.99 ,321100,Social Community Care Supplies & Services - Children
5346181,SWIIS FOSTER CARE LTD,Childrens Services,Children's Services,Foster Carer Agency Fees,,19/07/19, 703.92 ,321100,Social Community Care Supplies & Services - Children
5346174,SWIIS FOSTER CARE LTD,Childrens Services,Children's Services,Foster Carer Agency Fees,,19/07/19, 837.97 ,321100,Social Community Care Supplies & Services - Children
5346180,SWIIS FOSTER CARE LTD,Childrens Services,Children's Services,Foster Carer Agency Fees,,19/07/19, 658.84 ,321100,Social Community Care Supplies & Services - Children
5346177,SWIIS FOSTER CARE LTD,Childrens Services,Children's Services,Foster Carer Agency Fees,,19/07/19, 660.10 ,321100,Social Community Care Supplies & Services - Children
5346179,SWIIS FOSTER CARE LTD,Childrens Services,Children's Services,Foster Carer Agency Fees,,19/07/19, 693.49 ,321100,Social Community Care Supplies & Services - Children
5346176,SWIIS FOSTER CARE LTD,Childrens Services,Children's Services,Foster Carer Agency Fees,,19/07/19, 760.48 ,321100,Social Community Care Supplies & Services - Children
5346178,SWIIS FOSTER CARE LTD,Childrens Services,Children's Services,Foster Carer Agency Fees,,19/07/19, 676.97 ,321100,Social Community Care Supplies & Services - Children
5348570,TAMESIDE BLINDS,Adult Social Care,Adults,Fixtures & Fittings Purchase,,19/07/19, 680.00 ,210000,Furniture & Soft Furnishings
5346688,STAFF CARE SERVICES,Adult Social Care,Adults,Professional Consultancy Services,,19/07/2019," 1,407.12 ",260000,Human Resources
5348995,JACKSON & TAYLOR LTD,Housing,Director of Place,Improvement Grants - Final Mandatory,,19/07/19," 5,820.00 ",390000,"Works - Construction, Repair & Maintenance"
5346513,LEEDS CITY COUNCIL,Hosted Services,Hosted Services,Conference/Seminar Expenses For Staff,,19/07/2019, 623.50 ,-999999,Unclassifiable
5348615,PLUCK ANDREW & CO,Childrens Services,Children's Services,Legal Fees,,19/07/19, 715.00 ,280000,Legal Services
5348691,STAMFORD CARS UK LTD,Operations and Neighbourhoods,Operations and Neighbourhoods,Hired Transport,,19/07/19, 600.00 ,361510,Public Transport
5348669,STAMFORD CARS UK LTD,Operations and Neighbourhoods,Operations and Neighbourhoods,Transport Of Pupils,,19/07/19, 500.00 ,361510,Public Transport
5348656,STAMFORD CARS UK LTD,Operations and Neighbourhoods,Operations and Neighbourhoods,Hired Transport,,19/07/19, 675.00 ,361510,Public Transport
5348699,STAMFORD CARS UK LTD,Operations and Neighbourhoods,Operations and Neighbourhoods,Hired Transport,,19/07/19, 675.00 ,361510,Public Transport
5348687,STAMFORD CARS UK LTD,Operations and Neighbourhoods,Operations and Neighbourhoods,Hired Transport,,19/07/19, 885.00 ,361510,Public Transport
5348729,STAMFORD CARS UK LTD,Education,Children's Services,Transport Of Pupils,,19/07/19," 1,600.00 ",361510,Public Transport
5348736,STAMFORD CARS UK LTD,Education,Children's Services,Transport Of Ola Pupils,,19/07/19," 1,600.00 ",361510,Public Transport
5348718,STAMFORD CARS UK LTD,Education,Children's Services,Transport Of Ola Pupils,,19/07/19," 2,185.00 ",361510,Public Transport
5348734,STAMFORD CARS UK LTD,Education,Children's Services,Transport Of Ola Pupils,,19/07/19," 2,650.00 ",361510,Public Transport
5348681,STAMFORD CARS UK LTD,Education,Children's Services,Transport Of Ola Pupils,,19/07/19," 1,895.00 ",361510,Public Transport
5348727,STAMFORD CARS UK LTD,Education,Children's Services,Transport Of Pupils,,19/07/19," 1,900.00 ",361510,Public Transport
5348725,STAMFORD CARS UK LTD,Education,Children's Services,Transport Of Pupils,,19/07/19," 1,600.00 ",361510,Public Transport
5348705,STAMFORD CARS UK LTD,Operations and Neighbourhoods,Operations and Neighbourhoods,Hired Transport,,19/07/19," 2,700.00 ",361510,Public Transport
5348738,STAMFORD CARS UK LTD,Education,Children's Services,Transport Of Ola Pupils,,19/07/19," 3,300.00 ",361510,Public Transport
5348683,STAMFORD CARS UK LTD,Education,Children's Services,Transport Of Pupils,,19/07/19," 1,125.00 ",361510,Public Transport
5348717,STAMFORD CARS UK LTD,Education,Children's Services,Transport Of Pupils,,19/07/19," 1,275.00 ",361510,Public Transport
5348703,STAMFORD CARS UK LTD,Operations and Neighbourhoods,Operations and Neighbourhoods,Hired Transport,,19/07/19," 1,162.50 ",361510,Public Transport
5348731,STAMFORD CARS UK LTD,Education,Children's Services,Transport Of Ola Pupils,,19/07/19," 1,687.50 ",361510,Public Transport
5348737,STAMFORD CARS UK LTD,Education,Children's Services,Transport Of Ola Pupils,,19/07/19," 1,550.00 ",361510,Public Transport
5348657,STAMFORD CARS UK LTD,Operations and Neighbourhoods,Operations and Neighbourhoods,Transport Of Pupils,,19/07/19, 800.00 ,361510,Public Transport
5348709,STAMFORD CARS UK LTD,Education,Children's Services,Transport Of Pupils,,19/07/19, 800.00 ,361510,Public Transport
5348715,STAMFORD CARS UK LTD,Education,Children's Services,Transport Of Post 16 Pupils,,19/07/19," 1,050.00 ",361510,Public Transport
5348735,STAMFORD CARS UK LTD,Education,Children's Services,Transport Of Pupils,,19/07/19," 1,425.00 ",361510,Public Transport
5348714,STAMFORD CARS UK LTD,Education,Children's Services,Transport Of Pupils,,19/07/19," 1,200.00 ",361510,Public Transport
5348713,STAMFORD CARS UK LTD,Education,Children's Services,Transport Of Ola Pupils,,19/07/19," 1,050.00 ",361510,Public Transport
5348685,STAMFORD CARS UK LTD,Education,Children's Services,Transport Of Ola Pupils,,19/07/19," 1,302.00 ",361510,Public Transport
5348720,STAMFORD CARS UK LTD,Education,Children's Services,Transport Of Pupils,,19/07/19," 1,900.00 ",361510,Public Transport
5348726,STAMFORD CARS UK LTD,Education,Children's Services,Transport Of Pupils,,19/07/19," 1,400.00 ",361510,Public Transport
5348679,STAMFORD CARS UK LTD,Operations and Neighbourhoods,Operations and Neighbourhoods,Hired Transport,,19/07/19," 1,540.00 ",361510,Public Transport
5348730,STAMFORD CARS UK LTD,Education,Children's Services,Transport Of Pupils,,19/07/19," 1,200.00 ",361510,Public Transport
5348733,STAMFORD CARS UK LTD,Education,Children's Services,Transport Of Pupils,,19/07/19, 750.00 ,361510,Public Transport
5348710,STAMFORD CARS UK LTD,Education,Children's Services,Transport Of Pupils,,19/07/19, 750.00 ,361510,Public Transport
5348721,STAMFORD CARS UK LTD,Education,Children's Services,Transport Of Pupils,,19/07/19," 1,400.00 ",361510,Public Transport
5346294,FOSTER CARES LTD,Childrens Services,Children's Services,Foster Carer Agency Fees,,19/07/19, 760.00 ,321100,Social Community Care Supplies & Services - Children
5346295,FOSTER CARES LTD,Childrens Services,Children's Services,Foster Carer Agency Fees,,19/07/19, 760.00 ,321100,Social Community Care Supplies & Services - Children
5346293,FOSTER CARES LTD,Childrens Services,Children's Services,Foster Carer Agency Fees,,19/07/19, 850.00 ,321100,Social Community Care Supplies & Services - Children
470817,AGGREGATE INDUSTRIES UK LIMITED,Operations and Neighbourhoods,Operations and Neighbourhoods,General Materials,,22/07/19," 6,823.88 ",230000,Highway Equipment & Materials
470817,EAGLE CIVIL ENGINEERING LTD,Operations and Neighbourhoods,Operations and Neighbourhoods,Sub-contractor Services,,22/07/19," 12,726.48 ",230000,Highway Equipment & Materials
470817,ELECTRICITY NORTH WEST LTD,Operations and Neighbourhoods,Operations and Neighbourhoods,Sub-contractor Services,,22/07/19, 628.78 ,370000,Utilities
470817,FAIRWAY LANDSCAPES LTD,Operations and Neighbourhoods,Operations and Neighbourhoods,Sub-contractor Services,,22/07/19," 7,508.00 ",399999,"Works - Construction, Repair & Maintenance"
470817,J HOPKINS CONTRACTORS  LTD,Operations and Neighbourhoods,Operations and Neighbourhoods,General Materials,,22/07/19," 3,040.00 ",390000,"Works - Construction, Repair & Maintenance"
470817,Redacted,Operations and Neighbourhoods,Operations and Neighbourhoods,Sub-contractor Services,,22/07/19," 4,488.45 ",150000,Consultancy
470817,M.C. & M.A. STEWART HAULAGE LTD,Operations and Neighbourhoods,Operations and Neighbourhoods,General Materials,,22/07/19," 2,638.28 ",240000,Horticultural
470817,TARMAC CENTRAL LIMITED,Operations and Neighbourhoods,Operations and Neighbourhoods,General Materials,,22/07/19," 9,920.56 ",230000,Highway Equipment & Materials
470817,GRAFTON MERCHANTING GB LTD,Operations and Neighbourhoods,Operations and Neighbourhoods,General Materials,,22/07/19," 1,087.00 ",100000,Building Construction Materials
470817,JONES LIGHTING LTD,Operations and Neighbourhoods,Operations and Neighbourhoods,Sub-contractor Services,,22/07/19," 7,161.78 ",230000,Highway Equipment & Materials
470817,1st Choice Grab Hire LTD,Operations and Neighbourhoods,Operations and Neighbourhoods,Sub-contractor Services,,22/07/19," 2,100.00 ",230000,Highway Equipment & Materials
470817,Holroyds Skip Hire Limited,Operations and Neighbourhoods,Operations and Neighbourhoods,General Materials,,22/07/19," 2,000.00 ",150000,Consultancy
470817,NORTHWEST UTILITY SOLUTIONS LTD,Operations and Neighbourhoods,Operations and Neighbourhoods,Sub-contractor Services,,22/07/19, 853.00 ,370000,Utilities
470817,VIATEC UK,Operations and Neighbourhoods,Operations and Neighbourhoods,General Materials,,22/07/19," 1,116.00 ",390000,"Works - Construction, Repair & Maintenance"
470817,KONSTRUCTA HIRE LIMITED,Operations and Neighbourhoods,Operations and Neighbourhoods,General Materials,,22/07/19," 2,691.45 ",390000,"Works - Construction, Repair & Maintenance"
470817,FAILSWORTH TRAINING SERVICES LTD,Operations and Neighbourhoods,Operations and Neighbourhoods,Training Course Costs,,22/07/19, 585.00 ,260000,Human Resources
470817,D.W. WINDSOR LIMITED,Operations and Neighbourhoods,Operations and Neighbourhoods,General Materials,,30/07/19," 2,930.56 ",230000,Highway Equipment & Materials
29000083,BOOTS UK LTD,Population Health,Population Health,Local Enhanced Services,,16/08/19," 1,568.00 ",150000,Consultancy
29000083,DAVAAR MEDICAL CENTRE,Population Health,Population Health,Local Enhanced Services,,29/07/19," 3,081.90 ",150000,Consultancy
29000083,GROSVENOR MEDICAL CENTRE,Population Health,Population Health,Local Enhanced Services,,22/07/19, 820.70 ,310000,Healthcare
29000083,LOCKSIDE MEDICAL CENTRE,Population Health,Population Health,Local Enhanced Services,,22/07/19," 1,133.00 ",310000,Healthcare
29000083,ST ANDREWS HOUSE MEDICAL CENTRE,Population Health,Population Health,Local Enhanced Services,,29/07/19, 848.60 ,150000,Consultancy
29000083,STAVELEIGH MEDICAL CENTRE,Population Health,Population Health,Local Enhanced Services,,22/07/19, 593.00 ,310000,Healthcare
29000083,AWBURN HOUSE MEDICAL PRACTICE,Population Health,Population Health,Local Enhanced Services,,29/07/19, 641.00 ,150000,Consultancy
29000083,WELL PHARMACY,Population Health,Population Health,Local Enhanced Services,,16/08/19," 1,887.53 ",310000,Healthcare
29000083,DENTON MEDICAL PRACTICE,Population Health,Population Health,Local Enhanced Services,,29/07/2019," 1,557.70 ",310000,Healthcare
29000083,MARKET STREET MEDICAL PRACTICE,Population Health,Population Health,Local Enhanced Services,,22/07/19," 1,030.00 ",310000,Healthcare
29000083,Redacted,Population Health,Population Health,Local Enhanced Services,,22/07/19," 1,141.00 ",310000,Healthcare
29000083,Ashton Medical Group,Population Health,Population Health,Local Enhanced Services,,22/07/19," 3,021.10 ",310000,Healthcare
29000083,THE BROOKE SURGERY,Population Health,Population Health,Local Enhanced Services,,29/07/19, 522.80 ,150000,Consultancy
29000083,GREENCROSS PHARMACY,Population Health,Population Health,Local Enhanced Services,,22/07/19, 591.69 ,150000,Consultancy
29000083,COHENS CHEMIST,Population Health,Population Health,Local Enhanced Services,,22/07/19," 3,572.87 ",150000,Consultancy
5349324,ATKINS LIMITED,Operations and Neighbourhoods,Operations and Neighbourhoods,Engineers Works,,22/07/19," 8,437.01 ",180000,Environmental Services
5346134,Acumen Waste Services Limited,Tameside Investment Partnership,Director of Place,Professional Services,,22/07/2019," 49,472.00 ",180000,Environmental Services
5348902,DREAMLAND CARPETS & LAMINATE FLOORING,Operations and Neighbourhoods,Operations and Neighbourhoods,Fixtures & Fittings Purchase,,22/07/19, 548.03 ,100000,Building Construction Materials
5348918,DREAMLAND CARPETS & LAMINATE FLOORING,Operations and Neighbourhoods,Operations and Neighbourhoods,Fixtures & Fittings Purchase,,22/07/19, 848.81 ,100000,Building Construction Materials
5348904,DREAMLAND CARPETS & LAMINATE FLOORING,Operations and Neighbourhoods,Operations and Neighbourhoods,Fixtures & Fittings Purchase,,22/07/19, 942.08 ,100000,Building Construction Materials
5348817,PERSON CENTRED CARE SERVICES LIMITED,Adult Social Care,Adults,Homecare Fees,,22/07/19," 9,345.57 ",310000,Healthcare
5349201,PROVIDENCE FURNITURE,Adult Social Care,Adults,Fixtures & Fittings Purchase,,22/07/19, 860.83 ,210000,Furniture & Soft Furnishings
5349248,ACE SAFETY ACADEMY,Operations and Neighbourhoods,Operations and Neighbourhoods,Training Course Costs,,22/07/19, 600.00 ,-999999,Unclassifiable
5349361,ABLE CARE AND SUPPORT SERVICES LTD,Adult Social Care,Adults,Homecare Fees,,22/07/19," 6,104.91 ",321000,Social Community Care Supplies & Services - Adult
5349349,R S & P HARRISON PROPERTY,Place,Growth,Non-Authority Accommodation Rental,,22/07/19," 3,611.09 ",-999999,Unclassifiable
5348840,G P WILSON DECORATORS,Adult Social Care,Adults,Fixtures & Fittings Purchase,,22/07/19," 1,600.00 ",100000,Building Construction Materials
5346485,FRIENDS HOUSE (LONDON) HOSPITALITY LIMITED,Hosted Services,Hosted Services,Conference/Seminar Expenses For Staff,,22/07/19," 2,460.02 ",290000,Arts & Leisure Services
5349255,Redacted,Operations and Neighbourhoods,Operations and Neighbourhoods,Professional Services,,22/07/2019, 560.00 ,-999999,Unclassifiable
5348900,DIRECT CARE (TAMESIDE) LTD,Adult Social Care,Adults,Homecare Fees,,22/07/19," 40,332.10 ",321000,Social Community Care Supplies & Services - Adult
5349266,ATLAS TRADING GROUP LTD,Operations and Neighbourhoods,Operations and Neighbourhoods,General Equipment Purchase,,22/07/19, 630.68 ,100000,Building Construction Materials
5348804,NEXUS MOVE LIMITED PREVIOUSLY RADIO CABS (ASHTON)LTD,Education,Children's Services,Transport Of Pupils,,22/07/2019," 1,600.00 ",360000,Public Transport
5348801,NEXUS MOVE LIMITED PREVIOUSLY RADIO CABS (ASHTON)LTD,Education,Children's Services,Transport Of Ola Pupils,,22/07/19," 1,920.00 ",360000,Public Transport
5348802,NEXUS MOVE LIMITED PREVIOUSLY RADIO CABS (ASHTON)LTD,Education,Children's Services,Transport Of Ola Pupils,,22/07/19," 2,360.00 ",360000,Public Transport
5348803,NEXUS MOVE LIMITED PREVIOUSLY RADIO CABS (ASHTON)LTD,Education,Children's Services,Transport Of Pupils,,22/07/2019," 2,120.00 ",360000,Public Transport
5349333,SANCTUARY HOUSING  ASSOCIATION,Place,Growth,Non-Authority Accommodation Rental,,22/07/2019," 2,902.05 ",UNCLASS,Unclassifiable
5348809,JACKSON & TAYLOR LTD,Housing,Director of Place,Adaptations - Jobs <#500,,22/07/2019, 790.00 ,390000,"Works - Construction, Repair & Maintenance"
5348852,PROMOTO LOGO,Operations and Neighbourhoods,Operations and Neighbourhoods,General Materials,,22/07/2019," 1,150.00 ",190000,Facilities & Management Services
5344885,Chester Healthcare t/a Jane Lewis,Childrens Services,Children's Services,Professional Services,,22/07/2019," 1,763.94 ",410000,Social Community Care Supplies & Services
5345097,Chester Healthcare t/a Jane Lewis,Childrens Services,Children's Services,Professional Services,,22/07/2019," 1,123.46 ",410000,Social Community Care Supplies & Services
5348967,ELECTORAL REFORM SERVICES,Governance,Governance,Printing And Stationery,,22/07/19," 26,460.55 ",-999999,Unclassifiable
5348969,ELECTORAL REFORM SERVICES,Governance,Governance,Printing And Stationery,,22/07/19," 1,421.92 ",-999999,Unclassifiable
5348968,ELECTORAL REFORM SERVICES,Governance,Governance,Printing And Stationery,,22/07/2019," 5,278.54 ",-999999,Unclassifiable
5348971,ELECTORAL REFORM SERVICES,Governance,Governance,Printing And Stationery,,22/07/19," 35,224.59 ",-999999,Unclassifiable
